Workbook

Sheet Welcome
AA1: 37 | AB1: =INDEX(AB$4:AB$45,MATCH(MyVoteNo,$AA$4:$AA$45,0)) -> Sport, Arts and Culture | AC1: =INDEX(AC$4:AC$45,MATCH(MyVoteNo,$AA$4:$AA$45,0)) -> Judy Naidoo | AE1: =INDEX(AE$4:AE$45,MATCH(MyVoteNo,$AA$4:$AA$45,0)) -> Judy.Naidoo@treasury.gov.za | AF1: =INDEX(AF$4:AF$45,MATCH(MyVoteNo,$AA$4:$AA$45,0)) -> Mabele Mdhluli | AH1: =INDEX(AH$4:AH$45,MATCH(MyVoteNo,$AA$4:$AA$45,0)) -> Mabele.Mdhluli@treasury.gov.za
E2: 2026 MTEF Workbook - National departments | AI2: Dept Ceilings | AL2: CoE Ceilings | AS2: Departmental Ceilings | AT2: =SUM(AT4:AT45) -> 2311109529 | AU2: 2418245109 | AV2: 2533217842 | AY2: Compensation Ceilings | AZ2: =SUM(AZ4:AZ45) -> 226721323 | BA2: 236752143 | BB2: 247380260
Z3: Dept Index No. | AA3: Vote No. | AB3: Department | AC3: Contact Person | AD3: Tel | AE3: email | AF3: Contact Person | AG3: Tel | AH3: email | AI3: =MyYear5 -> 2026/27 | AJ3: =MyYear6 -> 2027/28 | AK3: =MyYear7 -> 2028/29 | AL3: =AI3 -> 2026/27 | AM3: 2027/28 | AN3: 2028/29 | AS3: Department | AT3: =AI3 -> 2026/27 | AU3: 2027/28 | AV3: 2028/29 | AY3: Department | AZ3: =AI3 -> 2026/27 | BA3: 2027/28 | BB3: 2028/29
Z4: 1 | AA4: 29 | AB4: Agriculture | AC4: Bothwell Deka | AD4: (012) 395 6784 | AE4: Bothwell.Deka@treasury.gov.za | AF4: Humbelani Ramuedzisi | AG4: (012) 315 5320 | AH4: Humbelani.Ramuedzisi@treasury.gov.za | AI4: =IFERROR(INDEX((AT$4:AT$47),MATCH($AB4,$AS$4:$AS$47,0)),0) -> 7848842 | AJ4: =IFERROR(INDEX((AU$4:AU$47),MATCH($AB4,$AS$4:$AS$47,0)),0) -> 8212695 | AK4: =IFERROR(INDEX((AV$4:AV$47),MATCH($AB4,$AS$4:$AS$47,0)),0) -> 8581380 | AL4: =IFERROR(INDEX((AZ$4:AZ$47),MATCH($AB4,$AY$4:$AY$47,0)),0) -> 1664703 | AM4: =IFERROR(INDEX((BA$4:BA$47),MATCH($AB4,$AY$4:$AY$47,0)),0) -> 1740713 | AN4: =IFERROR(INDEX((BB$4:BB$47),MATCH($AB4,$AY$4:$AY$47,0)),0) -> 1818855 | AS4: Agriculture | AT4: 7848842 | AU4: 8212695 | AV4: 8581380 | AY4: Agriculture | AZ4: 1664703 | BA4: 1740713 | BB4: 1818855
Z5: 2 | AA5: 16 | AB5: Basic Education | AC5: Spencer Janari | AD5: (012) 315 5436 | AE5: Spencer.Janari@treasury.gov.za | AF5: Shaneel Ragoo | AG5: (012) 315 5323 | AH5: shaneel.ragoo@treasury.gov.za | AI5: 36325958 | AJ5: 36662135 | AK5: 38307938 | AL5: 699624 | AM5: 731264 | AN5: 764090 | AS5: Basic Education | AT5: 36325958 | AU5: 36662135 | AV5: 38307938 | AY5: Basic Education | AZ5: 699624 | BA5: 731264 | BB5: 764090
Z6: 3 | AA6: 45 | AB6: Centre for Public Service Innovation | AC6: George Tembo | AD6: (012) 315 5514 | AE6: George.Tembo@treasury.gov.za | AF6: Uvadhya Singh | AG6: (012) 315 9030 | AH6: Uvadhya.Singh@treasury.gov.za | AI6: 52645 | AJ6: 55028 | AK6: 57496 | AL6: 32886 | AM6: 34375 | AN6: 35918 | AS6: Centre for Public Service Innovation | AT6: 52645 | AU6: 55028 | AV6: 57496 | AY6: Centre for Public Service Innovation | AZ6: 32886 | BA6: 34375 | BB6: 35918
B7: ="VOTE " &$AA$1&": " -> VOTE 37: | C7: =MyDeptName -> Sport, Arts and Culture | Z7: 4 | AA7: 21 | AB7: Civilian Secretariat for the Police Service | AC7: Velisubuhle Buti | AD7: (012) 395 6709 | AE7: Velisubuhle.Buti@treasury.gov.za | AF7: Mmathaphelo Maphangela | AG7: (012) 406 9013 | AH7: Mmathaphelo.Maphangela@treasury.gov.za | AI7: 181021 | AJ7: 189802 | AK7: 198321 | AL7: 141784 | AM7: 148489 | AN7: 155157 | AS7: Civilian Secretariat for the Police Service | AT7: 181021 | AU7: 189802 | AV7: 198321 | AY7: Civilian Secretariat for the Police Service | AZ7: 141784 | BA7: 148489 | BB7: 155157
Z8: 5 | AA8: 30 | AB8: Communications and Digital Technologies | AC8: Rezah Atcha | AD8: (012) 315 5287 | AE8: Rezah.Atcha@treasury.gov.za | AF8: Keitumetse Motshegwe | AG8: (012) 395 6750 | AH8: keitumetse.motshegwe@treasury.gov.za | AI8: 2557133 | AJ8: 2672764 | AK8: 2792745 | AL8: 347072 | AM8: 362770 | AN8: 379055 | AS8: Communications and Digital Technologies | AT8: 2557133 | AU8: 2672764 | AV8: 2792745 | AY8: Communications and Digital Technologies | AZ8: 347072 | BA8: 362770 | BB8: 379055
Z9: 6 | AA9: 3 | AB9: Cooperative Governance | AC9: Bongani Daka | AD9: (012) 315 5586 | AE9: Bongani.Daka@treasury.gov.za | AF9: Iqbal Mahomed Alli | AG9: (012) 315 5809 | AH9: Iqbal.Mahomed-Alli@treasury.gov.za | AI9: 136800346 | AJ9: 142986552 | AK9: 149405411 | AL9: 472359 | AM9: 493867 | AN9: 516038 | AS9: Cooperative Governance | AT9: 136800346 | AU9: 142986552 | AV9: 149405411 | AY9: Cooperative Governance | AZ9: 472359 | BA9: 493867 | BB9: 516038
B10: Enquiries | F10: Department Contact Details | I10: PLEASE CLICK THE BUTTON BELOW TO SUBMIT AN INPUT… (Note: Input can not be submitted if ceilings on the 'Data' sheet are exceeded.) | Z10: 7 | AA10: 22 | AB10: Correctional Services | AC10: Elvis Ramafamba | AD10: (012) 315 5204 | AE10: Elvis.Ramafamba@treasury.gov.za | AF10: Yolanda Matiwane | AG10: (012) 315 5012 | AH10: Yolanda.Matiwane@treasury.gov.za | AI10: 30567412 | AJ10: 31950271 | AK10: 33384557 | AL10: 21465971 | AM10: 22437260 | AN10: 23444497 | AS10: Correctional Services | AT10: 30567412 | AU10: 31950271 | AV10: 33384557 | AY10: Correctional Services | AZ10: 21465971 | BA10: 22437260 | BB10: 23444497
B11: =AC1 -> Judy Naidoo | D11: =AE1 -> Judy.Naidoo@treasury.gov.za | F11: Name: | Z11: 8 | AA11: 23 | AB11: Defence | AC11: Lesiba Ledwaba | AD11: (012) 315 6660 | AE11: Lesiba.Ledwaba@treasury.gov.za | AF11: Sesethu Mazoza | AG11: (012) 315 5106 | AH11: Sesethu.Mazoza@treasury.gov.za | AI11: 56770876 | AJ11: 59182249 | AK11: 61839010 | AL11: 37744676 | AM11: 39357404 | AN11: 41124211 | AS11: Defence | AT11: 56770876 | AU11: 59182249 | AV11: 61839010 | AY11: Defence | AZ11: 37744676 | BA11: 39357404 | BB11: 41124211
B12: =IF(AF1=B11,"",AF1) -> Mabele Mdhluli | D12: =IF(AH1=D11,"",AH1) -> Mabele.Mdhluli@treasury.gov.za | F12: Email: | Z12: 9 | AA12: 31 | AB12: Employment and Labour | AC12: Judy Naidoo | AD12: (012) 315 5269 | AE12: Judy.Naidoo@treasury.gov.za | AF12: Palesa Ndokweni | AG12: (012) 315 1620 | AH12: Palesa.Ndokweni@treasury.gov.za | AI12: 3983679 | AJ12: 4163933 | AK12: 4350848 | AL12: 1641889 | AM12: 1715813 | AN12: 1792837 | AS12: Employment and Labour | AT12: 3983679 | AU12: 4163933 | AV12: 4350848 | AY12: Employment and Labour | AZ12: 1641889 | BA12: 1715813 | BB12: 1792837
F13: Telephone number: | Z13: 10 | AA13: 32 | AB13: Forestry, Fisheries and the Environment | AC13: Ashley Ramasimu | AD13: (012) 315 5166 | AE13: Ashley.Ramasimu@treasury.gov.za | AF13: Jabulani Mahlangu | AG13: (012) 315 5612 | AH13: Jabulani.Mahlangu@treasury.gov.za | AI13: 9496359 | AJ13: 9925947 | AK13: 10371520 | AL13: 2501478 | AM13: 2614786 | AN13: 2732169 | AS13: Forestry, Fisheries and the Environment | AT13: 9496359 | AU13: 9925947 | AV13: 10371520 | AY13: Forestry, Fisheries and the Environment | AZ13: 2501478 | BA13: 2614786 | BB13: 2732169
F14: Mobile (optional): | Z14: 11 | AA14: 4 | AB14: Government Communication and Information System | AC14: Mokgatla Tema | AD14: (012) 315 5948 | AE14: Mokgatla.Tema@treasury.gov.za | AF14: Thobeka Mbonambi | AG14: (012) 395 6719 | AH14: Thobeka.Mbonambi@treasury.gov.za | AI14: 805731 | AJ14: 842171 | AK14: 879970 | AL14: 324517 | AM14: 339194 | AN14: 354421 | AS14: Government Communication and Information System | AT14: 805731 | AU14: 842171 | AV14: 879970 | AY14: Government Communication and Information System | AZ14: 324517 | BA14: 339194 | BB14: 354421
Z15: 12 | AA15: 18 | AB15: Health | AC15: Refiloe Thokoa | AD15: (012) 395 6559 | AE15: Refiloe.thokoa@treasury.gov.za | AF15: Jonatan Daven | AG15: (012) 315 6711 | AH15: Jonatan.Daven@treasury.gov.za | AI15: 66927678 | AJ15: 70183120 | AK15: 73333721 | AL15: 779363 | AM15: 815301 | AN15: 851901 | AS15: Health | AT15: 66927678 | AU15: 70183120 | AV15: 73333721 | AY15: Health | AZ15: 779363 | BA15: 815301 | BB15: 851901
Z16: 13 | AA16: 17 | AB16: Higher Education | AC16: Barileng Khumisi | AD16: (012) 406 9069 | AE16: barileng.khumisi@treasury.gov.za | AF16: Nkhumeleni Munyai (Walter) | AG16: (012) 315 5636 | AH16: Nkhumeleni.Munyai@treasury.gov.za | AI16: 149944189 | AJ16: 158060343 | AK16: 166011892 | AL16: 13309755 | AM16: 13912474 | AN16: 14537024 | AS16: Higher Education | AT16: 149944189 | AU16: 158060343 | AV16: 166011892 | AY16: Higher Education | AZ16: 13309755 | BA16: 13912474 | BB16: 14537024
Z17: 14 | AA17: 5 | AB17: Home Affairs | AC17: Viwe Sobudula | AD17: (012) 315 5015 | AE17: Viwe.Sobudula@treasury.gov.za | AF17: Maggy Makoka | AG17: (012) 315 5468 | AH17: Maggy.Mokoka@Treasury.gov.za | AI17: 12463068 | AJ17: 12104890 | AK17: 12648290 | AL17: 4413244 | AM17: 4612915 | AN17: 4819996 | AS17: Home Affairs | AT17: 12463068 | AU17: 12104890 | AV17: 12648290 | AY17: Home Affairs | AZ17: 4413244 | BA17: 4612915 | BB17: 4819996
Z18: 15 | AA18: 33 | AB18: Human Settlements | AC18: Katlego Moilwa | AD18: (012) 315 5812 | AE18: Katlego.Moilwa@treasury.gov.za | AF18: Claudette Mkhwanazi | AG18: (012) 315 6535 | AH18: Claudette.Mkhwanazi@treasury.gov.za | AI18: 33317686 | AJ18: 33888147 | AK18: 35127303 | AL18: 477245 | AM18: 498830 | AN18: 521224 | AS18: Human Settlements | AT18: 33317686 | AU18: 33888147 | AV18: 35127303 | AY18: Human Settlements | AZ18: 477245 | BA18: 498830 | BB18: 521224
Z19: 16 | AA19: 24 | AB19: Independent Police Investigative Directorate | AC19: Velisubuhle Buti | AD19: (012) 395 6709 | AE19: Velisubuhle.Buti@treasury.gov.za | AF19: Mmathaphelo Maphangela | AG19: (012) 406 9013 | AH19: Mmathaphelo.Maphangela@treasury.gov.za | AI19: 447844 | AJ19: 466915 | AK19: 487871 | AL19: 308964 | AM19: 321353 | AN19: 335780 | AS19: Independent Police Investigative Directorate | AT19: 447844 | AU19: 466915 | AV19: 487871 | AY19: Independent Police Investigative Directorate | AZ19: 308964 | BA19: 321353 | BB19: 335780
Z20: 17 | AA20: 6 | AB20: International Relations and Cooperation | AC20: George Tembo | AD20: (012) 315 5514 | AE20: George.Tembo@treasury.gov.za | AF20: Mercy Mhlophe | AG20: (012) 315 5598 | AH20: mercy.mhlope@treasury.gov.za | AI20: 7227607 | AJ20: 7516262 | AK20: 7853670 | AL20: 3384817 | AM20: 3537928 | AN20: 3696749 | AS20: International Relations and Cooperation | AT20: 7227607 | AU20: 7516262 | AV20: 7853670 | AY20: International Relations and Cooperation | AZ20: 3384817 | BA20: 3537928 | BB20: 3696749
Z21: 18 | AA21: 46 | AB21: Judicial Inspectorate for Correctional Services | AC21: Elvis Ramafamba | AD21: (012) 315 5204 | AE21: Elvis.Ramafamba@treasury.gov.za | AF21: Yolanda Matiwane | AG21: (012) 315 5012 | AH21: Yolanda.Matiwane@treasury.gov.za | AI21: 130015 | AJ21: 135897 | AK21: 141996 | AL21: 85986 | AM21: 89873 | AN21: 93909 | AS21: Judicial Inspectorate for Correctional Services | AT21: 130015 | AU21: 135897 | AV21: 141996 | AY21: Judicial Inspectorate for Correctional Services | AZ21: 85986 | BA21: 89873 | BB21: 93909
Z22: 19 | AA22: 25 | AB22: Justice and Constitutional Development | AC22: Werner Krause | AD22: (012) 315 5211 | AE22: Werner.Krause@treasury.gov.za | AF22: Siphamandla Khumalo | AG22: (012)315 5759 | AH22: siphamandla.khumalo@treasury.gov.za | AI22: 26540032 | AJ22: 27704227 | AK22: 28947913 | AL22: 16431451 | AM22: 17174746 | AN22: 17945743 | AS22: Justice and Constitutional Development | AT22: 26540032 | AU22: 27704227 | AV22: 28947913 | AY22: Justice and Constitutional Development | AZ22: 16431451 | BA22: 17174746 | BB22: 17945743
Z23: 20 | AA23: 42 | AB23: Land Reform and Rural Development | AC23: Bothwell Deka | AD23: (012) 395 6784 | AE23: Bothwell.Deka@treasury.gov.za | AF23: Humbelani Ramuedzisi | AG23: (012) 315 5320 | AH23: Humbelani.Ramuedzisi@treasury.gov.za | AI23: 10336650 | AJ23: 10795054 | AK23: 11279660 | AL23: 2843856 | AM23: 2971624 | AN23: 3105025 | AS23: Land Reform and Rural Development | AT23: 10336650 | AU23: 10795054 | AV23: 11279660 | AY23: Land Reform and Rural Development | AZ23: 2843856 | BA23: 2971624 | BB23: 3105025
Z24: 21 | AA24: 26 | AB24: Military Veterans | AC24: Lesiba Ledwaba | AD24: (012) 315 6660 | AE24: Lesiba.Ledwaba@treasury.gov.za | AF24: Sesethu Mazoza | AG24: (012) 315 5106 | AH24: Sesethu.Mazoza@treasury.gov.za | AI24: 916250 | AJ24: 955618 | AK24: 998511 | AL24: 158492 | AM24: 167683 | AN24: 175211 | AS24: Military Veterans | AT24: 916250 | AU24: 955618 | AV24: 998511 | AY24: Military Veterans | AZ24: 158492 | BA24: 167683 | BB24: 175211
Z25: 22 | AA25: 34 | AB25: Mineral and Petroleum Resources | AC25: Rezah Atcha | AD25: (012) 315 5287 | AE25: Rezah.Atcha@treasury.gov.za | AF25: Portia Thebe | AG25: (012) 315 5855 | AH25: Portia.Thebe@treasury.gov.za | AI25: 2866803 | AJ25: 2996717 | AK25: 3131240 | AL25: 947521 | AM25: 990787 | AN25: 1035265 | AS25: Mineral and Petroleum Resources | AT25: 2866803 | AU25: 2996717 | AV25: 3131240 | AY25: Mineral and Petroleum Resources | AZ25: 947521 | BA25: 990787 | BB25: 1035265
Z26: 23 | AA26: 7 | AB26: National School of Government | AC26: George Tembo | AD26: (012) 315 5514 | AE26: George.Tembo@treasury.gov.za | AF26: Mercy Mhlophe | AG26: (012) 315 5598 | AH26: mercy.mhlope@treasury.gov.za | AI26: 239423 | AJ26: 250250 | AK26: 261485 | AL26: 69511 | AM26: 72656 | AN26: 75919 | AS26: National School of Government | AT26: 239423 | AU26: 250250 | AV26: 261485 | AY26: National School of Government | AZ26: 69511 | BA26: 72656 | BB26: 75919
Z27: 24 | AA27: 8 | AB27: National Treasury | AC27: Mokgatla Tema | AD27: (012) 315 5948 | AE27: Mokgatla.Tema@treasury.gov.za | AF27: Rhoda Marais | AG27: (012) 315 5906 | AH27: Rhoda.Marais@treasury.gov.za | AI27: 1164273225 | AJ27: 1227327133 | AK27: 1285365801 | AL27: 1147834 | AM27: 1200212 | AN27: 1254091 | AS27: National Treasury | AT27: 1164273225 | AU27: 1227327133 | AV27: 1285365801 | AY27: National Treasury | AZ27: 1147834 | BA27: 1200212 | BB27: 1254091
Z28: 25 | AA28: 27 | AB28: Office of the Chief Justice | AC28: Elvis Ramafamba | AD28: (012) 315 5204 | AE28: Elvis.Ramafamba@treasury.gov.za | AF28: Yolanda Matiwane | AG28: (012) 315 5012 | AH28: Yolanda.Matiwane@treasury.gov.za | AI28: 2903723 | AJ28: 3066131 | AK28: 3203773 | AL28: 2280480 | AM28: 2415602 | AN28: 2524040 | AS28: Office of the Chief Justice | AT28: 2903723 | AU28: 3066131 | AV28: 3203773 | AY28: Office of the Chief Justice | AZ28: 2280480 | BA28: 2415602 | BB28: 2524040
Z29: 26 | AA29: 2 | AB29: Parliament | AC29: Viwe Sobudula | AD29: (012) 315 5015 | AE29: Viwe.Sobudula@treasury.gov.za | AF29: Maggy Makoka | AG29: (012) 315 5468 | AH29: Maggy.Mokoka@Treasury.gov.za | AI29: 3352019 | AJ29: 3576068 | AK29: 3736602 | AL29: 1917037 | AM29: 2076189 | AN29: 2169392 | AS29: Parliament | AT29: 3352019 | AU29: 3576068 | AV29: 3736602 | AY29: Parliament | AZ29: 1917037 | BA29: 2076189 | BB29: 2169392
Z30: 27 | AA30: 9 | AB30: Planning, Monitoring and Evaluation | AC30: Mokgatla Tema | AD30: (012) 315 5948 | AE30: Mokgatla.Tema@treasury.gov.za | AF30: Thobeka Mbonambi | AG30: (012) 395 6719 | AH30: Thobeka.Mbonambi@treasury.gov.za | AI30: 528089 | AJ30: 552054 | AK30: 576832 | AL30: 388800 | AM30: 406385 | AN30: 424628 | AS30: Planning, Monitoring and Evaluation | AT30: 528089 | AU30: 552054 | AV30: 576832 | AY30: Planning, Monitoring and Evaluation | AZ30: 388800 | BA30: 406385 | BB30: 424628
Z31: 28 | AA31: 28 | AB31: Police | AC31: Velisubuhle Buti | AD31: (012) 395 6709 | AE31: Velisubuhle.Buti@treasury.gov.za | AF31: Mmathaphelo Maphangela | AG31: (012) 406 9013 | AH31: Mmathaphelo.Maphangela@treasury.gov.za | AI31: 126628815 | AJ31: 131936310 | AK31: 137859102 | AL31: 102552388 | AM31: 106948397 | AN31: 111749449 | AS31: Police | AT31: 126628815 | AU31: 131936310 | AV31: 137859102 | AY31: Police | AZ31: 102552388 | BA31: 106948397 | BB31: 111749449
Z32: 29 | AA32: 10 | AB32: Electricity and Energy | AC32: Rezah Atcha | AD32: (012) 315 5287 | AE32: Rezah.Atcha@treasury.gov.za | AF32: Nomagugu Madikane | AG32: (012) 315 5312 | AH32: Nomagugu.Madikane@treasury.gov.za | AI32: 6879225 | AJ32: 7143092 | AK32: 7031167 | AL32: 387734 | AM32: 404921 | AN32: 423100 | AS32: Electricity and Energy | AT32: 6879225 | AU32: 7143092 | AV32: 7031167 | AY32: Electricity and Energy | AZ32: 387734 | BA32: 404921 | BB32: 423100
Z33: 30 | AA33: 11 | AB33: Public Service and Administration | AC33: George Tembo | AD33: (012) 315 5514 | AE33: George.Tembo@treasury.gov.za | AF33: Uvadhya Singh | AG33: (012) 315 9030 | AH33: Uvadhya.Singh@treasury.gov.za | AI33: 591887 | AJ33: 618650 | AK33: 646417 | AL33: 321974 | AM33: 336536 | AN33: 351644 | AS33: Public Service and Administration | AT33: 591887 | AU33: 618650 | AV33: 646417 | AY33: Public Service and Administration | AZ33: 321974 | BA33: 336536 | BB33: 351644
Z34: 31 | AA34: 12 | AB34: Public Service Commission | AC34: George Tembo | AD34: (012) 315 5514 | AE34: George.Tembo@treasury.gov.za | AF34: Mercy Mhlophe | AG34: (012) 315 5598 | AH34: mercy.mhlope@treasury.gov.za | AI34: 316793 | AJ34: 331116 | AK34: 345974 | AL34: 239126 | AM34: 249938 | AN34: 261157 | AS34: Public Service Commission | AT34: 316793 | AU34: 331116 | AV34: 345974 | AY34: Public Service Commission | AZ34: 239126 | BA34: 249938 | BB34: 261157
Z35: 32 | AA35: 13 | AB35: Public Works and Infrastructure | AC35: George Tembo | AD35: (012) 315 5514 | AE35: George.Tembo@treasury.gov.za | AF35: Uvadhya Singh | AG35: (012) 315 9030 | AH35: Uvadhya.Singh@treasury.gov.za | AI35: 7960998 | AJ35: 8317853 | AK35: 8691249 | AL35: 683137 | AM35: 713274 | AN35: 745293 | AS35: Public Works and Infrastructure | AT35: 7960998 | AU35: 8317853 | AV35: 8691249 | AY35: Public Works and Infrastructure | AZ35: 683137 | BA35: 713274 | BB35: 745293
Z36: 33 | AA36: 35 | AB36: Science, Technology and Innovation | AC36: Ashley Ramasimu | AD36: (012) 315 5166 | AE36: Ashley.Ramasimu@treasury.gov.za | AF36: Ntandokazi Makaula | AG36: (012) 395 6667 | AH36: Ntandokazi.Makaula@treasury.gov.za | AI36: 9483582 | AJ36: 9912425 | AK36: 10357402 | AL36: 404427 | AM36: 422717 | AN36: 441695 | AS36: Science, Technology and Innovation | AT36: 9483582 | AU36: 9912425 | AV36: 10357402 | AY36: Science, Technology and Innovation | AZ36: 404427 | BA36: 422717 | BB36: 441695
Z37: 34 | AA37: 36 | AB37: Small Business Development | AC37: Bothwell Deka | AD37: (012) 395 6784 | AE37: Bothwell.Deka@treasury.gov.za | AF37: Humbelani Ramuedzisi | AG37: (012) 315 5320 | AH37: Humbelani.Ramuedzisi@treasury.gov.za | AI37: 3050011 | AJ37: 3187891 | AK37: 3331003 | AL37: 277074 | AM37: 289603 | AN37: 302602 | AS37: Small Business Development | AT37: 3050011 | AU37: 3187891 | AV37: 3331003 | AY37: Small Business Development | AZ37: 277074 | BA37: 289603 | BB37: 302602
Z38: 35 | AA38: 19 | AB38: Social Development | AC38: Yusuf Mayet | AD38: (012) 315 5189 | AE38: Yusuf.Mayet@treasury.gov.za | AF38: Lindi Mzankomo | AG38: (012) 315 5256 | AH38: Lindi.Mzankomo@treasury.gov.za | AI38: 269075475 | AJ38: 281243287 | AK38: 293868649 | AL38: 610925 | AM38: 645433 | AN38: 674405 | AS38: Social Development | AT38: 269075475 | AU38: 281243287 | AV38: 293868649 | AY38: Social Development | AZ38: 610925 | BA38: 645433 | BB38: 674405
Z39: 36 | AA39: 37 | AB39: Sport, Arts and Culture | AC39: Judy Naidoo | AD39: (012) 315 5269 | AE39: Judy.Naidoo@treasury.gov.za | AF39: Mabele Mdhluli | AG39: (012) 315 5573 | AH39: Mabele.Mdhluli@treasury.gov.za | AI39: 6234845 | AJ39: 6516798 | AK39: 6809333 | AL39: 454636 | AM39: 475090 | AN39: 496417 | AS39: Sport, Arts and Culture | AT39: 6234845 | AU39: 6516798 | AV39: 6809333 | AY39: Sport, Arts and Culture | AZ39: 454636 | BA39: 475090 | BB39: 496417
Z40: 37 | AA40: 14 | AB40: Statistics South Africa | AC40: Mokgatla Tema | AD40: (012) 315 5948 | AE40: Mokgatla.Tema@treasury.gov.za | AF40: Thobeka Mbonambi | AG40: (012) 395 6719 | AH40: Thobeka.Mbonambi@treasury.gov.za | AI40: 2905622 | AJ40: 3037045 | AK40: 3173373 | AL40: 1910054 | AM40: 1996462 | AN40: 2086084 | AS40: Statistics South Africa | AT40: 2905622 | AU40: 3037045 | AV40: 3173373 | AY40: Statistics South Africa | AZ40: 1910054 | BA40: 1996462 | BB40: 2086084
Z41: 38 | AA41: 1 | AB41: The Presidency | AC41: Viwe Sobudula | AD41: (012) 315 5015 | AE41: Viwe.Sobudula@treasury.gov.za | AF41: Yamkela Ngewu | AG41: (012) 315 5936 | AH41: Yamkela.Ngewu@treasury.gov.za | AI41: 778336 | AJ41: 793428 | AK41: 829051 | AL41: 480392 | AM41: 501779 | AN41: 524305 | AS41: The Presidency | AT41: 778336 | AU41: 793428 | AV41: 829051 | AY41: The Presidency | AZ41: 480392 | BA41: 501779 | BB41: 524305
Z42: 39 | AA42: 38 | AB42: Tourism | AC42: Rudzani Sikwari | AD42: (012) 315 5812 | AE42: Rudzani.Sikwari@treasury.gov.za | AF42: Phumelele Gulukunqu | AG42: (012) 315 5539 | AH42: Phumelele.Gulukunqu@treasury.gov.za | AI42: 2547787 | AJ42: 2663029 | AK42: 2782575 | AL42: 451784 | AM42: 472215 | AN42: 493413 | AS42: Tourism | AT42: 2547787 | AU42: 2663029 | AV42: 2782575 | AY42: Tourism | AZ42: 451784 | BA42: 472215 | BB42: 493413
Z43: 40 | AA43: 39 | AB43: Trade, Industry and Competition | AC43: Rudzani Sikhwari | AD43: (012) 315 5823 | AE43: rudzani.sikhwari@treasury.gov.za | AF43: Tumelo Movare | AG43: (012) 315 5279 | AH43: Tumelo.Movare@treasury.gov.za | AI43: 10235232 | AJ43: 10698079 | AK43: 11178319 | AL43: 1190598 | AM43: 1244447 | AN43: 1300313 | AS43: Trade, Industry and Competition | AT43: 10235232 | AU43: 10698079 | AV43: 11178319 | AY43: Trade, Industry and Competition | AZ43: 1190598 | BA43: 1244447 | BB43: 1300313
Z44: 41 | AA44: 15 | AB44: Traditional Affairs | AC44: Bongani Daka | AD44: (012) 315 5586 | AE44: Bongani.Daka@treasury.gov.za | AF44: Iqbal Mahomed Alli | AG44: (012) 315 5809 | AH44: Iqbal.Mahomed-Alli@treasury.gov.za | AI44: 204897 | AJ44: 214164 | AK44: 223773 | AL44: 111198 | AM44: 116228 | AN44: 121443 | AS44: Traditional Affairs | AT44: 204897 | AU44: 214164 | AV44: 223773 | AY44: Traditional Affairs | AZ44: 111198 | BA44: 116228 | BB44: 121443
Z45: 42 | AA45: 40 | AB45: Transport | AC45: Pebetse Maleka | AD45: (012) 315 5566 | AE45: Pebetse.Maleka@treasury.gov.za | AF45: Luyolo Ntlangula | AG45: (012) 315-5571 | AH45: luyolo.ntangula@treasury.gov.za | AI45: 96411721 | AJ45: 95209569 | AK45: 102814699 | AL45: 664561 | AM45: 694610 | AN45: 725795 | AS45: Transport | AT45: 96411721 | AU45: 95209569 | AV45: 102814699 | AY45: Transport | AZ45: 664561 | BA45: 694610 | BB45: 725795
Z46: 43 | AA46: 41 | AB46: Water and Sanitation | AC46: Bongani Daka | AD46: (012) 315 5586 | AE46: Bongani.Daka@treasury.gov.za | AF46: Iqbal Mahomed Alli | AG46: (012) 315 5809 | AH46: Iqbal.Mahomed-Alli@treasury.gov.za | AI46: 24999600 | AJ46: 23262829 | AK46: 23575709 | AL46: 2195116 | AM46: 2294407 | AN46: 2397406 | AS46: Water and Sanitation | AT46: 24999600 | AU46: 23262829 | AV46: 23575709 | AY46: Water and Sanitation | AZ46: 2195116 | BA46: 2294407 | BB46: 2397406
Z47: 44 | AA47: 20 | AB47: Women, Youth and Persons with Disabilities | AC47: Yusuf Mayet | AD47: (012) 315 5189 | AE47: Yusuf.Mayet@treasury.gov.za | AF47: Lindi Mzankomo | AG47: (012) 315 5256 | AH47: Lindi.Mzankomo@treasury.gov.za | AI47: 843822 | AJ47: 881964 | AK47: 921558 | AL47: 145859 | AM47: 152455 | AN47: 159298 | AS47: Women, Youth and Persons with Disabilities | AT47: 843822 | AU47: 881964 | AV47: 921558 | AY47: Women, Youth and Persons with Disabilities | AZ47: 145859 | BA47: 152455 | BB47: 159298
AI48: =SUM(AI4:AI47) -> 2336952951 | AJ48: 2442389902 | AK48: 2557715109 | AL48: 229062298 | AM48: 239199005 | AN48: 249936964
AI49: =AI48-SUM(AT$4:AT$47) -> 0 | AJ49: 0 | AK49: 0 | AL49: =AL48-SUM(AZ$4:AZ$47) -> 0 | AM49: 0 | AN49: 0

Sheet Notes
B42: Link to 2026 MTEF Guidelines
B43: http://www.treasury.gov.za/publications/guidelines/default.aspx
R57: Click "Enable Content"
R69: Tick "Ignore Privacy Levels" box
R72: Click "Save"

Sheet Index

Sheet Pivot % growth
B14: Econ3 | C14: (All)
B16: Row Labels | C16: 2025/26 Revised baseline | D16: 2026/27 Revised baseline | E16: 2027/28 Revised baseline | F16: 2028/29 Revised baseline | G16: 2026/27 adjustment | H16: 2027/28 adjustment | I16: 2028/29 adjustment | J16: 2026/27 % adjustment | K16: 2027/28 % adjustment | L16: 2028/29 % adjustment | M16: % YoY 2026/27 | N16: % YoY 2027/28 | O16: % YoY 2028/29 | P16: Ave Ann growth History | Q16: Ave Ann growth MTEF
B17: Administration | C17: 516194 | D17: 543412 | E17: 567273 | F17: 592736 | G17: 0 | H17: 0 | I17: 0 | J17: 0 | K17: 0 | L17: 0 | M17: 0.05272823783 | N17: 0.04390959346 | O17: 0.04488667714 | P17: -0.01117900915 | Q17: 0.04716741
B18: Current payments | C18: 507437 | D18: 534254 | E18: 557701 | F18: 582734 | G18: 0 | H18: 0 | I18: 0 | J18: 0 | K18: 0 | L18: 0 | M18: 0.05284793974 | N18: 0.04388736444 | O18: 0.04488605902 | P18: -0.006419308114 | Q18: 0.04719945873
B19: Transfers and subsidies | C19: 114 | D19: 119 | E19: 124 | F19: 130 | G19: 0 | H19: 0 | I19: 0 | J19: 0 | K19: 0 | L19: 0 | M19: 0.04385964912 | N19: 0.04201680672 | O19: 0.04838709677 | P19: -0.5449702132 | Q19: 0.04475109177
B20: Payments for capital assets | C20: 8643 | D20: 9039 | E20: 9448 | F20: 9872 | G20: 0 | H20: 0 | I20: 0 | J20: 0 | K20: 0 | L20: 0 | M20: 0.04581742451 | N20: 0.04524836818 | O20: 0.04487722269 | P20: -0.1646087214 | Q20: 0.04531426695
B21: Payments for financial assets | C21: 0 | D21: 0 | E21: 0 | F21: 0 | G21: 0 | H21: 0 | I21: 0 | J21: 0 | K21: 0 | L21: 0 | M21: 0 | N21: 0 | O21: 0 | P21: -1 | Q21: 0
B22: Recreation Development and Sport Promotion | C22: 1281148 | D22: 1355441 | E22: 1417175 | F22: 1480788 | G22: 0 | H22: 0 | I22: 0 | J22: 0 | K22: 0 | L22: 0 | M22: 0.05798939701 | N22: 0.04554532436 | O22: 0.04488718754 | P22: -0.01419032618 | Q22: 0.04945670786
B23: Current payments | C23: 162000 | D23: 172213 | E23: 177894 | F23: 185876 | G23: 0 | H23: 0 | I23: 0 | J23: 0 | K23: 0 | L23: 0 | M23: 0.06304320988 | N23: 0.03298821808 | O23: 0.04486941662 | P23: 0.004972921309 | Q23: 0.04689413754
B24: Transfers and subsidies | C24: 960652 | D24: 1126658 | E24: 1172345 | F24: 1224971 | G24: 0 | H24: 0 | I24: 0 | J24: 0 | K24: 0 | L24: 0 | M24: 0.1728055529 | N24: 0.04055090365 | O24: 0.04488951631 | P24: -0.04653845763 | Q24: 0.08439266684
B25: Payments for capital assets | C25: 158496 | D25: 56570 | E25: 66936 | F25: 69941 | G25: 0 | H25: 0 | I25: 0 | J25: 0 | K25: 0 | L25: 0 | M25: -0.6430824753 | N25: 0.1832420011 | O25: 0.04489362974 | P25: 0.3172041959 | Q25: -0.2386730964
B26: Payments for financial assets | C26: 0 | D26: 0 | E26: 0 | F26: 0 | G26: 0 | H26: 0 | I26: 0 | J26: 0 | K26: 0 | L26: 0 | M26: 0 | N26: 0 | O26: 0 | P26: -1 | Q26: 0
B27: Arts and Culture Promotion and Development | C27: 1725531 | D27: 1415542 | E27: 1477492 | F27: 1543816 | G27: 0 | H27: 0 | I27: 0 | J27: 0 | K27: 0 | L27: 0 | M27: -0.1796484676 | N27: 0.04376415536 | O27: 0.04488958316 | P27: -0.003368978022 | Q27: -0.03641301846
B28: Current payments | C28: 280756 | D28: 265521 | E28: 279371 | F28: 291912 | G28: 0 | H28: 0 | I28: 0 | J28: 0 | K28: 0 | L28: 0 | M28: -0.05426420094 | N28: 0.05216159927 | O28: 0.04489012818 | P28: 0.0207266876 | Q28: 0.01307352839
B29: Transfers and subsidies | C29: 1444775 | D29: 1150021 | E29: 1198121 | F29: 1251904 | G29: 0 | H29: 0 | I29: 0 | J29: 0 | K29: 0 | L29: 0 | M29: -0.2040137738 | N29: 0.04182532319 | O29: 0.04488945607 | P29: -0.007729091758 | Q29: -0.0466399781
B30: Payments for capital assets | C30: 0 | D30: 0 | E30: 0 | F30: 0 | G30: 0 | H30: 0 | I30: 0 | J30: 0 | K30: 0 | L30: 0 | M30: 0 | N30: 0 | O30: 0 | P30: 0 | Q30: 0
B31: Payments for financial assets | C31: 0 | D31: 0 | E31: 0 | F31: 0 | G31: 0 | H31: 0 | I31: 0 | J31: 0 | K31: 0 | L31: 0 | M31: 0 | N31: 0 | O31: 0 | P31: -1 | Q31: 0
B32: Heritage Promotion and Preservation | C32: 2787071 | D32: 2920450 | E32: 3054858 | F32: 3191993 | G32: 0 | H32: 0 | I32: 0 | J32: 0 | K32: 0 | L32: 0 | M32: 0.04785633376 | N32: 0.04602304439 | O32: 0.04489079361 | P32: 0.02050736786 | Q32: 0.04625601056
B33: Current payments | C33: 109993 | D33: 120170 | E33: 127942 | F33: 133688 | G33: 0 | H33: 0 | I33: 0 | J33: 0 | K33: 0 | L33: 0 | M33: 0.09252406971 | N33: 0.06467504369 | O33: 0.04491097529 | P33: 0.01765510557 | Q33: 0.06719175092
B34: Transfers and subsidies | C34: 2677078 | D34: 2800280 | E34: 2926916 | F34: 3058305 | G34: 0 | H34: 0 | I34: 0 | J34: 0 | K34: 0 | L34: 0 | M34: 0.04602107223 | N34: 0.0452226206 | O34: 0.04488991143 | P34: 0.02068172566 | Q34: 0.04537776034
B35: Payments for capital assets | C35: 0 | D35: 0 | E35: 0 | F35: 0 | G35: 0 | H35: 0 | I35: 0 | J35: 0 | K35: 0 | L35: 0 | M35: 0 | N35: 0 | O35: 0 | P35: 0 | Q35: 0
B36: Payments for financial assets | C36: 0 | D36: 0 | E36: 0 | F36: 0 | G36: 0 | H36: 0 | I36: 0 | J36: 0 | K36: 0 | L36: 0 | M36: 0 | N36: 0 | O36: 0 | P36: -1 | Q36: 0
B37: Grand Total | C37: 6309944 | D37: 6234845 | E37: 6516798 | F37: 6809333 | G37: 0 | H37: 0 | I37: 0 | J37: 0 | K37: 0 | L37: 0 | M37: -0.01190169041 | N37: 0.04522213463 | O37: 0.04488937665 | P37: 0.003901275905 | Q37: 0.02571417201

Sheet Pivot_T
B11: Econ4 | C11: (All)
B12: DOR | C12: (All)
B13: Econ2 | C13: (All)
B14: Econ3 | C14: (All)
C16: Column Labels
C17: 2026/27 | E17: 2027/28 | G17: 2028/29
B18: Row Labels | C18: Baseline | D18: Revised baseline | E18: Baseline | F18: Revised baseline | G18: Baseline | H18: Revised baseline
B19: Value
B20: Administration | C20: 543412 | D20: 543412 | E20: 567273 | F20: 567273 | G20: 592736 | H20: 592736
B21: Sum of Value
B22: Administration | C22: 1 | D22: 1 | E22: 1 | F22: 1 | G22: 1 | H22: 1
B23: Total Value | C23: 543412 | D23: 543412 | E23: 567273 | F23: 567273 | G23: 592736 | H23: 592736
B24: Total Sum of Value | C24: 1 | D24: 1 | E24: 1 | F24: 1 | G24: 1 | H24: 1

Sheet Service delivery impact
B15: Note: Data in the table below is sourced from the individual SRT sheets. Any adjustments should be made on the SRT sheets. Ajustments made directly on this table will be over-written when the data is refreshed! …remember to refresh.
B17: Impact area | C17: Unit no | D17: Unit name | E17: Comment

Sheet Performance impact
B15: Note: Data in the table below is sourced from the individual SRT sheets. Any adjustments should be made on the SRT sheets. Ajustments made directly on this table will be over-written when the data is refreshed! …remember to refresh.
B17: Impact area | C17: Unit no | D17: Unit name | E17: Performance indicator | F17: 2025/26 Current performance | G17: 2025/26 Performance @ benchmark level | H17: 2025/26 Change | I17: 2026/27 Original target | J17: 2026/27 Revised target | K17: 2026/27 Change | L17: 2027/28 Original target | M17: 2027/28 Revised target | N17: 2027/28 Change | O17: 2028/29 Original target | P17: 2028/29 Revised target | Q17: 2028/29 Change | R17: Comment

Sheet Pivot Infra impact
B14: Impact area | C14: (All)
B16: Value | C16: Column Labels
C17: 2025/26 | E17: 2026/27 | G17: 2027/28 | I17: 2028/29
B18: Row Labels | C18: Current Number | D18: Change | E18: Original amount | F18: Change | G18: Original amount | H18: Change | I18: Original amount | J18: Change
B19: (blank) | C19: 0 | D19: 0 | E19: 0 | F19: 0 | G19: 0 | H19: 0 | I19: 0 | J19: 0
B20: Grand Total | C20: 0 | D20: 0 | E20: 0 | F20: 0 | G20: 0 | H20: 0 | I20: 0 | J20: 0

Sheet Pivot Personnel impact
B16: Value | C16: Column Labels
C17: 2025/26 | D17: 2026/27 | E17: 2027/28 | F17: 2028/29
B18: Row Labels | C18: Change in number | D18: Change in number | E18: Change in number | F18: Change in number
B19: Levels 01 - 06 | C19: 0 | D19: 0 | E19: 0 | F19: 0
B20: Levels 07 - 12 | C20: 0 | D20: 0 | E20: 0 | F20: 0
B21: Levels 13 - 16 | C21: 0 | D21: 0 | E21: 0 | F21: 0
B22: Other | C22: 0 | D22: 0 | E22: 0 | F22: 0
B23: Grand Total | C23: 0 | D23: 0 | E23: 0 | F23: 0

Sheet Pivot HRBP
B12: Salary level | C12: (All)
B13: Programme No | C13: Prog 04
B15: Number | C15: Columns
C16: 2024/25 | I16: 2025/26 | R16: 2026/27 | AA16: 2027/28 | AJ16: 2028/29
B17: Row Labels | C17: Unit Costs | D17: Once-off Payments per person | E17: Establishment: Number of funded posts additional to the establishment | F17: FTE Headcount | G17: Estimated Outcome | H17: Establishment: Number of funded posts as at 31 March 2025 | I17: Initial Headcount | J17: Unit Costs | K17: Once-off Payments per person | L17: Vacant funded posts to be filled | M17: Headcount reductions to be made | N17: Revised Headcount | O17: Cost of vacant posts to be filled | P17: Savings from headcount reductions | Q17: Revised Estimate | R17: Initial Headcount | S17: Unit Costs | T17: Once-off Payments per person | U17: Vacant funded posts to be filled | V17: Headcount reductions to be made | W17: Revised Headcount | X17: Cost of vacant posts to be filled | Y17: Savings from headcount reductions | Z17: MTEF Estimate | AA17: Initial Headcount | AB17: Unit Costs | AC17: Once-off Payments per person | AD17: Vacant funded posts to be filled | AE17: Headcount reductions to be made | AF17: Revised Headcount | AG17: Cost of vacant posts to be filled | AH17: Savings from headcount reductions | AI17: MTEF Estimate | AJ17: Initial Headcount | AK17: Unit Costs | AL17: Once-off Payments per person | AM17: Vacant funded posts to be filled | AN17: Headcount reductions to be made | AO17: Revised Headcount | AP17: Cost of vacant posts to be filled | AQ17: Savings from headcount reductions | AR17: MTEF Estimate
B18: Levels 01 - 06 | C18: 0 | D18: 0 | E18: 0 | F18: 0 | G18: 0 | H18: 0 | I18: 0 | J18: 0 | K18: 0 | L18: 0 | M18: 0 | N18: 0 | O18: 0 | P18: 0 | Q18: 0 | R18: 0 | S18: 0 | T18: 0 | U18: 0 | V18: 0 | W18: 0 | X18: 0 | Y18: 0 | Z18: 0 | AA18: 0 | AB18: 0 | AC18: 0 | AD18: 0 | AE18: 0 | AF18: 0 | AG18: 0 | AH18: 0 | AI18: 0 | AJ18: 0 | AK18: 0 | AL18: 0 | AM18: 0 | AN18: 0 | AO18: 0 | AP18: 0 | AQ18: 0 | AR18: 0
B19: Levels 07 - 12 | C19: 0 | D19: 0 | E19: 0 | F19: 0 | G19: 0 | H19: 0 | I19: 0 | J19: 0 | K19: 0 | L19: 0 | M19: 0 | N19: 0 | O19: 0 | P19: 0 | Q19: 0 | R19: 0 | S19: 0 | T19: 0 | U19: 0 | V19: 0 | W19: 0 | X19: 0 | Y19: 0 | Z19: 0 | AA19: 0 | AB19: 0 | AC19: 0 | AD19: 0 | AE19: 0 | AF19: 0 | AG19: 0 | AH19: 0 | AI19: 0 | AJ19: 0 | AK19: 0 | AL19: 0 | AM19: 0 | AN19: 0 | AO19: 0 | AP19: 0 | AQ19: 0 | AR19: 0
B20: Levels 13 - 16 | C20: 0 | D20: 0 | E20: 0 | F20: 0 | G20: 0 | H20: 0 | I20: 0 | J20: 0 | K20: 0 | L20: 0 | M20: 0 | N20: 0 | O20: 0 | P20: 0 | Q20: 0 | R20: 0 | S20: 0 | T20: 0 | U20: 0 | V20: 0 | W20: 0 | X20: 0 | Y20: 0 | Z20: 0 | AA20: 0 | AB20: 0 | AC20: 0 | AD20: 0 | AE20: 0 | AF20: 0 | AG20: 0 | AH20: 0 | AI20: 0 | AJ20: 0 | AK20: 0 | AL20: 0 | AM20: 0 | AN20: 0 | AO20: 0 | AP20: 0 | AQ20: 0 | AR20: 0
B21: Other | C21: 0 | D21: 0 | E21: 0 | F21: 0 | G21: 0 | H21: 0 | I21: 0 | J21: 0 | K21: 0 | L21: 0 | M21: 0 | N21: 0 | O21: 0 | P21: 0 | Q21: 0 | R21: 0 | S21: 0 | T21: 0 | U21: 0 | V21: 0 | W21: 0 | X21: 0 | Y21: 0 | Z21: 0 | AA21: 0 | AB21: 0 | AC21: 0 | AD21: 0 | AE21: 0 | AF21: 0 | AG21: 0 | AH21: 0 | AI21: 0 | AJ21: 0 | AK21: 0 | AL21: 0 | AM21: 0 | AN21: 0 | AO21: 0 | AP21: 0 | AQ21: 0 | AR21: 0
B22: Grand Total | C22: 0 | D22: 0 | E22: 0 | F22: 0 | G22: 0 | H22: 0 | I22: 0 | J22: 0 | K22: 0 | L22: 0 | M22: 0 | N22: 0 | O22: 0 | P22: 0 | Q22: 0 | R22: 0 | S22: 0 | T22: 0 | U22: 0 | V22: 0 | W22: 0 | X22: 0 | Y22: 0 | Z22: 0 | AA22: 0 | AB22: 0 | AC22: 0 | AD22: 0 | AE22: 0 | AF22: 0 | AG22: 0 | AH22: 0 | AI22: 0 | AJ22: 0 | AK22: 0 | AL22: 0 | AM22: 0 | AN22: 0 | AO22: 0 | AP22: 0 | AQ22: 0 | AR22: 0

Sheet Data
CN1: =SUM(CO1:CR1) -> 0 | CO1: =COUNTIF(Dataset[2025/26 Revised baseline],"<0") -> 0 | CP1: =COUNTIF(Dataset[2026/27 Revised baseline],"<0") -> 0 | CQ1: =COUNTIF(Dataset[2027/28 Revised baseline],"<0") -> 0 | CR1: =COUNTIF(Dataset[2028/29 Revised baseline],"<0") -> 0
AT2: Spending review topics…
AS3: 1 | AT3: Spending review topic 1 | CP3: =COUNTIF(Dataset[2026/27 Revised baseline],"<0") -> 0 | CQ3: =COUNTIF(Dataset[2027/28 Revised baseline],"<0") -> 0 | CR3: =COUNTIF(Dataset[2028/29 Revised baseline],"<0") -> 0
AS4: 2 | AT4: Spending review topic 2
AS5: 3 | AT5: Spending review topic 3
AS6: 4 | AT6: Spending review topic 4 | CP6: =MyYear5 -> 2026/27 | CQ6: =MyYear6 -> 2027/28 | CR6: =MyYear7 -> 2028/29
CN8: Baseline ceiling: | CP8: =INDEX(DeptCeiling,MATCH(MyVoteNo,VoteNoList,0),1) -> 6234845 | CQ8: =INDEX(DeptCeiling,MATCH(MyVoteNo,VoteNoList,0),2) -> 6516798 | CR8: =INDEX(DeptCeiling,MATCH(MyVoteNo,VoteNoList,0),3) -> 6809333
CN9: (Over)/Under | CP9: =CP8-SUM(Dataset[2026/27 Revised baseline]) -> 0 | CQ9: =CQ8-SUM(Dataset[2027/28 Revised baseline]) -> 0 | CR9: =CR8-SUM(Dataset[2028/29 Revised baseline]) -> 0
CN11: CoE budget: | CP11: =INDEX(CoECeiling,MATCH(MyVoteNo,VoteNoList,0),1) -> 454636 | CQ11: =INDEX(CoECeiling,MATCH(MyVoteNo,VoteNoList,0),2) -> 475090 | CR11: =INDEX(CoECeiling,MATCH(MyVoteNo,VoteNoList,0),3) -> 496417
CN12: (Over)/Under | CP12: =CP11-SUMIF(Dataset[Econ3],"Compensation of employees",Dataset[2026/27 Revised baseline]) -> 0 | CQ12: =CQ11-SUMIF(Dataset[Econ3],"Compensation of employees",Dataset[2027/28 Revised baseline]) -> 0 | CR12: =CR11-SUMIF(Dataset[Econ3],"Compensation of employees",Dataset[2028/29 Revised baseline]) -> 0
AI15: =AI18 -> 2021/22 | AJ15: 2022/23 | AK15: 2023/24 | AL15: 2024/25 Main appropriation | AM15: 2024/25 Adjusted appropriation | AN15: 2024/25 Revised estimate | AO15: 2024/25 Preliminary outcome | AP15: 2025/26 Baseline | AQ15: 2026/27 Baseline | AR15: 2027/28 Baseline | AS15: 2028/29 Baseline | AT15: 2026/27 From - Spending review Topic 1 | AU15: 2027/28 From - Spending review Topic 1 | AV15: 2028/29 From - Spending review Topic 1 | AW15: 2026/27 To - Spending review Topic 1 | AX15: 2027/28 To - Spending review Topic 1 | AY15: 2028/29 To - Spending review Topic 1 | AZ15: 2026/27 From - Spending review Topic 2 | BA15: 2027/28 From - Spending review Topic 2 | BB15: 2028/29 From - Spending review Topic 2 | BC15: 2026/27 To - Spending review Topic 2 | BD15: 2027/28 To - Spending review Topic 2 | BE15: 2028/29 To - Spending review Topic 2 | BF15: 2026/27 From - Spending review Topic 3 | BG15: 2027/28 From - Spending review Topic 3 | BH15: 2028/29 From - Spending review Topic 3 | BI15: 2026/27 To - Spending review Topic 3 | BJ15: 2027/28 To - Spending review Topic 3 | BK15: 2028/29 To - Spending review Topic 3 | BL15: 2026/27 From - Spending review Topic 4 | BM15: 2027/28 From - Spending review Topic 4 | BN15: 2028/29 From - Spending review Topic 4 | BO15: =BO18 -> 2026/27 To - Spending review Topic 4 | BP15: 2027/28 To - Spending review Topic 4 | BQ15: 2028/29 To - Spending review Topic 4 | BR15: 2026/27 From - Other reallocations | BS15: 2027/28 From - Other reallocations | BT15: 2028/29 From - Other reallocations | BU15: 2026/27 To - Other reallocations | BV15: 2027/28 To - Other reallocations | BW15: 2028/29 To - Other reallocations | BX15: 2025/26 Targeted savings | BY15: 2026/27 Targeted savings | BZ15: 2027/28 Targeted savings | CA15: 2028/29 Targeted savings | CB15: 2026/27 From - Total | CC15: 2027/28 From - Total | CD15: 2028/29 From - Total | CE15: 2026/27 To - Total | CF15: 2027/28 To - Total | CG15: 2028/29 To - Total | CH15: 2026/27 Total decrease | CI15: 2027/28 Total decrease | CJ15: 2028/29 Total decrease | CK15: 2025/26 Total change | CL15: 2026/27 Total change | CM15: 2027/28 Total change | CN15: 2028/29 Total change | CO15: 2025/26 Revised baseline | CP15: 2026/27 Revised baseline | CQ15: 2027/28 Revised baseline | CR15: 2028/29 Revised baseline | CS15: 2021/22 PEI Actual | CT15: 2022/23 PEI Actual | CU15: 2023/24 PEI Actual | CV15: 2024/25 PEI Preliminary outcome | CW15: 2025/26 PEI Baseline | CX15: 2026/27 PEI Baseline | CY15: 2027/28 PEI Baseline | CZ15: 2028/29 PEI Baseline | DA15: =DA18 -> 2021/22 Other employment programmes Actual | DB15: 2022/23 Other employment programmes Actual | DC15: 2023/24 Other employment programmes Actual | DD15: 2024/25 Other employment programmes Preliminary outcome | DE15: 2025/26 Other employment programmes Baseline | DF15: 2026/27 Other employment programmes Baseline | DG15: 2027/28 Other employment programmes Baseline | DH15: 2028/29 Other employment programmes Baseline | DI15: =DI18 -> 2021/22 Sector programmes Actual | DJ15: 2022/23 Sector programmes Actual | DK15: 2023/24 Sector programmes Actual | DL15: 2024/25 Sector programmes Preliminary outcome | DM15: 2025/26 Sector programmes Baseline | DN15: 2026/27 Sector programmes Baseline | DO15: 2027/28 Sector programmes Baseline | DP15: 2028/29 Sector programmes Baseline
AH16: Subtotal: | AI16: =SUBTOTAL(9,Dataset[2021/22]) -> 5643660 | AJ16: =SUBTOTAL(9,Dataset[2022/23]) -> 6236666 | AK16: =SUBTOTAL(9,Dataset[2023/24]) -> 6065375 | AL16: =SUBTOTAL(9,Dataset[2024/25 Main appropriation]) -> 6105744 | AM16: =SUBTOTAL(9,Dataset[2024/25 Adjusted appropriation]) -> 6105744 | AN16: =SUBTOTAL(9,Dataset[2024/25 Revised estimate]) -> 6090744 | AO16: =SUBTOTAL(9,Dataset[2024/25 Preliminary outcome]) -> 740251 | AP16: =SUBTOTAL(9,Dataset[2025/26 Baseline]) -> 6309944 | AQ16: =SUBTOTAL(9,Dataset[2026/27 Baseline]) -> 6234845 | AR16: =SUBTOTAL(9,Dataset[2027/28 Baseline]) -> 6516798 | AS16: =SUBTOTAL(9,Dataset[2028/29 Baseline]) -> 6809333 | AT16: =SUBTOTAL(9,Dataset[2026/27 From - Spending review Topic 1]) -> 0 | AU16: =SUBTOTAL(9,Dataset[2027/28 From - Spending review Topic 1]) -> 0 | AV16: =SUBTOTAL(9,Dataset[2028/29 From - Spending review Topic 1]) -> 0 | AW16: =SUBTOTAL(9,Dataset[2026/27 To - Spending review Topic 1]) -> 0 | AX16: =SUBTOTAL(9,Dataset[2027/28 To - Spending review Topic 1]) -> 0 | AY16: =SUBTOTAL(9,Dataset[2028/29 To - Spending review Topic 1]) -> 0 | AZ16: =SUBTOTAL(9,Dataset[2026/27 From - Spending review Topic 2]) -> 0 | BA16: =SUBTOTAL(9,Dataset[2027/28 From - Spending review Topic 2]) -> 0 | BB16: =SUBTOTAL(9,Dataset[2028/29 From - Spending review Topic 2]) -> 0 | BC16: =SUBTOTAL(9,Dataset[2026/27 To - Spending review Topic 2]) -> 0 | BD16: =SUBTOTAL(9,Dataset[2027/28 To - Spending review Topic 2]) -> 0 | BE16: =SUBTOTAL(9,Dataset[2028/29 To - Spending review Topic 2]) -> 0 | BF16: =SUBTOTAL(9,Dataset[2026/27 From - Spending review Topic 3]) -> 0 | BG16: =SUBTOTAL(9,Dataset[2027/28 From - Spending review Topic 3]) -> 0 | BH16: =SUBTOTAL(9,Dataset[2028/29 From - Spending review Topic 3]) -> 0 | BI16: =SUBTOTAL(9,Dataset[2026/27 To - Spending review Topic 3]) -> 0 | BJ16: =SUBTOTAL(9,Dataset[2027/28 To - Spending review Topic 3]) -> 0 | BK16: =SUBTOTAL(9,Dataset[2028/29 To - Spending review Topic 3]) -> 0 | BL16: =SUBTOTAL(9,Dataset[2026/27 From - Spending review Topic 4]) -> 0 | BM16: =SUBTOTAL(9,Dataset[2027/28 From - Spending review Topic 4]) -> 0 | BN16: =SUBTOTAL(9,Dataset[2028/29 From - Spending review Topic 4]) -> 0 | BO16: =SUBTOTAL(9,Dataset[2026/27 To - Spending review Topic 4]) -> 0 | BP16: =SUBTOTAL(9,Dataset[2027/28 To - Spending review Topic 4]) -> 0 | BQ16: =SUBTOTAL(9,Dataset[2028/29 To - Spending review Topic 4]) -> 0 | BR16: =SUBTOTAL(9,Dataset[2026/27 From - Other reallocations]) -> 0 | BS16: =SUBTOTAL(9,Dataset[2027/28 From - Other reallocations]) -> 0 | BT16: =SUBTOTAL(9,Dataset[2028/29 From - Other reallocations]) -> 0 | BU16: =SUBTOTAL(9,Dataset[2026/27 To - Other reallocations]) -> 0 | BV16: =SUBTOTAL(9,Dataset[2027/28 To - Other reallocations]) -> 0 | BW16: =SUBTOTAL(9,Dataset[2028/29 To - Other reallocations]) -> 0 | BX16: =SUBTOTAL(9,Dataset[2025/26 Targeted savings]) -> 0 | BY16: =SUBTOTAL(9,Dataset[2026/27 Targeted savings]) -> 0 | BZ16: =SUBTOTAL(9,Dataset[2027/28 Targeted savings]) -> 0 | CA16: =SUBTOTAL(9,Dataset[2028/29 Targeted savings]) -> 0 | CB16: =SUBTOTAL(9,Dataset[2026/27 From - Total]) -> 0 | CC16: =SUBTOTAL(9,Dataset[2027/28 From - Total]) -> 0 | CD16: =SUBTOTAL(9,Dataset[2028/29 From - Total]) -> 0 | CE16: =SUBTOTAL(9,Dataset[2026/27 To - Total]) -> 0 | CF16: =SUBTOTAL(9,Dataset[2027/28 To - Total]) -> 0 | CG16: =SUBTOTAL(9,Dataset[2028/29 To - Total]) -> 0 | CH16: =SUBTOTAL(9,Dataset[2026/27 Total decrease]) -> 0 | CI16: =SUBTOTAL(9,Dataset[2027/28 Total decrease]) -> 0 | CJ16: =SUBTOTAL(9,Dataset[2028/29 Total decrease]) -> 0 | CK16: =SUBTOTAL(9,Dataset[2025/26 Total change]) -> 0 | CL16: =SUBTOTAL(9,Dataset[2026/27 Total change]) -> 0 | CM16: =SUBTOTAL(9,Dataset[2027/28 Total change]) -> 0 | CN16: =SUBTOTAL(9,Dataset[2028/29 Total change]) -> 0 | CO16: =SUBTOTAL(9,Dataset[2025/26 Revised baseline]) -> 6309944 | CP16: =SUBTOTAL(9,Dataset[2026/27 Revised baseline]) -> 6234845 | CQ16: =SUBTOTAL(9,Dataset[2027/28 Revised baseline]) -> 6516798 | CR16: =SUBTOTAL(9,Dataset[2028/29 Revised baseline]) -> 6809333 | CS16: =SUBTOTAL(9,Dataset[2021/22 PEI Actual]) -> 0 | CT16: =SUBTOTAL(9,Dataset[2022/23 PEI Actual]) -> 0 | CU16: =SUBTOTAL(9,Dataset[2023/24 PEI Actual]) -> 0 | CV16: =SUBTOTAL(9,Dataset[2024/25 PEI Preliminary outcome]) -> 0 | CW16: =SUBTOTAL(9,Dataset[2025/26 PEI Baseline]) -> 0 | CX16: =SUBTOTAL(9,Dataset[2026/27 PEI Baseline]) -> 0 | CY16: =SUBTOTAL(9,Dataset[2027/28 PEI Baseline]) -> 0 | CZ16: =SUBTOTAL(9,Dataset[2028/29 PEI Baseline]) -> 0 | DA16: =SUBTOTAL(9,Dataset[2021/22 Other employment programmes Actual]) -> 0 | DB16: =SUBTOTAL(9,Dataset[2022/23 Other employment programmes Actual]) -> 0 | DC16: =SUBTOTAL(9,Dataset[2023/24 Other employment programmes Actual]) -> 0 | DD16: =SUBTOTAL(9,Dataset[2024/25 Other employment programmes Preliminary outcome]) -> 0 | DE16: =SUBTOTAL(9,Dataset[2025/26 Other employment programmes Baseline]) -> 0 | DF16: =SUBTOTAL(9,Dataset[2026/27 Other employment programmes Baseline]) -> 0 | DG16: =SUBTOTAL(9,Dataset[2027/28 Other employment programmes Baseline]) -> 0 | DH16: =SUBTOTAL(9,Dataset[2028/29 Other employment programmes Baseline]) -> 0 | DI16: =SUBTOTAL(9,Dataset[2021/22 Sector programmes Actual]) -> 0 | DJ16: =SUBTOTAL(9,Dataset[2022/23 Sector programmes Actual]) -> 0 | DK16: =SUBTOTAL(9,Dataset[2023/24 Sector programmes Actual]) -> 0 | DL16: =SUBTOTAL(9,Dataset[2024/25 Sector programmes Preliminary outcome]) -> 0 | DM16: =SUBTOTAL(9,Dataset[2025/26 Sector programmes Baseline]) -> 0 | DN16: =SUBTOTAL(9,Dataset[2026/27 Sector programmes Baseline]) -> 0 | DO16: =SUBTOTAL(9,Dataset[2027/28 Sector programmes Baseline]) -> 0 | DP16: =SUBTOTAL(9,Dataset[2028/29 Sector programmes Baseline]) -> 0
AT17: ="…"&SRTopic1 -> …Spending review topic 1 | AZ17: ="…"&SRTopic2 -> …Spending review topic 2 | BF17: ="…"&SRTopic3 -> …Spending review topic 3 | BL17: ="…"&SRTopic4 -> …Spending review topic 4 | BR17: …Reallocations other than spending reviews | BX17: …Targeted savings | CN17: …red shaded cells below indicate negative budgets. | CO17: =IF(CO1<>0,"Negative budgets","") ->  | CS17: Presidential Employment Initiative (PEI) | DA17: Employment Programmes | DI17: Sector programmes having a strong employment impact
A18: Combo_DoR | B18: Combo_Econ | C18: Budget Year | D18: Process | E18: Vote No. - N | F18: Programme No. - N | G18: Subprogramme No. - N | H18: Index - N | I18: Index - N2 | J18: Vote No. | K18: Programme No. | L18: Subprogramme No. | M18: Index | N18: Index2 | O18: UID | P18: Econ1_IDn | Q18: Econ2_IDn | R18: Econ3_IDn | S18: Econ4_IDn | T18: Econ5_IDn | U18: Econ_UID | V18: Province | W18: Department | X18: Programme | Y18: Subprogramme | Z18: Transfers and subsidies / Payments for financial assets detail | AA18: Econ1 | AB18: Econ2 | AC18: Econ3 | AD18: Econ4 | AE18: Econ5 | AF18: Function group | AG18: Technical group | AH18: DOR | AI18: 2021/22 | AJ18: 2022/23 | AK18: 2023/24 | AL18: 2024/25 Main appropriation | AM18: 2024/25 Adjusted appropriation | AN18: 2024/25 Revised estimate | AO18: 2024/25 Preliminary outcome | AP18: 2025/26 Baseline | AQ18: 2026/27 Baseline | AR18: 2027/28 Baseline | AS18: 2028/29 Baseline | AT18: 2026/27 From - Spending review Topic 1 | AU18: 2027/28 From - Spending review Topic 1 | AV18: 2028/29 From - Spending review Topic 1 | AW18: 2026/27 To - Spending review Topic 1 | AX18: 2027/28 To - Spending review Topic 1 | AY18: 2028/29 To - Spending review Topic 1 | AZ18: 2026/27 From - Spending review Topic 2 | BA18: 2027/28 From - Spending review Topic 2 | BB18: 2028/29 From - Spending review Topic 2 | BC18: 2026/27 To - Spending review Topic 2 | BD18: 2027/28 To - Spending review Topic 2 | BE18: 2028/29 To - Spending review Topic 2 | BF18: 2026/27 From - Spending review Topic 3 | BG18: 2027/28 From - Spending review Topic 3 | BH18: 2028/29 From - Spending review Topic 3 | BI18: 2026/27 To - Spending review Topic 3 | BJ18: 2027/28 To - Spending review Topic 3 | BK18: 2028/29 To - Spending review Topic 3 | BL18: 2026/27 From - Spending review Topic 4 | BM18: 2027/28 From - Spending review Topic 4 | BN18: 2028/29 From - Spending review Topic 4 | BO18: 2026/27 To - Spending review Topic 4 | BP18: 2027/28 To - Spending review Topic 4 | BQ18: 2028/29 To - Spending review Topic 4 | BR18: 2026/27 From - Other reallocations | BS18: 2027/28 From - Other reallocations | BT18: 2028/29 From - Other reallocations | BU18: 2026/27 To - Other reallocations | BV18: 2027/28 To - Other reallocations | BW18: 2028/29 To - Other reallocations | BX18: 2025/26 Targeted savings | BY18: 2026/27 Targeted savings | BZ18: 2027/28 Targeted savings | CA18: 2028/29 Targeted savings | CB18: 2026/27 From - Total | CC18: 2027/28 From - Total | CD18: 2028/29 From - Total | CE18: 2026/27 To - Total | CF18: 2027/28 To - Total | CG18: 2028/29 To - Total | CH18: 2026/27 Total decrease | CI18: 2027/28 Total decrease | CJ18: 2028/29 Total decrease | CK18: 2025/26 Total change | CL18: 2026/27 Total change | CM18: 2027/28 Total change | CN18: 2028/29 Total change | CO18: 2025/26 Revised baseline | CP18: 2026/27 Revised baseline | CQ18: 2027/28 Revised baseline | CR18: 2028/29 Revised baseline | CS18: 2021/22 PEI Actual | CT18: 2022/23 PEI Actual | CU18: 2023/24 PEI Actual | CV18: 2024/25 PEI Preliminary outcome | CW18: 2025/26 PEI Baseline | CX18: 2026/27 PEI Baseline | CY18: 2027/28 PEI Baseline | CZ18: 2028/29 PEI Baseline | DA18: 2021/22 Other employment programmes Actual | DB18: 2022/23 Other employment programmes Actual | DC18: 2023/24 Other employment programmes Actual | DD18: 2024/25 Other employment programmes Preliminary outcome | DE18: 2025/26 Other employment programmes Baseline | DF18: 2026/27 Other employment programmes Baseline | DG18: 2027/28 Other employment programmes Baseline | DH18: 2028/29 Other employment programmes Baseline | DI18: 2021/22 Sector programmes Actual | DJ18: 2022/23 Sector programmes Actual | DK18: 2023/24 Sector programmes Actual | DL18: 2024/25 Sector programmes Preliminary outcome | DM18: 2025/26 Sector programmes Baseline | DN18: 2026/27 Sector programmes Baseline | DO18: 2027/28 Sector programmes Baseline | DP18: 2028/29 Sector programmes Baseline
A19: NAT|Non-transfer item | B19: 37|Salaries and wages | C19: 2026_27 | D19: MTEC2026 | E19: 37 | F19: 1 | G19: 1 | H19: 44900 | I19: 1 | J19: 37 | K19: 01 | L19: 01 | M19: 044900 | N19: 000001 | O19: 37|01|01|000001 | P19: 01 | Q19: 01 | R19: 01 | S19: 01 | T19: 01 | U19: 01|01|01|01|01 | V19: National | W19: Sport, Arts and Culture | X19: Administration | Y19: Ministry | Z19: Non-transfer item | AA19: Current | AB19: Current payments | AC19: Compensation of employees | AD19: Salaries and wages | AE19: Salaries and wages | AF19: Learning and culture | AG19: Arts, culture, sport and recreation | AH19: NAT | AI19: 3832 | AJ19: 3978 | AK19: 4038 | AL19: 2957 | AM19: 2429 | AN19: 2429 | AO19: 4008 | AP19: 3166 | AQ19: 3358 | AR19: 3511 | AS19: 3669 | CB19: =Dataset[[#This Row],[2026/27 From - Spending review Topic 1]]+Dataset[[#This Row],[2026/27 From - Spending review Topic 2]]+Dataset[[#This Row],[2026/27 From - Spending review Topic 3]]+Dataset[[#This Row],[2026/27 From - Spending review Topic 4]]+Dataset[[#This Row],[2026/27 From - Other reallocations]] -> 0 | CC19: =Dataset[[#This Row],[2027/28 From - Spending review Topic 1]]+Dataset[[#This Row],[2027/28 From - Spending review Topic 2]]+Dataset[[#This Row],[2027/28 From - Spending review Topic 3]]+Dataset[[#This Row],[2027/28 From - Spending review Topic 4]]+Dataset[[#This Row],[2027/28 From - Other reallocations]] -> 0 | CD19: =Dataset[[#This Row],[2028/29 From - Spending review Topic 1]]+Dataset[[#This Row],[2028/29 From - Spending review Topic 2]]+Dataset[[#This Row],[2028/29 From - Spending review Topic 3]]+Dataset[[#This Row],[2028/29 From - Spending review Topic 4]]+Dataset[[#This Row],[2028/29 From - Other reallocations]] -> 0 | CE19: =Dataset[[#This Row],[2026/27 To - Spending review Topic 1]]+Dataset[[#This Row],[2026/27 To - Spending review Topic 2]]+Dataset[[#This Row],[2026/27 To - Spending review Topic 3]]+Dataset[[#This Row],[2026/27 To - Spending review Topic 4]]+Dataset[[#This Row],[2026/27 To - Other reallocations]] -> 0 | CF19: =Dataset[[#This Row],[2027/28 To - Spending review Topic 1]]+Dataset[[#This Row],[2027/28 To - Spending review Topic 2]]+Dataset[[#This Row],[2027/28 To - Spending review Topic 3]]+Dataset[[#This Row],[2027/28 To - Spending review Topic 4]]+Dataset[[#This Row],[2027/28 To - Other reallocations]] -> 0 | CG19: =Dataset[[#This Row],[2028/29 To - Spending review Topic 1]]+Dataset[[#This Row],[2028/29 To - Spending review Topic 2]]+Dataset[[#This Row],[2028/29 To - Spending review Topic 3]]+Dataset[[#This Row],[2028/29 To - Spending review Topic 4]]+Dataset[[#This Row],[2028/29 To - Other reallocations]] -> 0 | CH19: =Dataset[[#This Row],[2026/27 Targeted savings]]+Dataset[[#This Row],[2026/27 From - Total]] -> 0 | CI19: =Dataset[[#This Row],[2027/28 Targeted savings]]+Dataset[[#This Row],[2027/28 From - Total]] -> 0 | CJ19: =Dataset[[#This Row],[2028/29 Targeted savings]]+Dataset[[#This Row],[2028/29 From - Total]] -> 0 | CK19: =Dataset[[#This Row],[2025/26 Targeted savings]] -> 0 | CL19: =SUM(Dataset[[#This Row],[2026/27 Targeted savings]],Dataset[[#This Row],[2026/27 From - Total]],Dataset[[#This Row],[2026/27 To - Total]]) -> 0 | CM19: =SUM(Dataset[[#This Row],[2027/28 Targeted savings]],Dataset[[#This Row],[2027/28 From - Total]],Dataset[[#This Row],[2027/28 To - Total]]) -> 0 | CN19: =SUM(Dataset[[#This Row],[2028/29 Targeted savings]],Dataset[[#This Row],[2028/29 From - Total]],Dataset[[#This Row],[2028/29 To - Total]]) -> 0 | CO19: =Dataset[[#This Row],[2025/26 Baseline]]+Dataset[[#This Row],[2025/26 Total change]] -> 3166 | CP19: =Dataset[[#This Row],[2026/27 Baseline]]+Dataset[[#This Row],[2026/27 Total change]] -> 3358 | CQ19: =Dataset[[#This Row],[2027/28 Baseline]]+Dataset[[#This Row],[2027/28 Total change]] -> 3511 | CR19: =Dataset[[#This Row],[2028/29 Baseline]]+Dataset[[#This Row],[2028/29 Total change]] -> 3669
A20: NAT|Non-transfer item | B20: 37|Social contributions | C20: 2026_27 | D20: MTEC2026 | E20: 37 | F20: 1 | G20: 1 | H20: 44901 | I20: 2 | J20: 37 | K20: 01 | L20: 01 | M20: 044901 | N20: 000002 | O20: 37|01|01|000002 | P20: 01 | Q20: 01 | R20: 01 | S20: 02 | T20: 02 | U20: 01|01|01|02|02 | V20: National | W20: Sport, Arts and Culture | X20: Administration | Y20: Ministry | Z20: Non-transfer item | AA20: Current | AB20: Current payments | AC20: Compensation of employees | AD20: Social contributions | AE20: Social contributions | AF20: Learning and culture | AG20: Arts, culture, sport and recreation | AH20: NAT | AI20: 591 | AJ20: 599 | AK20: 664 | AL20: 2217 | AM20: 2217 | AN20: 2217 | AO20: 639 | AP20: 2345 | AQ20: 2484 | AR20: 2680 | AS20: 2800 | CB20: =Dataset[[#This Row],[2026/27 From - Spending review Topic 1]]+Dataset[[#This Row],[2026/27 From - Spending review Topic 2]]+Dataset[[#This Row],[2026/27 From - Spending review Topic 3]]+Dataset[[#This Row],[2026/27 From - Spending review Topic 4]]+Dataset[[#This Row],[2026/27 From - Other reallocations]] -> 0 | CC20: =Dataset[[#This Row],[2027/28 From - Spending review Topic 1]]+Dataset[[#This Row],[2027/28 From - Spending review Topic 2]]+Dataset[[#This Row],[2027/28 From - Spending review Topic 3]]+Dataset[[#This Row],[2027/28 From - Spending review Topic 4]]+Dataset[[#This Row],[2027/28 From - Other reallocations]] -> 0 | CD20: =Dataset[[#This Row],[2028/29 From - Spending review Topic 1]]+Dataset[[#This Row],[2028/29 From - Spending review Topic 2]]+Dataset[[#This Row],[2028/29 From - Spending review Topic 3]]+Dataset[[#This Row],[2028/29 From - Spending review Topic 4]]+Dataset[[#This Row],[2028/29 From - Other reallocations]] -> 0 | CE20: =Dataset[[#This Row],[2026/27 To - Spending review Topic 1]]+Dataset[[#This Row],[2026/27 To - Spending review Topic 2]]+Dataset[[#This Row],[2026/27 To - Spending review Topic 3]]+Dataset[[#This Row],[2026/27 To - Spending review Topic 4]]+Dataset[[#This Row],[2026/27 To - Other reallocations]] -> 0 | CF20: =Dataset[[#This Row],[2027/28 To - Spending review Topic 1]]+Dataset[[#This Row],[2027/28 To - Spending review Topic 2]]+Dataset[[#This Row],[2027/28 To - Spending review Topic 3]]+Dataset[[#This Row],[2027/28 To - Spending review Topic 4]]+Dataset[[#This Row],[2027/28 To - Other reallocations]] -> 0 | CG20: =Dataset[[#This Row],[2028/29 To - Spending review Topic 1]]+Dataset[[#This Row],[2028/29 To - Spending review Topic 2]]+Dataset[[#This Row],[2028/29 To - Spending review Topic 3]]+Dataset[[#This Row],[2028/29 To - Spending review Topic 4]]+Dataset[[#This Row],[2028/29 To - Other reallocations]] -> 0 | CH20: =Dataset[[#This Row],[2026/27 Targeted savings]]+Dataset[[#This Row],[2026/27 From - Total]] -> 0 | CI20: =Dataset[[#This Row],[2027/28 Targeted savings]]+Dataset[[#This Row],[2027/28 From - Total]] -> 0 | CJ20: =Dataset[[#This Row],[2028/29 Targeted savings]]+Dataset[[#This Row],[2028/29 From - Total]] -> 0 | CK20: =Dataset[[#This Row],[2025/26 Targeted savings]] -> 0 | CL20: =SUM(Dataset[[#This Row],[2026/27 Targeted savings]],Dataset[[#This Row],[2026/27 From - Total]],Dataset[[#This Row],[2026/27 To - Total]]) -> 0 | CM20: =SUM(Dataset[[#This Row],[2027/28 Targeted savings]],Dataset[[#This Row],[2027/28 From - Total]],Dataset[[#This Row],[2027/28 To - Total]]) -> 0 | CN20: =SUM(Dataset[[#This Row],[2028/29 Targeted savings]],Dataset[[#This Row],[2028/29 From - Total]],Dataset[[#This Row],[2028/29 To - Total]]) -> 0 | CO20: =Dataset[[#This Row],[2025/26 Baseline]]+Dataset[[#This Row],[2025/26 Total change]] -> 2345 | CP20: =Dataset[[#This Row],[2026/27 Baseline]]+Dataset[[#This Row],[2026/27 Total change]] -> 2484 | CQ20: =Dataset[[#This Row],[2027/28 Baseline]]+Dataset[[#This Row],[2027/28 Total change]] -> 2680 | CR20: =Dataset[[#This Row],[2028/29 Baseline]]+Dataset[[#This Row],[2028/29 Total change]] -> 2800
A21: NAT|Non-transfer item | B21: 37|Administrative fees | C21: 2026_27 | D21: MTEC2026 | E21: 37 | F21: 1 | G21: 1 | H21: 44902 | I21: 3 | J21: 37 | K21: 01 | L21: 01 | M21: 044902 | N21: 000003 | O21: 37|01|01|000003 | P21: 01 | Q21: 01 | R21: 02 | S21: 03 | T21: 03 | U21: 01|01|02|03|03 | V21: National | W21: Sport, Arts and Culture | X21: Administration | Y21: Ministry | Z21: Non-transfer item | AA21: Current | AB21: Current payments | AC21: Goods and services | AD21: Administrative fees | AE21: Administrative fees | AF21: Learning and culture | AG21: Arts, culture, sport and recreation | AH21: NAT | AI21: 0 | AJ21: 0 | AK21: 0 | AL21: 0 | AM21: 0 | AN21: 0 | AO21: 0 | AP21: 0 | AQ21: 0 | AR21: 0 | AS21: 0 | CB21: =Dataset[[#This Row],[2026/27 From - Spending review Topic 1]]+Dataset[[#This Row],[2026/27 From - Spending review Topic 2]]+Dataset[[#This Row],[2026/27 From - Spending review Topic 3]]+Dataset[[#This Row],[2026/27 From - Spending review Topic 4]]+Dataset[[#This Row],[2026/27 From - Other reallocations]] -> 0 | CC21: =Dataset[[#This Row],[2027/28 From - Spending review Topic 1]]+Dataset[[#This Row],[2027/28 From - Spending review Topic 2]]+Dataset[[#This Row],[2027/28 From - Spending review Topic 3]]+Dataset[[#This Row],[2027/28 From - Spending review Topic 4]]+Dataset[[#This Row],[2027/28 From - Other reallocations]] -> 0 | CD21: =Dataset[[#This Row],[2028/29 From - Spending review Topic 1]]+Dataset[[#This Row],[2028/29 From - Spending review Topic 2]]+Dataset[[#This Row],[2028/29 From - Spending review Topic 3]]+Dataset[[#This Row],[2028/29 From - Spending review Topic 4]]+Dataset[[#This Row],[2028/29 From - Other reallocations]] -> 0 | CE21: =Dataset[[#This Row],[2026/27 To - Spending review Topic 1]]+Dataset[[#This Row],[2026/27 To - Spending review Topic 2]]+Dataset[[#This Row],[2026/27 To - Spending review Topic 3]]+Dataset[[#This Row],[2026/27 To - Spending review Topic 4]]+Dataset[[#This Row],[2026/27 To - Other reallocations]] -> 0 | CF21: =Dataset[[#This Row],[2027/28 To - Spending review Topic 1]]+Dataset[[#This Row],[2027/28 To - Spending review Topic 2]]+Dataset[[#This Row],[2027/28 To - Spending review Topic 3]]+Dataset[[#This Row],[2027/28 To - Spending review Topic 4]]+Dataset[[#This Row],[2027/28 To - Other reallocations]] -> 0 | CG21: =Dataset[[#This Row],[2028/29 To - Spending review Topic 1]]+Dataset[[#This Row],[2028/29 To - Spending review Topic 2]]+Dataset[[#This Row],[2028/29 To - Spending review Topic 3]]+Dataset[[#This Row],[2028/29 To - Spending review Topic 4]]+Dataset[[#This Row],[2028/29 To - Other reallocations]] -> 0 | CH21: =Dataset[[#This Row],[2026/27 Targeted savings]]+Dataset[[#This Row],[2026/27 From - Total]] -> 0 | CI21: =Dataset[[#This Row],[2027/28 Targeted savings]]+Dataset[[#This Row],[2027/28 From - Total]] -> 0 | CJ21: =Dataset[[#This Row],[2028/29 Targeted savings]]+Dataset[[#This Row],[2028/29 From - Total]] -> 0 | CK21: =Dataset[[#This Row],[2025/26 Targeted savings]] -> 0 | CL21: =SUM(Dataset[[#This Row],[2026/27 Targeted savings]],Dataset[[#This Row],[2026/27 From - Total]],Dataset[[#This Row],[2026/27 To - Total]]) -> 0 | CM21: =SUM(Dataset[[#This Row],[2027/28 Targeted savings]],Dataset[[#This Row],[2027/28 From - Total]],Dataset[[#This Row],[2027/28 To - Total]]) -> 0 | CN21: =SUM(Dataset[[#This Row],[2028/29 Targeted savings]],Dataset[[#This Row],[2028/29 From - Total]],Dataset[[#This Row],[2028/29 To - Total]]) -> 0 | CO21: =Dataset[[#This Row],[2025/26 Baseline]]+Dataset[[#This Row],[2025/26 Total change]] -> 0 | CP21: =Dataset[[#This Row],[2026/27 Baseline]]+Dataset[[#This Row],[2026/27 Total change]] -> 0 | CQ21: =Dataset[[#This Row],[2027/28 Baseline]]+Dataset[[#This Row],[2027/28 Total change]] -> 0 | CR21: =Dataset[[#This Row],[2028/29 Baseline]]+Dataset[[#This Row],[2028/29 Total change]] -> 0
A22: NAT|Non-transfer item | B22: 37|Advertising | C22: 2026_27 | D22: MTEC2026 | E22: 37 | F22: 1 | G22: 1 | H22: 44903 | I22: 4 | J22: 37 | K22: 01 | L22: 01 | M22: 044903 | N22: 000004 | O22: 37|01|01|000004 | P22: 01 | Q22: 01 | R22: 02 | S22: 04 | T22: 04 | U22: 01|01|02|04|04 | V22: National | W22: Sport, Arts and Culture | X22: Administration | Y22: Ministry | Z22: Non-transfer item | AA22: Current | AB22: Current payments | AC22: Goods and services | AD22: Advertising | AE22: Advertising | AF22: Learning and culture | AG22: Arts, culture, sport and recreation | AH22: NAT | AI22: 0 | AJ22: 0 | AK22: 0 | AL22: 0 | AM22: 0 | AN22: 0 | AO22: 0 | AP22: 0 | AQ22: 0 | AR22: 0 | AS22: 0 | CB22: =Dataset[[#This Row],[2026/27 From - Spending review Topic 1]]+Dataset[[#This Row],[2026/27 From - Spending review Topic 2]]+Dataset[[#This Row],[2026/27 From - Spending review Topic 3]]+Dataset[[#This Row],[2026/27 From - Spending review Topic 4]]+Dataset[[#This Row],[2026/27 From - Other reallocations]] -> 0 | CC22: =Dataset[[#This Row],[2027/28 From - Spending review Topic 1]]+Dataset[[#This Row],[2027/28 From - Spending review Topic 2]]+Dataset[[#This Row],[2027/28 From - Spending review Topic 3]]+Dataset[[#This Row],[2027/28 From - Spending review Topic 4]]+Dataset[[#This Row],[2027/28 From - Other reallocations]] -> 0 | CD22: =Dataset[[#This Row],[2028/29 From - Spending review Topic 1]]+Dataset[[#This Row],[2028/29 From - Spending review Topic 2]]+Dataset[[#This Row],[2028/29 From - Spending review Topic 3]]+Dataset[[#This Row],[2028/29 From - Spending review Topic 4]]+Dataset[[#This Row],[2028/29 From - Other reallocations]] -> 0 | CE22: =Dataset[[#This Row],[2026/27 To - Spending review Topic 1]]+Dataset[[#This Row],[2026/27 To - Spending review Topic 2]]+Dataset[[#This Row],[2026/27 To - Spending review Topic 3]]+Dataset[[#This Row],[2026/27 To - Spending review Topic 4]]+Dataset[[#This Row],[2026/27 To - Other reallocations]] -> 0 | CF22: =Dataset[[#This Row],[2027/28 To - Spending review Topic 1]]+Dataset[[#This Row],[2027/28 To - Spending review Topic 2]]+Dataset[[#This Row],[2027/28 To - Spending review Topic 3]]+Dataset[[#This Row],[2027/28 To - Spending review Topic 4]]+Dataset[[#This Row],[2027/28 To - Other reallocations]] -> 0 | CG22: =Dataset[[#This Row],[2028/29 To - Spending review Topic 1]]+Dataset[[#This Row],[2028/29 To - Spending review Topic 2]]+Dataset[[#This Row],[2028/29 To - Spending review Topic 3]]+Dataset[[#This Row],[2028/29 To - Spending review Topic 4]]+Dataset[[#This Row],[2028/29 To - Other reallocations]] -> 0 | CH22: =Dataset[[#This Row],[2026/27 Targeted savings]]+Dataset[[#This Row],[2026/27 From - Total]] -> 0 | CI22: =Dataset[[#This Row],[2027/28 Targeted savings]]+Dataset[[#This Row],[2027/28 From - Total]] -> 0 | CJ22: =Dataset[[#This Row],[2028/29 Targeted savings]]+Dataset[[#This Row],[2028/29 From - Total]] -> 0 | CK22: =Dataset[[#This Row],[2025/26 Targeted savings]] -> 0 | CL22: =SUM(Dataset[[#This Row],[2026/27 Targeted savings]],Dataset[[#This Row],[2026/27 From - Total]],Dataset[[#This Row],[2026/27 To - Total]]) -> 0 | CM22: =SUM(Dataset[[#This Row],[2027/28 Targeted savings]],Dataset[[#This Row],[2027/28 From - Total]],Dataset[[#This Row],[2027/28 To - Total]]) -> 0 | CN22: =SUM(Dataset[[#This Row],[2028/29 Targeted savings]],Dataset[[#This Row],[2028/29 From - Total]],Dataset[[#This Row],[2028/29 To - Total]]) -> 0 | CO22: =Dataset[[#This Row],[2025/26 Baseline]]+Dataset[[#This Row],[2025/26 Total change]] -> 0 | CP22: =Dataset[[#This Row],[2026/27 Baseline]]+Dataset[[#This Row],[2026/27 Total change]] -> 0 | CQ22: =Dataset[[#This Row],[2027/28 Baseline]]+Dataset[[#This Row],[2027/28 Total change]] -> 0 | CR22: =Dataset[[#This Row],[2028/29 Baseline]]+Dataset[[#This Row],[2028/29 Total change]] -> 0
A23: NAT|Non-transfer item | B23: 37|Minor assets | C23: 2026_27 | D23: MTEC2026 | E23: 37 | F23: 1 | G23: 1 | H23: 44904 | I23: 5 | J23: 37 | K23: 01 | L23: 01 | M23: 044904 | N23: 000005 | O23: 37|01|01|000005 | P23: 01 | Q23: 01 | R23: 02 | S23: 05 | T23: 05 | U23: 01|01|02|05|05 | V23: National | W23: Sport, Arts and Culture | X23: Administration | Y23: Ministry | Z23: Non-transfer item | AA23: Current | AB23: Current payments | AC23: Goods and services | AD23: Minor assets | AE23: Minor assets | AF23: Learning and culture | AG23: Arts, culture, sport and recreation | AH23: NAT | AI23: 0 | AJ23: 0 | AK23: 0 | AL23: 0 | AM23: 0 | AN23: 0 | AO23: 0 | AP23: 0 | AQ23: 0 | AR23: 0 | AS23: 0 | CB23: =Dataset[[#This Row],[2026/27 From - Spending review Topic 1]]+Dataset[[#This Row],[2026/27 From - Spending review Topic 2]]+Dataset[[#This Row],[2026/27 From - Spending review Topic 3]]+Dataset[[#This Row],[2026/27 From - Spending review Topic 4]]+Dataset[[#This Row],[2026/27 From - Other reallocations]] -> 0 | CC23: =Dataset[[#This Row],[2027/28 From - Spending review Topic 1]]+Dataset[[#This Row],[2027/28 From - Spending review Topic 2]]+Dataset[[#This Row],[2027/28 From - Spending review Topic 3]]+Dataset[[#This Row],[2027/28 From - Spending review Topic 4]]+Dataset[[#This Row],[2027/28 From - Other reallocations]] -> 0 | CD23: =Dataset[[#This Row],[2028/29 From - Spending review Topic 1]]+Dataset[[#This Row],[2028/29 From - Spending review Topic 2]]+Dataset[[#This Row],[2028/29 From - Spending review Topic 3]]+Dataset[[#This Row],[2028/29 From - Spending review Topic 4]]+Dataset[[#This Row],[2028/29 From - Other reallocations]] -> 0 | CE23: =Dataset[[#This Row],[2026/27 To - Spending review Topic 1]]+Dataset[[#This Row],[2026/27 To - Spending review Topic 2]]+Dataset[[#This Row],[2026/27 To - Spending review Topic 3]]+Dataset[[#This Row],[2026/27 To - Spending review Topic 4]]+Dataset[[#This Row],[2026/27 To - Other reallocations]] -> 0 | CF23: =Dataset[[#This Row],[2027/28 To - Spending review Topic 1]]+Dataset[[#This Row],[2027/28 To - Spending review Topic 2]]+Dataset[[#This Row],[2027/28 To - Spending review Topic 3]]+Dataset[[#This Row],[2027/28 To - Spending review Topic 4]]+Dataset[[#This Row],[2027/28 To - Other reallocations]] -> 0 | CG23: =Dataset[[#This Row],[2028/29 To - Spending review Topic 1]]+Dataset[[#This Row],[2028/29 To - Spending review Topic 2]]+Dataset[[#This Row],[2028/29 To - Spending review Topic 3]]+Dataset[[#This Row],[2028/29 To - Spending review Topic 4]]+Dataset[[#This Row],[2028/29 To - Other reallocations]] -> 0 | CH23: =Dataset[[#This Row],[2026/27 Targeted savings]]+Dataset[[#This Row],[2026/27 From - Total]] -> 0 | CI23: =Dataset[[#This Row],[2027/28 Targeted savings]]+Dataset[[#This Row],[2027/28 From - Total]] -> 0 | CJ23: =Dataset[[#This Row],[2028/29 Targeted savings]]+Dataset[[#This Row],[2028/29 From - Total]] -> 0 | CK23: =Dataset[[#This Row],[2025/26 Targeted savings]] -> 0 | CL23: =SUM(Dataset[[#This Row],[2026/27 Targeted savings]],Dataset[[#This Row],[2026/27 From - Total]],Dataset[[#This Row],[2026/27 To - Total]]) -> 0 | CM23: =SUM(Dataset[[#This Row],[2027/28 Targeted savings]],Dataset[[#This Row],[2027/28 From - Total]],Dataset[[#This Row],[2027/28 To - Total]]) -> 0 | CN23: =SUM(Dataset[[#This Row],[2028/29 Targeted savings]],Dataset[[#This Row],[2028/29 From - Total]],Dataset[[#This Row],[2028/29 To - Total]]) -> 0 | CO23: =Dataset[[#This Row],[2025/26 Baseline]]+Dataset[[#This Row],[2025/26 Total change]] -> 0 | CP23: =Dataset[[#This Row],[2026/27 Baseline]]+Dataset[[#This Row],[2026/27 Total change]] -> 0 | CQ23: =Dataset[[#This Row],[2027/28 Baseline]]+Dataset[[#This Row],[2027/28 Total change]] -> 0 | CR23: =Dataset[[#This Row],[2028/29 Baseline]]+Dataset[[#This Row],[2028/29 Total change]] -> 0
A24: NAT|Non-transfer item | B24: 37|Audit costs: External | C24: 2026_27 | D24: MTEC2026 | E24: 37 | F24: 1 | G24: 1 | H24: 44905 | I24: 6 | J24: 37 | K24: 01 | L24: 01 | M24: 044905 | N24: 000006 | O24: 37|01|01|000006 | P24: 01 | Q24: 01 | R24: 02 | S24: 06 | T24: 06 | U24: 01|01|02|06|06 | V24: National | W24: Sport, Arts and Culture | X24: Administration | Y24: Ministry | Z24: Non-transfer item | AA24: Current | AB24: Current payments | AC24: Goods and services | AD24: Audit costs: External | AE24: Audit costs: External | AF24: Learning and culture | AG24: Arts, culture, sport and recreation | AH24: NAT | AI24: 0 | AJ24: 0 | AK24: 0 | AL24: 0 | AM24: 0 | AN24: 0 | AO24: 0 | AP24: 0 | AQ24: 0 | AR24: 0 | AS24: 0 | CB24: =Dataset[[#This Row],[2026/27 From - Spending review Topic 1]]+Dataset[[#This Row],[2026/27 From - Spending review Topic 2]]+Dataset[[#This Row],[2026/27 From - Spending review Topic 3]]+Dataset[[#This Row],[2026/27 From - Spending review Topic 4]]+Dataset[[#This Row],[2026/27 From - Other reallocations]] -> 0 | CC24: =Dataset[[#This Row],[2027/28 From - Spending review Topic 1]]+Dataset[[#This Row],[2027/28 From - Spending review Topic 2]]+Dataset[[#This Row],[2027/28 From - Spending review Topic 3]]+Dataset[[#This Row],[2027/28 From - Spending review Topic 4]]+Dataset[[#This Row],[2027/28 From - Other reallocations]] -> 0 | CD24: =Dataset[[#This Row],[2028/29 From - Spending review Topic 1]]+Dataset[[#This Row],[2028/29 From - Spending review Topic 2]]+Dataset[[#This Row],[2028/29 From - Spending review Topic 3]]+Dataset[[#This Row],[2028/29 From - Spending review Topic 4]]+Dataset[[#This Row],[2028/29 From - Other reallocations]] -> 0 | CE24: =Dataset[[#This Row],[2026/27 To - Spending review Topic 1]]+Dataset[[#This Row],[2026/27 To - Spending review Topic 2]]+Dataset[[#This Row],[2026/27 To - Spending review Topic 3]]+Dataset[[#This Row],[2026/27 To - Spending review Topic 4]]+Dataset[[#This Row],[2026/27 To - Other reallocations]] -> 0 | CF24: =Dataset[[#This Row],[2027/28 To - Spending review Topic 1]]+Dataset[[#This Row],[2027/28 To - Spending review Topic 2]]+Dataset[[#This Row],[2027/28 To - Spending review Topic 3]]+Dataset[[#This Row],[2027/28 To - Spending review Topic 4]]+Dataset[[#This Row],[2027/28 To - Other reallocations]] -> 0 | CG24: =Dataset[[#This Row],[2028/29 To - Spending review Topic 1]]+Dataset[[#This Row],[2028/29 To - Spending review Topic 2]]+Dataset[[#This Row],[2028/29 To - Spending review Topic 3]]+Dataset[[#This Row],[2028/29 To - Spending review Topic 4]]+Dataset[[#This Row],[2028/29 To - Other reallocations]] -> 0 | CH24: =Dataset[[#This Row],[2026/27 Targeted savings]]+Dataset[[#This Row],[2026/27 From - Total]] -> 0 | CI24: =Dataset[[#This Row],[2027/28 Targeted savings]]+Dataset[[#This Row],[2027/28 From - Total]] -> 0 | CJ24: =Dataset[[#This Row],[2028/29 Targeted savings]]+Dataset[[#This Row],[2028/29 From - Total]] -> 0 | CK24: =Dataset[[#This Row],[2025/26 Targeted savings]] -> 0 | CL24: =SUM(Dataset[[#This Row],[2026/27 Targeted savings]],Dataset[[#This Row],[2026/27 From - Total]],Dataset[[#This Row],[2026/27 To - Total]]) -> 0 | CM24: =SUM(Dataset[[#This Row],[2027/28 Targeted savings]],Dataset[[#This Row],[2027/28 From - Total]],Dataset[[#This Row],[2027/28 To - Total]]) -> 0 | CN24: =SUM(Dataset[[#This Row],[2028/29 Targeted savings]],Dataset[[#This Row],[2028/29 From - Total]],Dataset[[#This Row],[2028/29 To - Total]]) -> 0 | CO24: =Dataset[[#This Row],[2025/26 Baseline]]+Dataset[[#This Row],[2025/26 Total change]] -> 0 | CP24: =Dataset[[#This Row],[2026/27 Baseline]]+Dataset[[#This Row],[2026/27 Total change]] -> 0 | CQ24: =Dataset[[#This Row],[2027/28 Baseline]]+Dataset[[#This Row],[2027/28 Total change]] -> 0 | CR24: =Dataset[[#This Row],[2028/29 Baseline]]+Dataset[[#This Row],[2028/29 Total change]] -> 0
A25: NAT|Non-transfer item | B25: 37|Bursaries: Employees | C25: 2026_27 | D25: MTEC2026 | E25: 37 | F25: 1 | G25: 1 | H25: 44906 | I25: 7 | J25: 37 | K25: 01 | L25: 01 | M25: 044906 | N25: 000007 | O25: 37|01|01|000007 | P25: 01 | Q25: 01 | R25: 02 | S25: 07 | T25: 07 | U25: 01|01|02|07|07 | V25: National | W25: Sport, Arts and Culture | X25: Administration | Y25: Ministry | Z25: Non-transfer item | AA25: Current | AB25: Current payments | AC25: Goods and services | AD25: Bursaries: Employees | AE25: Bursaries: Employees | AF25: Learning and culture | AG25: Arts, culture, sport and recreation | AH25: NAT | AI25: 0 | AJ25: 0 | AK25: 0 | AL25: 0 | AM25: 0 | AN25: 0 | AO25: 0 | AP25: 0 | AQ25: 0 | AR25: 0 | AS25: 0 | CB25: =Dataset[[#This Row],[2026/27 From - Spending review Topic 1]]+Dataset[[#This Row],[2026/27 From - Spending review Topic 2]]+Dataset[[#This Row],[2026/27 From - Spending review Topic 3]]+Dataset[[#This Row],[2026/27 From - Spending review Topic 4]]+Dataset[[#This Row],[2026/27 From - Other reallocations]] -> 0 | CC25: =Dataset[[#This Row],[2027/28 From - Spending review Topic 1]]+Dataset[[#This Row],[2027/28 From - Spending review Topic 2]]+Dataset[[#This Row],[2027/28 From - Spending review Topic 3]]+Dataset[[#This Row],[2027/28 From - Spending review Topic 4]]+Dataset[[#This Row],[2027/28 From - Other reallocations]] -> 0 | CD25: =Dataset[[#This Row],[2028/29 From - Spending review Topic 1]]+Dataset[[#This Row],[2028/29 From - Spending review Topic 2]]+Dataset[[#This Row],[2028/29 From - Spending review Topic 3]]+Dataset[[#This Row],[2028/29 From - Spending review Topic 4]]+Dataset[[#This Row],[2028/29 From - Other reallocations]] -> 0 | CE25: =Dataset[[#This Row],[2026/27 To - Spending review Topic 1]]+Dataset[[#This Row],[2026/27 To - Spending review Topic 2]]+Dataset[[#This Row],[2026/27 To - Spending review Topic 3]]+Dataset[[#This Row],[2026/27 To - Spending review Topic 4]]+Dataset[[#This Row],[2026/27 To - Other reallocations]] -> 0 | CF25: =Dataset[[#This Row],[2027/28 To - Spending review Topic 1]]+Dataset[[#This Row],[2027/28 To - Spending review Topic 2]]+Dataset[[#This Row],[2027/28 To - Spending review Topic 3]]+Dataset[[#This Row],[2027/28 To - Spending review Topic 4]]+Dataset[[#This Row],[2027/28 To - Other reallocations]] -> 0 | CG25: =Dataset[[#This Row],[2028/29 To - Spending review Topic 1]]+Dataset[[#This Row],[2028/29 To - Spending review Topic 2]]+Dataset[[#This Row],[2028/29 To - Spending review Topic 3]]+Dataset[[#This Row],[2028/29 To - Spending review Topic 4]]+Dataset[[#This Row],[2028/29 To - Other reallocations]] -> 0 | CH25: =Dataset[[#This Row],[2026/27 Targeted savings]]+Dataset[[#This Row],[2026/27 From - Total]] -> 0 | CI25: =Dataset[[#This Row],[2027/28 Targeted savings]]+Dataset[[#This Row],[2027/28 From - Total]] -> 0 | CJ25: =Dataset[[#This Row],[2028/29 Targeted savings]]+Dataset[[#This Row],[2028/29 From - Total]] -> 0 | CK25: =Dataset[[#This Row],[2025/26 Targeted savings]] -> 0 | CL25: =SUM(Dataset[[#This Row],[2026/27 Targeted savings]],Dataset[[#This Row],[2026/27 From - Total]],Dataset[[#This Row],[2026/27 To - Total]]) -> 0 | CM25: =SUM(Dataset[[#This Row],[2027/28 Targeted savings]],Dataset[[#This Row],[2027/28 From - Total]],Dataset[[#This Row],[2027/28 To - Total]]) -> 0 | CN25: =SUM(Dataset[[#This Row],[2028/29 Targeted savings]],Dataset[[#This Row],[2028/29 From - Total]],Dataset[[#This Row],[2028/29 To - Total]]) -> 0 | CO25: =Dataset[[#This Row],[2025/26 Baseline]]+Dataset[[#This Row],[2025/26 Total change]] -> 0 | CP25: =Dataset[[#This Row],[2026/27 Baseline]]+Dataset[[#This Row],[2026/27 Total change]] -> 0 | CQ25: =Dataset[[#This Row],[2027/28 Baseline]]+Dataset[[#This Row],[2027/28 Total change]] -> 0 | CR25: =Dataset[[#This Row],[2028/29 Baseline]]+Dataset[[#This Row],[2028/29 Total change]] -> 0
A26: NAT|Non-transfer item | B26: 37|Catering: Departmental activities | C26: 2026_27 | D26: MTEC2026 | E26: 37 | F26: 1 | G26: 1 | H26: 44907 | I26: 8 | J26: 37 | K26: 01 | L26: 01 | M26: 044907 | N26: 000008 | O26: 37|01|01|000008 | P26: 01 | Q26: 01 | R26: 02 | S26: 08 | T26: 08 | U26: 01|01|02|08|08 | V26: National | W26: Sport, Arts and Culture | X26: Administration | Y26: Ministry | Z26: Non-transfer item | AA26: Current | AB26: Current payments | AC26: Goods and services | AD26: Catering: Departmental activities | AE26: Catering: Departmental activities | AF26: Learning and culture | AG26: Arts, culture, sport and recreation | AH26: NAT | AI26: 0 | AJ26: 0 | AK26: 0 | AL26: 0 | AM26: 0 | AN26: 0 | AO26: 0 | AP26: 0 | AQ26: 0 | AR26: 0 | AS26: 0 | CB26: =Dataset[[#This Row],[2026/27 From - Spending review Topic 1]]+Dataset[[#This Row],[2026/27 From - Spending review Topic 2]]+Dataset[[#This Row],[2026/27 From - Spending review Topic 3]]+Dataset[[#This Row],[2026/27 From - Spending review Topic 4]]+Dataset[[#This Row],[2026/27 From - Other reallocations]] -> 0 | CC26: =Dataset[[#This Row],[2027/28 From - Spending review Topic 1]]+Dataset[[#This Row],[2027/28 From - Spending review Topic 2]]+Dataset[[#This Row],[2027/28 From - Spending review Topic 3]]+Dataset[[#This Row],[2027/28 From - Spending review Topic 4]]+Dataset[[#This Row],[2027/28 From - Other reallocations]] -> 0 | CD26: =Dataset[[#This Row],[2028/29 From - Spending review Topic 1]]+Dataset[[#This Row],[2028/29 From - Spending review Topic 2]]+Dataset[[#This Row],[2028/29 From - Spending review Topic 3]]+Dataset[[#This Row],[2028/29 From - Spending review Topic 4]]+Dataset[[#This Row],[2028/29 From - Other reallocations]] -> 0 | CE26: =Dataset[[#This Row],[2026/27 To - Spending review Topic 1]]+Dataset[[#This Row],[2026/27 To - Spending review Topic 2]]+Dataset[[#This Row],[2026/27 To - Spending review Topic 3]]+Dataset[[#This Row],[2026/27 To - Spending review Topic 4]]+Dataset[[#This Row],[2026/27 To - Other reallocations]] -> 0 | CF26: =Dataset[[#This Row],[2027/28 To - Spending review Topic 1]]+Dataset[[#This Row],[2027/28 To - Spending review Topic 2]]+Dataset[[#This Row],[2027/28 To - Spending review Topic 3]]+Dataset[[#This Row],[2027/28 To - Spending review Topic 4]]+Dataset[[#This Row],[2027/28 To - Other reallocations]] -> 0 | CG26: =Dataset[[#This Row],[2028/29 To - Spending review Topic 1]]+Dataset[[#This Row],[2028/29 To - Spending review Topic 2]]+Dataset[[#This Row],[2028/29 To - Spending review Topic 3]]+Dataset[[#This Row],[2028/29 To - Spending review Topic 4]]+Dataset[[#This Row],[2028/29 To - Other reallocations]] -> 0 | CH26: =Dataset[[#This Row],[2026/27 Targeted savings]]+Dataset[[#This Row],[2026/27 From - Total]] -> 0 | CI26: =Dataset[[#This Row],[2027/28 Targeted savings]]+Dataset[[#This Row],[2027/28 From - Total]] -> 0 | CJ26: =Dataset[[#This Row],[2028/29 Targeted savings]]+Dataset[[#This Row],[2028/29 From - Total]] -> 0 | CK26: =Dataset[[#This Row],[2025/26 Targeted savings]] -> 0 | CL26: =SUM(Dataset[[#This Row],[2026/27 Targeted savings]],Dataset[[#This Row],[2026/27 From - Total]],Dataset[[#This Row],[2026/27 To - Total]]) -> 0 | CM26: =SUM(Dataset[[#This Row],[2027/28 Targeted savings]],Dataset[[#This Row],[2027/28 From - Total]],Dataset[[#This Row],[2027/28 To - Total]]) -> 0 | CN26: =SUM(Dataset[[#This Row],[2028/29 Targeted savings]],Dataset[[#This Row],[2028/29 From - Total]],Dataset[[#This Row],[2028/29 To - Total]]) -> 0 | CO26: =Dataset[[#This Row],[2025/26 Baseline]]+Dataset[[#This Row],[2025/26 Total change]] -> 0 | CP26: =Dataset[[#This Row],[2026/27 Baseline]]+Dataset[[#This Row],[2026/27 Total change]] -> 0 | CQ26: =Dataset[[#This Row],[2027/28 Baseline]]+Dataset[[#This Row],[2027/28 Total change]] -> 0 | CR26: =Dataset[[#This Row],[2028/29 Baseline]]+Dataset[[#This Row],[2028/29 Total change]] -> 0
A27: NAT|Non-transfer item | B27: 37|Communication (G&S) | C27: 2026_27 | D27: MTEC2026 | E27: 37 | F27: 1 | G27: 1 | H27: 44908 | I27: 9 | J27: 37 | K27: 01 | L27: 01 | M27: 044908 | N27: 000009 | O27: 37|01|01|000009 | P27: 01 | Q27: 01 | R27: 02 | S27: 09 | T27: 09 | U27: 01|01|02|09|09 | V27: National | W27: Sport, Arts and Culture | X27: Administration | Y27: Ministry | Z27: Non-transfer item | AA27: Current | AB27: Current payments | AC27: Goods and services | AD27: Communication (G&S) | AE27: Communication (G&S) | AF27: Learning and culture | AG27: Arts, culture, sport and recreation | AH27: NAT | AI27: 0 | AJ27: 0 | AK27: 0 | AL27: 0 | AM27: 0 | AN27: 0 | AO27: 0 | AP27: 0 | AQ27: 0 | AR27: 0 | AS27: 0 | CB27: =Dataset[[#This Row],[2026/27 From - Spending review Topic 1]]+Dataset[[#This Row],[2026/27 From - Spending review Topic 2]]+Dataset[[#This Row],[2026/27 From - Spending review Topic 3]]+Dataset[[#This Row],[2026/27 From - Spending review Topic 4]]+Dataset[[#This Row],[2026/27 From - Other reallocations]] -> 0 | CC27: =Dataset[[#This Row],[2027/28 From - Spending review Topic 1]]+Dataset[[#This Row],[2027/28 From - Spending review Topic 2]]+Dataset[[#This Row],[2027/28 From - Spending review Topic 3]]+Dataset[[#This Row],[2027/28 From - Spending review Topic 4]]+Dataset[[#This Row],[2027/28 From - Other reallocations]] -> 0 | CD27: =Dataset[[#This Row],[2028/29 From - Spending review Topic 1]]+Dataset[[#This Row],[2028/29 From - Spending review Topic 2]]+Dataset[[#This Row],[2028/29 From - Spending review Topic 3]]+Dataset[[#This Row],[2028/29 From - Spending review Topic 4]]+Dataset[[#This Row],[2028/29 From - Other reallocations]] -> 0 | CE27: =Dataset[[#This Row],[2026/27 To - Spending review Topic 1]]+Dataset[[#This Row],[2026/27 To - Spending review Topic 2]]+Dataset[[#This Row],[2026/27 To - Spending review Topic 3]]+Dataset[[#This Row],[2026/27 To - Spending review Topic 4]]+Dataset[[#This Row],[2026/27 To - Other reallocations]] -> 0 | CF27: =Dataset[[#This Row],[2027/28 To - Spending review Topic 1]]+Dataset[[#This Row],[2027/28 To - Spending review Topic 2]]+Dataset[[#This Row],[2027/28 To - Spending review Topic 3]]+Dataset[[#This Row],[2027/28 To - Spending review Topic 4]]+Dataset[[#This Row],[2027/28 To - Other reallocations]] -> 0 | CG27: =Dataset[[#This Row],[2028/29 To - Spending review Topic 1]]+Dataset[[#This Row],[2028/29 To - Spending review Topic 2]]+Dataset[[#This Row],[2028/29 To - Spending review Topic 3]]+Dataset[[#This Row],[2028/29 To - Spending review Topic 4]]+Dataset[[#This Row],[2028/29 To - Other reallocations]] -> 0 | CH27: =Dataset[[#This Row],[2026/27 Targeted savings]]+Dataset[[#This Row],[2026/27 From - Total]] -> 0 | CI27: =Dataset[[#This Row],[2027/28 Targeted savings]]+Dataset[[#This Row],[2027/28 From - Total]] -> 0 | CJ27: =Dataset[[#This Row],[2028/29 Targeted savings]]+Dataset[[#This Row],[2028/29 From - Total]] -> 0 | CK27: =Dataset[[#This Row],[2025/26 Targeted savings]] -> 0 | CL27: =SUM(Dataset[[#This Row],[2026/27 Targeted savings]],Dataset[[#This Row],[2026/27 From - Total]],Dataset[[#This Row],[2026/27 To - Total]]) -> 0 | CM27: =SUM(Dataset[[#This Row],[2027/28 Targeted savings]],Dataset[[#This Row],[2027/28 From - Total]],Dataset[[#This Row],[2027/28 To - Total]]) -> 0 | CN27: =SUM(Dataset[[#This Row],[2028/29 Targeted savings]],Dataset[[#This Row],[2028/29 From - Total]],Dataset[[#This Row],[2028/29 To - Total]]) -> 0 | CO27: =Dataset[[#This Row],[2025/26 Baseline]]+Dataset[[#This Row],[2025/26 Total change]] -> 0 | CP27: =Dataset[[#This Row],[2026/27 Baseline]]+Dataset[[#This Row],[2026/27 Total change]] -> 0 | CQ27: =Dataset[[#This Row],[2027/28 Baseline]]+Dataset[[#This Row],[2027/28 Total change]] -> 0 | CR27: =Dataset[[#This Row],[2028/29 Baseline]]+Dataset[[#This Row],[2028/29 Total change]] -> 0
A28: NAT|Non-transfer item | B28: 37|Computer services | C28: 2026_27 | D28: MTEC2026 | E28: 37 | F28: 1 | G28: 1 | H28: 44909 | I28: 10 | J28: 37 | K28: 01 | L28: 01 | M28: 044909 | N28: 000010 | O28: 37|01|01|000010 | P28: 01 | Q28: 01 | R28: 02 | S28: 10 | T28: 10 | U28: 01|01|02|10|10 | V28: National | W28: Sport, Arts and Culture | X28: Administration | Y28: Ministry | Z28: Non-transfer item | AA28: Current | AB28: Current payments | AC28: Goods and services | AD28: Computer services | AE28: Computer services | AF28: Learning and culture | AG28: Arts, culture, sport and recreation | AH28: NAT | AI28: 0 | AJ28: 0 | AK28: 0 | AL28: 0 | AM28: 0 | AN28: 0 | AO28: 0 | AP28: 0 | AQ28: 0 | AR28: 0 | AS28: 0 | CB28: =Dataset[[#This Row],[2026/27 From - Spending review Topic 1]]+Dataset[[#This Row],[2026/27 From - Spending review Topic 2]]+Dataset[[#This Row],[2026/27 From - Spending review Topic 3]]+Dataset[[#This Row],[2026/27 From - Spending review Topic 4]]+Dataset[[#This Row],[2026/27 From - Other reallocations]] -> 0 | CC28: =Dataset[[#This Row],[2027/28 From - Spending review Topic 1]]+Dataset[[#This Row],[2027/28 From - Spending review Topic 2]]+Dataset[[#This Row],[2027/28 From - Spending review Topic 3]]+Dataset[[#This Row],[2027/28 From - Spending review Topic 4]]+Dataset[[#This Row],[2027/28 From - Other reallocations]] -> 0 | CD28: =Dataset[[#This Row],[2028/29 From - Spending review Topic 1]]+Dataset[[#This Row],[2028/29 From - Spending review Topic 2]]+Dataset[[#This Row],[2028/29 From - Spending review Topic 3]]+Dataset[[#This Row],[2028/29 From - Spending review Topic 4]]+Dataset[[#This Row],[2028/29 From - Other reallocations]] -> 0 | CE28: =Dataset[[#This Row],[2026/27 To - Spending review Topic 1]]+Dataset[[#This Row],[2026/27 To - Spending review Topic 2]]+Dataset[[#This Row],[2026/27 To - Spending review Topic 3]]+Dataset[[#This Row],[2026/27 To - Spending review Topic 4]]+Dataset[[#This Row],[2026/27 To - Other reallocations]] -> 0 | CF28: =Dataset[[#This Row],[2027/28 To - Spending review Topic 1]]+Dataset[[#This Row],[2027/28 To - Spending review Topic 2]]+Dataset[[#This Row],[2027/28 To - Spending review Topic 3]]+Dataset[[#This Row],[2027/28 To - Spending review Topic 4]]+Dataset[[#This Row],[2027/28 To - Other reallocations]] -> 0 | CG28: =Dataset[[#This Row],[2028/29 To - Spending review Topic 1]]+Dataset[[#This Row],[2028/29 To - Spending review Topic 2]]+Dataset[[#This Row],[2028/29 To - Spending review Topic 3]]+Dataset[[#This Row],[2028/29 To - Spending review Topic 4]]+Dataset[[#This Row],[2028/29 To - Other reallocations]] -> 0 | CH28: =Dataset[[#This Row],[2026/27 Targeted savings]]+Dataset[[#This Row],[2026/27 From - Total]] -> 0 | CI28: =Dataset[[#This Row],[2027/28 Targeted savings]]+Dataset[[#This Row],[2027/28 From - Total]] -> 0 | CJ28: =Dataset[[#This Row],[2028/29 Targeted savings]]+Dataset[[#This Row],[2028/29 From - Total]] -> 0 | CK28: =Dataset[[#This Row],[2025/26 Targeted savings]] -> 0 | CL28: =SUM(Dataset[[#This Row],[2026/27 Targeted savings]],Dataset[[#This Row],[2026/27 From - Total]],Dataset[[#This Row],[2026/27 To - Total]]) -> 0 | CM28: =SUM(Dataset[[#This Row],[2027/28 Targeted savings]],Dataset[[#This Row],[2027/28 From - Total]],Dataset[[#This Row],[2027/28 To - Total]]) -> 0 | CN28: =SUM(Dataset[[#This Row],[2028/29 Targeted savings]],Dataset[[#This Row],[2028/29 From - Total]],Dataset[[#This Row],[2028/29 To - Total]]) -> 0 | CO28: =Dataset[[#This Row],[2025/26 Baseline]]+Dataset[[#This Row],[2025/26 Total change]] -> 0 | CP28: =Dataset[[#This Row],[2026/27 Baseline]]+Dataset[[#This Row],[2026/27 Total change]] -> 0 | CQ28: =Dataset[[#This Row],[2027/28 Baseline]]+Dataset[[#This Row],[2027/28 Total change]] -> 0 | CR28: =Dataset[[#This Row],[2028/29 Baseline]]+Dataset[[#This Row],[2028/29 Total change]] -> 0
A29: NAT|Non-transfer item | B29: 37|Consultants: Business and advisory services | C29: 2026_27 | D29: MTEC2026 | E29: 37 | F29: 1 | G29: 1 | H29: 44910 | I29: 11 | J29: 37 | K29: 01 | L29: 01 | M29: 044910 | N29: 000011 | O29: 37|01|01|000011 | P29: 01 | Q29: 01 | R29: 02 | S29: 11 | T29: 11 | U29: 01|01|02|11|11 | V29: National | W29: Sport, Arts and Culture | X29: Administration | Y29: Ministry | Z29: Non-transfer item | AA29: Current | AB29: Current payments | AC29: Goods and services | AD29: Consultants: Business and advisory services | AE29: Consultants: Business and advisory services | AF29: Learning and culture | AG29: Arts, culture, sport and recreation | AH29: NAT | AI29: 0 | AJ29: 0 | AK29: 0 | AL29: 0 | AM29: 0 | AN29: 0 | AO29: 0 | AP29: 0 | AQ29: 0 | AR29: 0 | AS29: 0 | CB29: =Dataset[[#This Row],[2026/27 From - Spending review Topic 1]]+Dataset[[#This Row],[2026/27 From - Spending review Topic 2]]+Dataset[[#This Row],[2026/27 From - Spending review Topic 3]]+Dataset[[#This Row],[2026/27 From - Spending review Topic 4]]+Dataset[[#This Row],[2026/27 From - Other reallocations]] -> 0 | CC29: =Dataset[[#This Row],[2027/28 From - Spending review Topic 1]]+Dataset[[#This Row],[2027/28 From - Spending review Topic 2]]+Dataset[[#This Row],[2027/28 From - Spending review Topic 3]]+Dataset[[#This Row],[2027/28 From - Spending review Topic 4]]+Dataset[[#This Row],[2027/28 From - Other reallocations]] -> 0 | CD29: =Dataset[[#This Row],[2028/29 From - Spending review Topic 1]]+Dataset[[#This Row],[2028/29 From - Spending review Topic 2]]+Dataset[[#This Row],[2028/29 From - Spending review Topic 3]]+Dataset[[#This Row],[2028/29 From - Spending review Topic 4]]+Dataset[[#This Row],[2028/29 From - Other reallocations]] -> 0 | CE29: =Dataset[[#This Row],[2026/27 To - Spending review Topic 1]]+Dataset[[#This Row],[2026/27 To - Spending review Topic 2]]+Dataset[[#This Row],[2026/27 To - Spending review Topic 3]]+Dataset[[#This Row],[2026/27 To - Spending review Topic 4]]+Dataset[[#This Row],[2026/27 To - Other reallocations]] -> 0 | CF29: =Dataset[[#This Row],[2027/28 To - Spending review Topic 1]]+Dataset[[#This Row],[2027/28 To - Spending review Topic 2]]+Dataset[[#This Row],[2027/28 To - Spending review Topic 3]]+Dataset[[#This Row],[2027/28 To - Spending review Topic 4]]+Dataset[[#This Row],[2027/28 To - Other reallocations]] -> 0 | CG29: =Dataset[[#This Row],[2028/29 To - Spending review Topic 1]]+Dataset[[#This Row],[2028/29 To - Spending review Topic 2]]+Dataset[[#This Row],[2028/29 To - Spending review Topic 3]]+Dataset[[#This Row],[2028/29 To - Spending review Topic 4]]+Dataset[[#This Row],[2028/29 To - Other reallocations]] -> 0 | CH29: =Dataset[[#This Row],[2026/27 Targeted savings]]+Dataset[[#This Row],[2026/27 From - Total]] -> 0 | CI29: =Dataset[[#This Row],[2027/28 Targeted savings]]+Dataset[[#This Row],[2027/28 From - Total]] -> 0 | CJ29: =Dataset[[#This Row],[2028/29 Targeted savings]]+Dataset[[#This Row],[2028/29 From - Total]] -> 0 | CK29: =Dataset[[#This Row],[2025/26 Targeted savings]] -> 0 | CL29: =SUM(Dataset[[#This Row],[2026/27 Targeted savings]],Dataset[[#This Row],[2026/27 From - Total]],Dataset[[#This Row],[2026/27 To - Total]]) -> 0 | CM29: =SUM(Dataset[[#This Row],[2027/28 Targeted savings]],Dataset[[#This Row],[2027/28 From - Total]],Dataset[[#This Row],[2027/28 To - Total]]) -> 0 | CN29: =SUM(Dataset[[#This Row],[2028/29 Targeted savings]],Dataset[[#This Row],[2028/29 From - Total]],Dataset[[#This Row],[2028/29 To - Total]]) -> 0 | CO29: =Dataset[[#This Row],[2025/26 Baseline]]+Dataset[[#This Row],[2025/26 Total change]] -> 0 | CP29: =Dataset[[#This Row],[2026/27 Baseline]]+Dataset[[#This Row],[2026/27 Total change]] -> 0 | CQ29: =Dataset[[#This Row],[2027/28 Baseline]]+Dataset[[#This Row],[2027/28 Total change]] -> 0 | CR29: =Dataset[[#This Row],[2028/29 Baseline]]+Dataset[[#This Row],[2028/29 Total change]] -> 0
A30: NAT|Non-transfer item | B30: 37|Infrastructure and planning services | C30: 2026_27 | D30: MTEC2026 | E30: 37 | F30: 1 | G30: 1 | H30: 44911 | I30: 12 | J30: 37 | K30: 01 | L30: 01 | M30: 044911 | N30: 000012 | O30: 37|01|01|000012 | P30: 01 | Q30: 01 | R30: 02 | S30: 12 | T30: 12 | U30: 01|01|02|12|12 | V30: National | W30: Sport, Arts and Culture | X30: Administration | Y30: Ministry | Z30: Non-transfer item | AA30: Current | AB30: Current payments | AC30: Goods and services | AD30: Infrastructure and planning services | AE30: Infrastructure and planning services | AF30: Learning and culture | AG30: Arts, culture, sport and recreation | AH30: NAT | AI30: 0 | AJ30: 0 | AK30: 0 | AL30: 0 | AM30: 0 | AN30: 0 | AO30: 0 | AP30: 0 | AQ30: 0 | AR30: 0 | AS30: 0 | CB30: =Dataset[[#This Row],[2026/27 From - Spending review Topic 1]]+Dataset[[#This Row],[2026/27 From - Spending review Topic 2]]+Dataset[[#This Row],[2026/27 From - Spending review Topic 3]]+Dataset[[#This Row],[2026/27 From - Spending review Topic 4]]+Dataset[[#This Row],[2026/27 From - Other reallocations]] -> 0 | CC30: =Dataset[[#This Row],[2027/28 From - Spending review Topic 1]]+Dataset[[#This Row],[2027/28 From - Spending review Topic 2]]+Dataset[[#This Row],[2027/28 From - Spending review Topic 3]]+Dataset[[#This Row],[2027/28 From - Spending review Topic 4]]+Dataset[[#This Row],[2027/28 From - Other reallocations]] -> 0 | CD30: =Dataset[[#This Row],[2028/29 From - Spending review Topic 1]]+Dataset[[#This Row],[2028/29 From - Spending review Topic 2]]+Dataset[[#This Row],[2028/29 From - Spending review Topic 3]]+Dataset[[#This Row],[2028/29 From - Spending review Topic 4]]+Dataset[[#This Row],[2028/29 From - Other reallocations]] -> 0 | CE30: =Dataset[[#This Row],[2026/27 To - Spending review Topic 1]]+Dataset[[#This Row],[2026/27 To - Spending review Topic 2]]+Dataset[[#This Row],[2026/27 To - Spending review Topic 3]]+Dataset[[#This Row],[2026/27 To - Spending review Topic 4]]+Dataset[[#This Row],[2026/27 To - Other reallocations]] -> 0 | CF30: =Dataset[[#This Row],[2027/28 To - Spending review Topic 1]]+Dataset[[#This Row],[2027/28 To - Spending review Topic 2]]+Dataset[[#This Row],[2027/28 To - Spending review Topic 3]]+Dataset[[#This Row],[2027/28 To - Spending review Topic 4]]+Dataset[[#This Row],[2027/28 To - Other reallocations]] -> 0 | CG30: =Dataset[[#This Row],[2028/29 To - Spending review Topic 1]]+Dataset[[#This Row],[2028/29 To - Spending review Topic 2]]+Dataset[[#This Row],[2028/29 To - Spending review Topic 3]]+Dataset[[#This Row],[2028/29 To - Spending review Topic 4]]+Dataset[[#This Row],[2028/29 To - Other reallocations]] -> 0 | CH30: =Dataset[[#This Row],[2026/27 Targeted savings]]+Dataset[[#This Row],[2026/27 From - Total]] -> 0 | CI30: =Dataset[[#This Row],[2027/28 Targeted savings]]+Dataset[[#This Row],[2027/28 From - Total]] -> 0 | CJ30: =Dataset[[#This Row],[2028/29 Targeted savings]]+Dataset[[#This Row],[2028/29 From - Total]] -> 0 | CK30: =Dataset[[#This Row],[2025/26 Targeted savings]] -> 0 | CL30: =SUM(Dataset[[#This Row],[2026/27 Targeted savings]],Dataset[[#This Row],[2026/27 From - Total]],Dataset[[#This Row],[2026/27 To - Total]]) -> 0 | CM30: =SUM(Dataset[[#This Row],[2027/28 Targeted savings]],Dataset[[#This Row],[2027/28 From - Total]],Dataset[[#This Row],[2027/28 To - Total]]) -> 0 | CN30: =SUM(Dataset[[#This Row],[2028/29 Targeted savings]],Dataset[[#This Row],[2028/29 From - Total]],Dataset[[#This Row],[2028/29 To - Total]]) -> 0 | CO30: =Dataset[[#This Row],[2025/26 Baseline]]+Dataset[[#This Row],[2025/26 Total change]] -> 0 | CP30: =Dataset[[#This Row],[2026/27 Baseline]]+Dataset[[#This Row],[2026/27 Total change]] -> 0 | CQ30: =Dataset[[#This Row],[2027/28 Baseline]]+Dataset[[#This Row],[2027/28 Total change]] -> 0 | CR30: =Dataset[[#This Row],[2028/29 Baseline]]+Dataset[[#This Row],[2028/29 Total change]] -> 0
A31: NAT|Non-transfer item | B31: 37|Laboratory services | C31: 2026_27 | D31: MTEC2026 | E31: 37 | F31: 1 | G31: 1 | H31: 44912 | I31: 13 | J31: 37 | K31: 01 | L31: 01 | M31: 044912 | N31: 000013 | O31: 37|01|01|000013 | P31: 01 | Q31: 01 | R31: 02 | S31: 13 | T31: 13 | U31: 01|01|02|13|13 | V31: National | W31: Sport, Arts and Culture | X31: Administration | Y31: Ministry | Z31: Non-transfer item | AA31: Current | AB31: Current payments | AC31: Goods and services | AD31: Laboratory services | AE31: Laboratory services | AF31: Learning and culture | AG31: Arts, culture, sport and recreation | AH31: NAT | AI31: 0 | AJ31: 0 | AK31: 0 | AL31: 0 | AM31: 0 | AN31: 0 | AO31: 0 | AP31: 0 | AQ31: 0 | AR31: 0 | AS31: 0 | CB31: =Dataset[[#This Row],[2026/27 From - Spending review Topic 1]]+Dataset[[#This Row],[2026/27 From - Spending review Topic 2]]+Dataset[[#This Row],[2026/27 From - Spending review Topic 3]]+Dataset[[#This Row],[2026/27 From - Spending review Topic 4]]+Dataset[[#This Row],[2026/27 From - Other reallocations]] -> 0 | CC31: =Dataset[[#This Row],[2027/28 From - Spending review Topic 1]]+Dataset[[#This Row],[2027/28 From - Spending review Topic 2]]+Dataset[[#This Row],[2027/28 From - Spending review Topic 3]]+Dataset[[#This Row],[2027/28 From - Spending review Topic 4]]+Dataset[[#This Row],[2027/28 From - Other reallocations]] -> 0 | CD31: =Dataset[[#This Row],[2028/29 From - Spending review Topic 1]]+Dataset[[#This Row],[2028/29 From - Spending review Topic 2]]+Dataset[[#This Row],[2028/29 From - Spending review Topic 3]]+Dataset[[#This Row],[2028/29 From - Spending review Topic 4]]+Dataset[[#This Row],[2028/29 From - Other reallocations]] -> 0 | CE31: =Dataset[[#This Row],[2026/27 To - Spending review Topic 1]]+Dataset[[#This Row],[2026/27 To - Spending review Topic 2]]+Dataset[[#This Row],[2026/27 To - Spending review Topic 3]]+Dataset[[#This Row],[2026/27 To - Spending review Topic 4]]+Dataset[[#This Row],[2026/27 To - Other reallocations]] -> 0 | CF31: =Dataset[[#This Row],[2027/28 To - Spending review Topic 1]]+Dataset[[#This Row],[2027/28 To - Spending review Topic 2]]+Dataset[[#This Row],[2027/28 To - Spending review Topic 3]]+Dataset[[#This Row],[2027/28 To - Spending review Topic 4]]+Dataset[[#This Row],[2027/28 To - Other reallocations]] -> 0 | CG31: =Dataset[[#This Row],[2028/29 To - Spending review Topic 1]]+Dataset[[#This Row],[2028/29 To - Spending review Topic 2]]+Dataset[[#This Row],[2028/29 To - Spending review Topic 3]]+Dataset[[#This Row],[2028/29 To - Spending review Topic 4]]+Dataset[[#This Row],[2028/29 To - Other reallocations]] -> 0 | CH31: =Dataset[[#This Row],[2026/27 Targeted savings]]+Dataset[[#This Row],[2026/27 From - Total]] -> 0 | CI31: =Dataset[[#This Row],[2027/28 Targeted savings]]+Dataset[[#This Row],[2027/28 From - Total]] -> 0 | CJ31: =Dataset[[#This Row],[2028/29 Targeted savings]]+Dataset[[#This Row],[2028/29 From - Total]] -> 0 | CK31: =Dataset[[#This Row],[2025/26 Targeted savings]] -> 0 | CL31: =SUM(Dataset[[#This Row],[2026/27 Targeted savings]],Dataset[[#This Row],[2026/27 From - Total]],Dataset[[#This Row],[2026/27 To - Total]]) -> 0 | CM31: =SUM(Dataset[[#This Row],[2027/28 Targeted savings]],Dataset[[#This Row],[2027/28 From - Total]],Dataset[[#This Row],[2027/28 To - Total]]) -> 0 | CN31: =SUM(Dataset[[#This Row],[2028/29 Targeted savings]],Dataset[[#This Row],[2028/29 From - Total]],Dataset[[#This Row],[2028/29 To - Total]]) -> 0 | CO31: =Dataset[[#This Row],[2025/26 Baseline]]+Dataset[[#This Row],[2025/26 Total change]] -> 0 | CP31: =Dataset[[#This Row],[2026/27 Baseline]]+Dataset[[#This Row],[2026/27 Total change]] -> 0 | CQ31: =Dataset[[#This Row],[2027/28 Baseline]]+Dataset[[#This Row],[2027/28 Total change]] -> 0 | CR31: =Dataset[[#This Row],[2028/29 Baseline]]+Dataset[[#This Row],[2028/29 Total change]] -> 0
A32: NAT|Non-transfer item | B32: 37|Legal services (G&S) | C32: 2026_27 | D32: MTEC2026 | E32: 37 | F32: 1 | G32: 1 | H32: 44913 | I32: 14 | J32: 37 | K32: 01 | L32: 01 | M32: 044913 | N32: 000014 | O32: 37|01|01|000014 | P32: 01 | Q32: 01 | R32: 02 | S32: 14 | T32: 14 | U32: 01|01|02|14|14 | V32: National | W32: Sport, Arts and Culture | X32: Administration | Y32: Ministry | Z32: Non-transfer item | AA32: Current | AB32: Current payments | AC32: Goods and services | AD32: Legal services (G&S) | AE32: Legal services (G&S) | AF32: Learning and culture | AG32: Arts, culture, sport and recreation | AH32: NAT | AI32: 0 | AJ32: 0 | AK32: 0 | AL32: 0 | AM32: 0 | AN32: 0 | AO32: 0 | AP32: 0 | AQ32: 0 | AR32: 0 | AS32: 0 | CB32: =Dataset[[#This Row],[2026/27 From - Spending review Topic 1]]+Dataset[[#This Row],[2026/27 From - Spending review Topic 2]]+Dataset[[#This Row],[2026/27 From - Spending review Topic 3]]+Dataset[[#This Row],[2026/27 From - Spending review Topic 4]]+Dataset[[#This Row],[2026/27 From - Other reallocations]] -> 0 | CC32: =Dataset[[#This Row],[2027/28 From - Spending review Topic 1]]+Dataset[[#This Row],[2027/28 From - Spending review Topic 2]]+Dataset[[#This Row],[2027/28 From - Spending review Topic 3]]+Dataset[[#This Row],[2027/28 From - Spending review Topic 4]]+Dataset[[#This Row],[2027/28 From - Other reallocations]] -> 0 | CD32: =Dataset[[#This Row],[2028/29 From - Spending review Topic 1]]+Dataset[[#This Row],[2028/29 From - Spending review Topic 2]]+Dataset[[#This Row],[2028/29 From - Spending review Topic 3]]+Dataset[[#This Row],[2028/29 From - Spending review Topic 4]]+Dataset[[#This Row],[2028/29 From - Other reallocations]] -> 0 | CE32: =Dataset[[#This Row],[2026/27 To - Spending review Topic 1]]+Dataset[[#This Row],[2026/27 To - Spending review Topic 2]]+Dataset[[#This Row],[2026/27 To - Spending review Topic 3]]+Dataset[[#This Row],[2026/27 To - Spending review Topic 4]]+Dataset[[#This Row],[2026/27 To - Other reallocations]] -> 0 | CF32: =Dataset[[#This Row],[2027/28 To - Spending review Topic 1]]+Dataset[[#This Row],[2027/28 To - Spending review Topic 2]]+Dataset[[#This Row],[2027/28 To - Spending review Topic 3]]+Dataset[[#This Row],[2027/28 To - Spending review Topic 4]]+Dataset[[#This Row],[2027/28 To - Other reallocations]] -> 0 | CG32: =Dataset[[#This Row],[2028/29 To - Spending review Topic 1]]+Dataset[[#This Row],[2028/29 To - Spending review Topic 2]]+Dataset[[#This Row],[2028/29 To - Spending review Topic 3]]+Dataset[[#This Row],[2028/29 To - Spending review Topic 4]]+Dataset[[#This Row],[2028/29 To - Other reallocations]] -> 0 | CH32: =Dataset[[#This Row],[2026/27 Targeted savings]]+Dataset[[#This Row],[2026/27 From - Total]] -> 0 | CI32: =Dataset[[#This Row],[2027/28 Targeted savings]]+Dataset[[#This Row],[2027/28 From - Total]] -> 0 | CJ32: =Dataset[[#This Row],[2028/29 Targeted savings]]+Dataset[[#This Row],[2028/29 From - Total]] -> 0 | CK32: =Dataset[[#This Row],[2025/26 Targeted savings]] -> 0 | CL32: =SUM(Dataset[[#This Row],[2026/27 Targeted savings]],Dataset[[#This Row],[2026/27 From - Total]],Dataset[[#This Row],[2026/27 To - Total]]) -> 0 | CM32: =SUM(Dataset[[#This Row],[2027/28 Targeted savings]],Dataset[[#This Row],[2027/28 From - Total]],Dataset[[#This Row],[2027/28 To - Total]]) -> 0 | CN32: =SUM(Dataset[[#This Row],[2028/29 Targeted savings]],Dataset[[#This Row],[2028/29 From - Total]],Dataset[[#This Row],[2028/29 To - Total]]) -> 0 | CO32: =Dataset[[#This Row],[2025/26 Baseline]]+Dataset[[#This Row],[2025/26 Total change]] -> 0 | CP32: =Dataset[[#This Row],[2026/27 Baseline]]+Dataset[[#This Row],[2026/27 Total change]] -> 0 | CQ32: =Dataset[[#This Row],[2027/28 Baseline]]+Dataset[[#This Row],[2027/28 Total change]] -> 0 | CR32: =Dataset[[#This Row],[2028/29 Baseline]]+Dataset[[#This Row],[2028/29 Total change]] -> 0
A33: NAT|Non-transfer item | B33: 37|Science and technological services | C33: 2026_27 | D33: MTEC2026 | E33: 37 | F33: 1 | G33: 1 | H33: 44914 | I33: 15 | J33: 37 | K33: 01 | L33: 01 | M33: 044914 | N33: 000015 | O33: 37|01|01|000015 | P33: 01 | Q33: 01 | R33: 02 | S33: 15 | T33: 15 | U33: 01|01|02|15|15 | V33: National | W33: Sport, Arts and Culture | X33: Administration | Y33: Ministry | Z33: Non-transfer item | AA33: Current | AB33: Current payments | AC33: Goods and services | AD33: Science and technological services | AE33: Science and technological services | AF33: Learning and culture | AG33: Arts, culture, sport and recreation | AH33: NAT | AI33: 0 | AJ33: 0 | AK33: 0 | AL33: 0 | AM33: 0 | AN33: 0 | AO33: 0 | AP33: 0 | AQ33: 0 | AR33: 0 | AS33: 0 | CB33: =Dataset[[#This Row],[2026/27 From - Spending review Topic 1]]+Dataset[[#This Row],[2026/27 From - Spending review Topic 2]]+Dataset[[#This Row],[2026/27 From - Spending review Topic 3]]+Dataset[[#This Row],[2026/27 From - Spending review Topic 4]]+Dataset[[#This Row],[2026/27 From - Other reallocations]] -> 0 | CC33: =Dataset[[#This Row],[2027/28 From - Spending review Topic 1]]+Dataset[[#This Row],[2027/28 From - Spending review Topic 2]]+Dataset[[#This Row],[2027/28 From - Spending review Topic 3]]+Dataset[[#This Row],[2027/28 From - Spending review Topic 4]]+Dataset[[#This Row],[2027/28 From - Other reallocations]] -> 0 | CD33: =Dataset[[#This Row],[2028/29 From - Spending review Topic 1]]+Dataset[[#This Row],[2028/29 From - Spending review Topic 2]]+Dataset[[#This Row],[2028/29 From - Spending review Topic 3]]+Dataset[[#This Row],[2028/29 From - Spending review Topic 4]]+Dataset[[#This Row],[2028/29 From - Other reallocations]] -> 0 | CE33: =Dataset[[#This Row],[2026/27 To - Spending review Topic 1]]+Dataset[[#This Row],[2026/27 To - Spending review Topic 2]]+Dataset[[#This Row],[2026/27 To - Spending review Topic 3]]+Dataset[[#This Row],[2026/27 To - Spending review Topic 4]]+Dataset[[#This Row],[2026/27 To - Other reallocations]] -> 0 | CF33: =Dataset[[#This Row],[2027/28 To - Spending review Topic 1]]+Dataset[[#This Row],[2027/28 To - Spending review Topic 2]]+Dataset[[#This Row],[2027/28 To - Spending review Topic 3]]+Dataset[[#This Row],[2027/28 To - Spending review Topic 4]]+Dataset[[#This Row],[2027/28 To - Other reallocations]] -> 0 | CG33: =Dataset[[#This Row],[2028/29 To - Spending review Topic 1]]+Dataset[[#This Row],[2028/29 To - Spending review Topic 2]]+Dataset[[#This Row],[2028/29 To - Spending review Topic 3]]+Dataset[[#This Row],[2028/29 To - Spending review Topic 4]]+Dataset[[#This Row],[2028/29 To - Other reallocations]] -> 0 | CH33: =Dataset[[#This Row],[2026/27 Targeted savings]]+Dataset[[#This Row],[2026/27 From - Total]] -> 0 | CI33: =Dataset[[#This Row],[2027/28 Targeted savings]]+Dataset[[#This Row],[2027/28 From - Total]] -> 0 | CJ33: =Dataset[[#This Row],[2028/29 Targeted savings]]+Dataset[[#This Row],[2028/29 From - Total]] -> 0 | CK33: =Dataset[[#This Row],[2025/26 Targeted savings]] -> 0 | CL33: =SUM(Dataset[[#This Row],[2026/27 Targeted savings]],Dataset[[#This Row],[2026/27 From - Total]],Dataset[[#This Row],[2026/27 To - Total]]) -> 0 | CM33: =SUM(Dataset[[#This Row],[2027/28 Targeted savings]],Dataset[[#This Row],[2027/28 From - Total]],Dataset[[#This Row],[2027/28 To - Total]]) -> 0 | CN33: =SUM(Dataset[[#This Row],[2028/29 Targeted savings]],Dataset[[#This Row],[2028/29 From - Total]],Dataset[[#This Row],[2028/29 To - Total]]) -> 0 | CO33: =Dataset[[#This Row],[2025/26 Baseline]]+Dataset[[#This Row],[2025/26 Total change]] -> 0 | CP33: =Dataset[[#This Row],[2026/27 Baseline]]+Dataset[[#This Row],[2026/27 Total change]] -> 0 | CQ33: =Dataset[[#This Row],[2027/28 Baseline]]+Dataset[[#This Row],[2027/28 Total change]] -> 0 | CR33: =Dataset[[#This Row],[2028/29 Baseline]]+Dataset[[#This Row],[2028/29 Total change]] -> 0
A34: NAT|Non-transfer item | B34: 37|Contractors | C34: 2026_27 | D34: MTEC2026 | E34: 37 | F34: 1 | G34: 1 | H34: 44915 | I34: 16 | J34: 37 | K34: 01 | L34: 01 | M34: 044915 | N34: 000016 | O34: 37|01|01|000016 | P34: 01 | Q34: 01 | R34: 02 | S34: 16 | T34: 16 | U34: 01|01|02|16|16 | V34: National | W34: Sport, Arts and Culture | X34: Administration | Y34: Ministry | Z34: Non-transfer item | AA34: Current | AB34: Current payments | AC34: Goods and services | AD34: Contractors | AE34: Contractors | AF34: Learning and culture | AG34: Arts, culture, sport and recreation | AH34: NAT | AI34: 0 | AJ34: 0 | AK34: 0 | AL34: 0 | AM34: 0 | AN34: 0 | AO34: 0 | AP34: 0 | AQ34: 0 | AR34: 0 | AS34: 0 | CB34: =Dataset[[#This Row],[2026/27 From - Spending review Topic 1]]+Dataset[[#This Row],[2026/27 From - Spending review Topic 2]]+Dataset[[#This Row],[2026/27 From - Spending review Topic 3]]+Dataset[[#This Row],[2026/27 From - Spending review Topic 4]]+Dataset[[#This Row],[2026/27 From - Other reallocations]] -> 0 | CC34: =Dataset[[#This Row],[2027/28 From - Spending review Topic 1]]+Dataset[[#This Row],[2027/28 From - Spending review Topic 2]]+Dataset[[#This Row],[2027/28 From - Spending review Topic 3]]+Dataset[[#This Row],[2027/28 From - Spending review Topic 4]]+Dataset[[#This Row],[2027/28 From - Other reallocations]] -> 0 | CD34: =Dataset[[#This Row],[2028/29 From - Spending review Topic 1]]+Dataset[[#This Row],[2028/29 From - Spending review Topic 2]]+Dataset[[#This Row],[2028/29 From - Spending review Topic 3]]+Dataset[[#This Row],[2028/29 From - Spending review Topic 4]]+Dataset[[#This Row],[2028/29 From - Other reallocations]] -> 0 | CE34: =Dataset[[#This Row],[2026/27 To - Spending review Topic 1]]+Dataset[[#This Row],[2026/27 To - Spending review Topic 2]]+Dataset[[#This Row],[2026/27 To - Spending review Topic 3]]+Dataset[[#This Row],[2026/27 To - Spending review Topic 4]]+Dataset[[#This Row],[2026/27 To - Other reallocations]] -> 0 | CF34: =Dataset[[#This Row],[2027/28 To - Spending review Topic 1]]+Dataset[[#This Row],[2027/28 To - Spending review Topic 2]]+Dataset[[#This Row],[2027/28 To - Spending review Topic 3]]+Dataset[[#This Row],[2027/28 To - Spending review Topic 4]]+Dataset[[#This Row],[2027/28 To - Other reallocations]] -> 0 | CG34: =Dataset[[#This Row],[2028/29 To - Spending review Topic 1]]+Dataset[[#This Row],[2028/29 To - Spending review Topic 2]]+Dataset[[#This Row],[2028/29 To - Spending review Topic 3]]+Dataset[[#This Row],[2028/29 To - Spending review Topic 4]]+Dataset[[#This Row],[2028/29 To - Other reallocations]] -> 0 | CH34: =Dataset[[#This Row],[2026/27 Targeted savings]]+Dataset[[#This Row],[2026/27 From - Total]] -> 0 | CI34: =Dataset[[#This Row],[2027/28 Targeted savings]]+Dataset[[#This Row],[2027/28 From - Total]] -> 0 | CJ34: =Dataset[[#This Row],[2028/29 Targeted savings]]+Dataset[[#This Row],[2028/29 From - Total]] -> 0 | CK34: =Dataset[[#This Row],[2025/26 Targeted savings]] -> 0 | CL34: =SUM(Dataset[[#This Row],[2026/27 Targeted savings]],Dataset[[#This Row],[2026/27 From - Total]],Dataset[[#This Row],[2026/27 To - Total]]) -> 0 | CM34: =SUM(Dataset[[#This Row],[2027/28 Targeted savings]],Dataset[[#This Row],[2027/28 From - Total]],Dataset[[#This Row],[2027/28 To - Total]]) -> 0 | CN34: =SUM(Dataset[[#This Row],[2028/29 Targeted savings]],Dataset[[#This Row],[2028/29 From - Total]],Dataset[[#This Row],[2028/29 To - Total]]) -> 0 | CO34: =Dataset[[#This Row],[2025/26 Baseline]]+Dataset[[#This Row],[2025/26 Total change]] -> 0 | CP34: =Dataset[[#This Row],[2026/27 Baseline]]+Dataset[[#This Row],[2026/27 Total change]] -> 0 | CQ34: =Dataset[[#This Row],[2027/28 Baseline]]+Dataset[[#This Row],[2027/28 Total change]] -> 0 | CR34: =Dataset[[#This Row],[2028/29 Baseline]]+Dataset[[#This Row],[2028/29 Total change]] -> 0
A35: NAT|Non-transfer item | B35: 37|Agency and support/outsourced services | C35: 2026_27 | D35: MTEC2026 | E35: 37 | F35: 1 | G35: 1 | H35: 44916 | I35: 17 | J35: 37 | K35: 01 | L35: 01 | M35: 044916 | N35: 000017 | O35: 37|01|01|000017 | P35: 01 | Q35: 01 | R35: 02 | S35: 17 | T35: 17 | U35: 01|01|02|17|17 | V35: National | W35: Sport, Arts and Culture | X35: Administration | Y35: Ministry | Z35: Non-transfer item | AA35: Current | AB35: Current payments | AC35: Goods and services | AD35: Agency and support/outsourced services | AE35: Agency and support/outsourced services | AF35: Learning and culture | AG35: Arts, culture, sport and recreation | AH35: NAT | AI35: 0 | AJ35: 0 | AK35: 0 | AL35: 0 | AM35: 0 | AN35: 0 | AO35: 0 | AP35: 0 | AQ35: 0 | AR35: 0 | AS35: 0 | CB35: =Dataset[[#This Row],[2026/27 From - Spending review Topic 1]]+Dataset[[#This Row],[2026/27 From - Spending review Topic 2]]+Dataset[[#This Row],[2026/27 From - Spending review Topic 3]]+Dataset[[#This Row],[2026/27 From - Spending review Topic 4]]+Dataset[[#This Row],[2026/27 From - Other reallocations]] -> 0 | CC35: =Dataset[[#This Row],[2027/28 From - Spending review Topic 1]]+Dataset[[#This Row],[2027/28 From - Spending review Topic 2]]+Dataset[[#This Row],[2027/28 From - Spending review Topic 3]]+Dataset[[#This Row],[2027/28 From - Spending review Topic 4]]+Dataset[[#This Row],[2027/28 From - Other reallocations]] -> 0 | CD35: =Dataset[[#This Row],[2028/29 From - Spending review Topic 1]]+Dataset[[#This Row],[2028/29 From - Spending review Topic 2]]+Dataset[[#This Row],[2028/29 From - Spending review Topic 3]]+Dataset[[#This Row],[2028/29 From - Spending review Topic 4]]+Dataset[[#This Row],[2028/29 From - Other reallocations]] -> 0 | CE35: =Dataset[[#This Row],[2026/27 To - Spending review Topic 1]]+Dataset[[#This Row],[2026/27 To - Spending review Topic 2]]+Dataset[[#This Row],[2026/27 To - Spending review Topic 3]]+Dataset[[#This Row],[2026/27 To - Spending review Topic 4]]+Dataset[[#This Row],[2026/27 To - Other reallocations]] -> 0 | CF35: =Dataset[[#This Row],[2027/28 To - Spending review Topic 1]]+Dataset[[#This Row],[2027/28 To - Spending review Topic 2]]+Dataset[[#This Row],[2027/28 To - Spending review Topic 3]]+Dataset[[#This Row],[2027/28 To - Spending review Topic 4]]+Dataset[[#This Row],[2027/28 To - Other reallocations]] -> 0 | CG35: =Dataset[[#This Row],[2028/29 To - Spending review Topic 1]]+Dataset[[#This Row],[2028/29 To - Spending review Topic 2]]+Dataset[[#This Row],[2028/29 To - Spending review Topic 3]]+Dataset[[#This Row],[2028/29 To - Spending review Topic 4]]+Dataset[[#This Row],[2028/29 To - Other reallocations]] -> 0 | CH35: =Dataset[[#This Row],[2026/27 Targeted savings]]+Dataset[[#This Row],[2026/27 From - Total]] -> 0 | CI35: =Dataset[[#This Row],[2027/28 Targeted savings]]+Dataset[[#This Row],[2027/28 From - Total]] -> 0 | CJ35: =Dataset[[#This Row],[2028/29 Targeted savings]]+Dataset[[#This Row],[2028/29 From - Total]] -> 0 | CK35: =Dataset[[#This Row],[2025/26 Targeted savings]] -> 0 | CL35: =SUM(Dataset[[#This Row],[2026/27 Targeted savings]],Dataset[[#This Row],[2026/27 From - Total]],Dataset[[#This Row],[2026/27 To - Total]]) -> 0 | CM35: =SUM(Dataset[[#This Row],[2027/28 Targeted savings]],Dataset[[#This Row],[2027/28 From - Total]],Dataset[[#This Row],[2027/28 To - Total]]) -> 0 | CN35: =SUM(Dataset[[#This Row],[2028/29 Targeted savings]],Dataset[[#This Row],[2028/29 From - Total]],Dataset[[#This Row],[2028/29 To - Total]]) -> 0 | CO35: =Dataset[[#This Row],[2025/26 Baseline]]+Dataset[[#This Row],[2025/26 Total change]] -> 0 | CP35: =Dataset[[#This Row],[2026/27 Baseline]]+Dataset[[#This Row],[2026/27 Total change]] -> 0 | CQ35: =Dataset[[#This Row],[2027/28 Baseline]]+Dataset[[#This Row],[2027/28 Total change]] -> 0 | CR35: =Dataset[[#This Row],[2028/29 Baseline]]+Dataset[[#This Row],[2028/29 Total change]] -> 0
A36: NAT|Non-transfer item | B36: 37|Entertainment | C36: 2026_27 | D36: MTEC2026 | E36: 37 | F36: 1 | G36: 1 | H36: 44917 | I36: 18 | J36: 37 | K36: 01 | L36: 01 | M36: 044917 | N36: 000018 | O36: 37|01|01|000018 | P36: 01 | Q36: 01 | R36: 02 | S36: 18 | T36: 18 | U36: 01|01|02|18|18 | V36: National | W36: Sport, Arts and Culture | X36: Administration | Y36: Ministry | Z36: Non-transfer item | AA36: Current | AB36: Current payments | AC36: Goods and services | AD36: Entertainment | AE36: Entertainment | AF36: Learning and culture | AG36: Arts, culture, sport and recreation | AH36: NAT | AI36: 0 | AJ36: 0 | AK36: 0 | AL36: 0 | AM36: 0 | AN36: 0 | AO36: 0 | AP36: 0 | AQ36: 0 | AR36: 0 | AS36: 0 | CB36: =Dataset[[#This Row],[2026/27 From - Spending review Topic 1]]+Dataset[[#This Row],[2026/27 From - Spending review Topic 2]]+Dataset[[#This Row],[2026/27 From - Spending review Topic 3]]+Dataset[[#This Row],[2026/27 From - Spending review Topic 4]]+Dataset[[#This Row],[2026/27 From - Other reallocations]] -> 0 | CC36: =Dataset[[#This Row],[2027/28 From - Spending review Topic 1]]+Dataset[[#This Row],[2027/28 From - Spending review Topic 2]]+Dataset[[#This Row],[2027/28 From - Spending review Topic 3]]+Dataset[[#This Row],[2027/28 From - Spending review Topic 4]]+Dataset[[#This Row],[2027/28 From - Other reallocations]] -> 0 | CD36: =Dataset[[#This Row],[2028/29 From - Spending review Topic 1]]+Dataset[[#This Row],[2028/29 From - Spending review Topic 2]]+Dataset[[#This Row],[2028/29 From - Spending review Topic 3]]+Dataset[[#This Row],[2028/29 From - Spending review Topic 4]]+Dataset[[#This Row],[2028/29 From - Other reallocations]] -> 0 | CE36: =Dataset[[#This Row],[2026/27 To - Spending review Topic 1]]+Dataset[[#This Row],[2026/27 To - Spending review Topic 2]]+Dataset[[#This Row],[2026/27 To - Spending review Topic 3]]+Dataset[[#This Row],[2026/27 To - Spending review Topic 4]]+Dataset[[#This Row],[2026/27 To - Other reallocations]] -> 0 | CF36: =Dataset[[#This Row],[2027/28 To - Spending review Topic 1]]+Dataset[[#This Row],[2027/28 To - Spending review Topic 2]]+Dataset[[#This Row],[2027/28 To - Spending review Topic 3]]+Dataset[[#This Row],[2027/28 To - Spending review Topic 4]]+Dataset[[#This Row],[2027/28 To - Other reallocations]] -> 0 | CG36: =Dataset[[#This Row],[2028/29 To - Spending review Topic 1]]+Dataset[[#This Row],[2028/29 To - Spending review Topic 2]]+Dataset[[#This Row],[2028/29 To - Spending review Topic 3]]+Dataset[[#This Row],[2028/29 To - Spending review Topic 4]]+Dataset[[#This Row],[2028/29 To - Other reallocations]] -> 0 | CH36: =Dataset[[#This Row],[2026/27 Targeted savings]]+Dataset[[#This Row],[2026/27 From - Total]] -> 0 | CI36: =Dataset[[#This Row],[2027/28 Targeted savings]]+Dataset[[#This Row],[2027/28 From - Total]] -> 0 | CJ36: =Dataset[[#This Row],[2028/29 Targeted savings]]+Dataset[[#This Row],[2028/29 From - Total]] -> 0 | CK36: =Dataset[[#This Row],[2025/26 Targeted savings]] -> 0 | CL36: =SUM(Dataset[[#This Row],[2026/27 Targeted savings]],Dataset[[#This Row],[2026/27 From - Total]],Dataset[[#This Row],[2026/27 To - Total]]) -> 0 | CM36: =SUM(Dataset[[#This Row],[2027/28 Targeted savings]],Dataset[[#This Row],[2027/28 From - Total]],Dataset[[#This Row],[2027/28 To - Total]]) -> 0 | CN36: =SUM(Dataset[[#This Row],[2028/29 Targeted savings]],Dataset[[#This Row],[2028/29 From - Total]],Dataset[[#This Row],[2028/29 To - Total]]) -> 0 | CO36: =Dataset[[#This Row],[2025/26 Baseline]]+Dataset[[#This Row],[2025/26 Total change]] -> 0 | CP36: =Dataset[[#This Row],[2026/27 Baseline]]+Dataset[[#This Row],[2026/27 Total change]] -> 0 | CQ36: =Dataset[[#This Row],[2027/28 Baseline]]+Dataset[[#This Row],[2027/28 Total change]] -> 0 | CR36: =Dataset[[#This Row],[2028/29 Baseline]]+Dataset[[#This Row],[2028/29 Total change]] -> 0
A37: NAT|Non-transfer item | B37: 37|Fleet services (including government motor transport) | C37: 2026_27 | D37: MTEC2026 | E37: 37 | F37: 1 | G37: 1 | H37: 44918 | I37: 19 | J37: 37 | K37: 01 | L37: 01 | M37: 044918 | N37: 000019 | O37: 37|01|01|000019 | P37: 01 | Q37: 01 | R37: 02 | S37: 19 | T37: 19 | U37: 01|01|02|19|19 | V37: National | W37: Sport, Arts and Culture | X37: Administration | Y37: Ministry | Z37: Non-transfer item | AA37: Current | AB37: Current payments | AC37: Goods and services | AD37: Fleet services (including government motor transport) | AE37: Fleet services (including government motor transport) | AF37: Learning and culture | AG37: Arts, culture, sport and recreation | AH37: NAT | AI37: 0 | AJ37: 0 | AK37: 0 | AL37: 0 | AM37: 0 | AN37: 0 | AO37: 0 | AP37: 0 | AQ37: 0 | AR37: 0 | AS37: 0 | CB37: =Dataset[[#This Row],[2026/27 From - Spending review Topic 1]]+Dataset[[#This Row],[2026/27 From - Spending review Topic 2]]+Dataset[[#This Row],[2026/27 From - Spending review Topic 3]]+Dataset[[#This Row],[2026/27 From - Spending review Topic 4]]+Dataset[[#This Row],[2026/27 From - Other reallocations]] -> 0 | CC37: =Dataset[[#This Row],[2027/28 From - Spending review Topic 1]]+Dataset[[#This Row],[2027/28 From - Spending review Topic 2]]+Dataset[[#This Row],[2027/28 From - Spending review Topic 3]]+Dataset[[#This Row],[2027/28 From - Spending review Topic 4]]+Dataset[[#This Row],[2027/28 From - Other reallocations]] -> 0 | CD37: =Dataset[[#This Row],[2028/29 From - Spending review Topic 1]]+Dataset[[#This Row],[2028/29 From - Spending review Topic 2]]+Dataset[[#This Row],[2028/29 From - Spending review Topic 3]]+Dataset[[#This Row],[2028/29 From - Spending review Topic 4]]+Dataset[[#This Row],[2028/29 From - Other reallocations]] -> 0 | CE37: =Dataset[[#This Row],[2026/27 To - Spending review Topic 1]]+Dataset[[#This Row],[2026/27 To - Spending review Topic 2]]+Dataset[[#This Row],[2026/27 To - Spending review Topic 3]]+Dataset[[#This Row],[2026/27 To - Spending review Topic 4]]+Dataset[[#This Row],[2026/27 To - Other reallocations]] -> 0 | CF37: =Dataset[[#This Row],[2027/28 To - Spending review Topic 1]]+Dataset[[#This Row],[2027/28 To - Spending review Topic 2]]+Dataset[[#This Row],[2027/28 To - Spending review Topic 3]]+Dataset[[#This Row],[2027/28 To - Spending review Topic 4]]+Dataset[[#This Row],[2027/28 To - Other reallocations]] -> 0 | CG37: =Dataset[[#This Row],[2028/29 To - Spending review Topic 1]]+Dataset[[#This Row],[2028/29 To - Spending review Topic 2]]+Dataset[[#This Row],[2028/29 To - Spending review Topic 3]]+Dataset[[#This Row],[2028/29 To - Spending review Topic 4]]+Dataset[[#This Row],[2028/29 To - Other reallocations]] -> 0 | CH37: =Dataset[[#This Row],[2026/27 Targeted savings]]+Dataset[[#This Row],[2026/27 From - Total]] -> 0 | CI37: =Dataset[[#This Row],[2027/28 Targeted savings]]+Dataset[[#This Row],[2027/28 From - Total]] -> 0 | CJ37: =Dataset[[#This Row],[2028/29 Targeted savings]]+Dataset[[#This Row],[2028/29 From - Total]] -> 0 | CK37: =Dataset[[#This Row],[2025/26 Targeted savings]] -> 0 | CL37: =SUM(Dataset[[#This Row],[2026/27 Targeted savings]],Dataset[[#This Row],[2026/27 From - Total]],Dataset[[#This Row],[2026/27 To - Total]]) -> 0 | CM37: =SUM(Dataset[[#This Row],[2027/28 Targeted savings]],Dataset[[#This Row],[2027/28 From - Total]],Dataset[[#This Row],[2027/28 To - Total]]) -> 0 | CN37: =SUM(Dataset[[#This Row],[2028/29 Targeted savings]],Dataset[[#This Row],[2028/29 From - Total]],Dataset[[#This Row],[2028/29 To - Total]]) -> 0 | CO37: =Dataset[[#This Row],[2025/26 Baseline]]+Dataset[[#This Row],[2025/26 Total change]] -> 0 | CP37: =Dataset[[#This Row],[2026/27 Baseline]]+Dataset[[#This Row],[2026/27 Total change]] -> 0 | CQ37: =Dataset[[#This Row],[2027/28 Baseline]]+Dataset[[#This Row],[2027/28 Total change]] -> 0 | CR37: =Dataset[[#This Row],[2028/29 Baseline]]+Dataset[[#This Row],[2028/29 Total change]] -> 0
A38: NAT|Non-transfer item | B38: 37|Housing | C38: 2026_27 | D38: MTEC2026 | E38: 37 | F38: 1 | G38: 1 | H38: 44919 | I38: 20 | J38: 37 | K38: 01 | L38: 01 | M38: 044919 | N38: 000020 | O38: 37|01|01|000020 | P38: 01 | Q38: 01 | R38: 02 | S38: 20 | T38: 20 | U38: 01|01|02|20|20 | V38: National | W38: Sport, Arts and Culture | X38: Administration | Y38: Ministry | Z38: Non-transfer item | AA38: Current | AB38: Current payments | AC38: Goods and services | AD38: Housing | AE38: Housing | AF38: Learning and culture | AG38: Arts, culture, sport and recreation | AH38: NAT | AI38: 0 | AJ38: 0 | AK38: 0 | AL38: 0 | AM38: 0 | AN38: 0 | AO38: 0 | AP38: 0 | AQ38: 0 | AR38: 0 | AS38: 0 | CB38: =Dataset[[#This Row],[2026/27 From - Spending review Topic 1]]+Dataset[[#This Row],[2026/27 From - Spending review Topic 2]]+Dataset[[#This Row],[2026/27 From - Spending review Topic 3]]+Dataset[[#This Row],[2026/27 From - Spending review Topic 4]]+Dataset[[#This Row],[2026/27 From - Other reallocations]] -> 0 | CC38: =Dataset[[#This Row],[2027/28 From - Spending review Topic 1]]+Dataset[[#This Row],[2027/28 From - Spending review Topic 2]]+Dataset[[#This Row],[2027/28 From - Spending review Topic 3]]+Dataset[[#This Row],[2027/28 From - Spending review Topic 4]]+Dataset[[#This Row],[2027/28 From - Other reallocations]] -> 0 | CD38: =Dataset[[#This Row],[2028/29 From - Spending review Topic 1]]+Dataset[[#This Row],[2028/29 From - Spending review Topic 2]]+Dataset[[#This Row],[2028/29 From - Spending review Topic 3]]+Dataset[[#This Row],[2028/29 From - Spending review Topic 4]]+Dataset[[#This Row],[2028/29 From - Other reallocations]] -> 0 | CE38: =Dataset[[#This Row],[2026/27 To - Spending review Topic 1]]+Dataset[[#This Row],[2026/27 To - Spending review Topic 2]]+Dataset[[#This Row],[2026/27 To - Spending review Topic 3]]+Dataset[[#This Row],[2026/27 To - Spending review Topic 4]]+Dataset[[#This Row],[2026/27 To - Other reallocations]] -> 0 | CF38: =Dataset[[#This Row],[2027/28 To - Spending review Topic 1]]+Dataset[[#This Row],[2027/28 To - Spending review Topic 2]]+Dataset[[#This Row],[2027/28 To - Spending review Topic 3]]+Dataset[[#This Row],[2027/28 To - Spending review Topic 4]]+Dataset[[#This Row],[2027/28 To - Other reallocations]] -> 0 | CG38: =Dataset[[#This Row],[2028/29 To - Spending review Topic 1]]+Dataset[[#This Row],[2028/29 To - Spending review Topic 2]]+Dataset[[#This Row],[2028/29 To - Spending review Topic 3]]+Dataset[[#This Row],[2028/29 To - Spending review Topic 4]]+Dataset[[#This Row],[2028/29 To - Other reallocations]] -> 0 | CH38: =Dataset[[#This Row],[2026/27 Targeted savings]]+Dataset[[#This Row],[2026/27 From - Total]] -> 0 | CI38: =Dataset[[#This Row],[2027/28 Targeted savings]]+Dataset[[#This Row],[2027/28 From - Total]] -> 0 | CJ38: =Dataset[[#This Row],[2028/29 Targeted savings]]+Dataset[[#This Row],[2028/29 From - Total]] -> 0 | CK38: =Dataset[[#This Row],[2025/26 Targeted savings]] -> 0 | CL38: =SUM(Dataset[[#This Row],[2026/27 Targeted savings]],Dataset[[#This Row],[2026/27 From - Total]],Dataset[[#This Row],[2026/27 To - Total]]) -> 0 | CM38: =SUM(Dataset[[#This Row],[2027/28 Targeted savings]],Dataset[[#This Row],[2027/28 From - Total]],Dataset[[#This Row],[2027/28 To - Total]]) -> 0 | CN38: =SUM(Dataset[[#This Row],[2028/29 Targeted savings]],Dataset[[#This Row],[2028/29 From - Total]],Dataset[[#This Row],[2028/29 To - Total]]) -> 0 | CO38: =Dataset[[#This Row],[2025/26 Baseline]]+Dataset[[#This Row],[2025/26 Total change]] -> 0 | CP38: =Dataset[[#This Row],[2026/27 Baseline]]+Dataset[[#This Row],[2026/27 Total change]] -> 0 | CQ38: =Dataset[[#This Row],[2027/28 Baseline]]+Dataset[[#This Row],[2027/28 Total change]] -> 0 | CR38: =Dataset[[#This Row],[2028/29 Baseline]]+Dataset[[#This Row],[2028/29 Total change]] -> 0
A39: NAT|Non-transfer item | B39: 37|Inventory: Clothing material and accessories | C39: 2026_27 | D39: MTEC2026 | E39: 37 | F39: 1 | G39: 1 | H39: 44920 | I39: 21 | J39: 37 | K39: 01 | L39: 01 | M39: 044920 | N39: 000021 | O39: 37|01|01|000021 | P39: 01 | Q39: 01 | R39: 02 | S39: 21 | T39: 21 | U39: 01|01|02|21|21 | V39: National | W39: Sport, Arts and Culture | X39: Administration | Y39: Ministry | Z39: Non-transfer item | AA39: Current | AB39: Current payments | AC39: Goods and services | AD39: Inventory: Clothing material and accessories | AE39: Inventory: Clothing material and accessories | AF39: Learning and culture | AG39: Arts, culture, sport and recreation | AH39: NAT | AI39: 0 | AJ39: 0 | AK39: 0 | AL39: 0 | AM39: 0 | AN39: 0 | AO39: 0 | AP39: 0 | AQ39: 0 | AR39: 0 | AS39: 0 | CB39: =Dataset[[#This Row],[2026/27 From - Spending review Topic 1]]+Dataset[[#This Row],[2026/27 From - Spending review Topic 2]]+Dataset[[#This Row],[2026/27 From - Spending review Topic 3]]+Dataset[[#This Row],[2026/27 From - Spending review Topic 4]]+Dataset[[#This Row],[2026/27 From - Other reallocations]] -> 0 | CC39: =Dataset[[#This Row],[2027/28 From - Spending review Topic 1]]+Dataset[[#This Row],[2027/28 From - Spending review Topic 2]]+Dataset[[#This Row],[2027/28 From - Spending review Topic 3]]+Dataset[[#This Row],[2027/28 From - Spending review Topic 4]]+Dataset[[#This Row],[2027/28 From - Other reallocations]] -> 0 | CD39: =Dataset[[#This Row],[2028/29 From - Spending review Topic 1]]+Dataset[[#This Row],[2028/29 From - Spending review Topic 2]]+Dataset[[#This Row],[2028/29 From - Spending review Topic 3]]+Dataset[[#This Row],[2028/29 From - Spending review Topic 4]]+Dataset[[#This Row],[2028/29 From - Other reallocations]] -> 0 | CE39: =Dataset[[#This Row],[2026/27 To - Spending review Topic 1]]+Dataset[[#This Row],[2026/27 To - Spending review Topic 2]]+Dataset[[#This Row],[2026/27 To - Spending review Topic 3]]+Dataset[[#This Row],[2026/27 To - Spending review Topic 4]]+Dataset[[#This Row],[2026/27 To - Other reallocations]] -> 0 | CF39: =Dataset[[#This Row],[2027/28 To - Spending review Topic 1]]+Dataset[[#This Row],[2027/28 To - Spending review Topic 2]]+Dataset[[#This Row],[2027/28 To - Spending review Topic 3]]+Dataset[[#This Row],[2027/28 To - Spending review Topic 4]]+Dataset[[#This Row],[2027/28 To - Other reallocations]] -> 0 | CG39: =Dataset[[#This Row],[2028/29 To - Spending review Topic 1]]+Dataset[[#This Row],[2028/29 To - Spending review Topic 2]]+Dataset[[#This Row],[2028/29 To - Spending review Topic 3]]+Dataset[[#This Row],[2028/29 To - Spending review Topic 4]]+Dataset[[#This Row],[2028/29 To - Other reallocations]] -> 0 | CH39: =Dataset[[#This Row],[2026/27 Targeted savings]]+Dataset[[#This Row],[2026/27 From - Total]] -> 0 | CI39: =Dataset[[#This Row],[2027/28 Targeted savings]]+Dataset[[#This Row],[2027/28 From - Total]] -> 0 | CJ39: =Dataset[[#This Row],[2028/29 Targeted savings]]+Dataset[[#This Row],[2028/29 From - Total]] -> 0 | CK39: =Dataset[[#This Row],[2025/26 Targeted savings]] -> 0 | CL39: =SUM(Dataset[[#This Row],[2026/27 Targeted savings]],Dataset[[#This Row],[2026/27 From - Total]],Dataset[[#This Row],[2026/27 To - Total]]) -> 0 | CM39: =SUM(Dataset[[#This Row],[2027/28 Targeted savings]],Dataset[[#This Row],[2027/28 From - Total]],Dataset[[#This Row],[2027/28 To - Total]]) -> 0 | CN39: =SUM(Dataset[[#This Row],[2028/29 Targeted savings]],Dataset[[#This Row],[2028/29 From - Total]],Dataset[[#This Row],[2028/29 To - Total]]) -> 0 | CO39: =Dataset[[#This Row],[2025/26 Baseline]]+Dataset[[#This Row],[2025/26 Total change]] -> 0 | CP39: =Dataset[[#This Row],[2026/27 Baseline]]+Dataset[[#This Row],[2026/27 Total change]] -> 0 | CQ39: =Dataset[[#This Row],[2027/28 Baseline]]+Dataset[[#This Row],[2027/28 Total change]] -> 0 | CR39: =Dataset[[#This Row],[2028/29 Baseline]]+Dataset[[#This Row],[2028/29 Total change]] -> 0
A40: NAT|Non-transfer item | B40: 37|Inventory: Farming supplies | C40: 2026_27 | D40: MTEC2026 | E40: 37 | F40: 1 | G40: 1 | H40: 44921 | I40: 22 | J40: 37 | K40: 01 | L40: 01 | M40: 044921 | N40: 000022 | O40: 37|01|01|000022 | P40: 01 | Q40: 01 | R40: 02 | S40: 22 | T40: 22 | U40: 01|01|02|22|22 | V40: National | W40: Sport, Arts and Culture | X40: Administration | Y40: Ministry | Z40: Non-transfer item | AA40: Current | AB40: Current payments | AC40: Goods and services | AD40: Inventory: Farming supplies | AE40: Inventory: Farming supplies | AF40: Learning and culture | AG40: Arts, culture, sport and recreation | AH40: NAT | AI40: 0 | AJ40: 0 | AK40: 0 | AL40: 0 | AM40: 0 | AN40: 0 | AO40: 0 | AP40: 0 | AQ40: 0 | AR40: 0 | AS40: 0 | CB40: =Dataset[[#This Row],[2026/27 From - Spending review Topic 1]]+Dataset[[#This Row],[2026/27 From - Spending review Topic 2]]+Dataset[[#This Row],[2026/27 From - Spending review Topic 3]]+Dataset[[#This Row],[2026/27 From - Spending review Topic 4]]+Dataset[[#This Row],[2026/27 From - Other reallocations]] -> 0 | CC40: =Dataset[[#This Row],[2027/28 From - Spending review Topic 1]]+Dataset[[#This Row],[2027/28 From - Spending review Topic 2]]+Dataset[[#This Row],[2027/28 From - Spending review Topic 3]]+Dataset[[#This Row],[2027/28 From - Spending review Topic 4]]+Dataset[[#This Row],[2027/28 From - Other reallocations]] -> 0 | CD40: =Dataset[[#This Row],[2028/29 From - Spending review Topic 1]]+Dataset[[#This Row],[2028/29 From - Spending review Topic 2]]+Dataset[[#This Row],[2028/29 From - Spending review Topic 3]]+Dataset[[#This Row],[2028/29 From - Spending review Topic 4]]+Dataset[[#This Row],[2028/29 From - Other reallocations]] -> 0 | CE40: =Dataset[[#This Row],[2026/27 To - Spending review Topic 1]]+Dataset[[#This Row],[2026/27 To - Spending review Topic 2]]+Dataset[[#This Row],[2026/27 To - Spending review Topic 3]]+Dataset[[#This Row],[2026/27 To - Spending review Topic 4]]+Dataset[[#This Row],[2026/27 To - Other reallocations]] -> 0 | CF40: =Dataset[[#This Row],[2027/28 To - Spending review Topic 1]]+Dataset[[#This Row],[2027/28 To - Spending review Topic 2]]+Dataset[[#This Row],[2027/28 To - Spending review Topic 3]]+Dataset[[#This Row],[2027/28 To - Spending review Topic 4]]+Dataset[[#This Row],[2027/28 To - Other reallocations]] -> 0 | CG40: =Dataset[[#This Row],[2028/29 To - Spending review Topic 1]]+Dataset[[#This Row],[2028/29 To - Spending review Topic 2]]+Dataset[[#This Row],[2028/29 To - Spending review Topic 3]]+Dataset[[#This Row],[2028/29 To - Spending review Topic 4]]+Dataset[[#This Row],[2028/29 To - Other reallocations]] -> 0 | CH40: =Dataset[[#This Row],[2026/27 Targeted savings]]+Dataset[[#This Row],[2026/27 From - Total]] -> 0 | CI40: =Dataset[[#This Row],[2027/28 Targeted savings]]+Dataset[[#This Row],[2027/28 From - Total]] -> 0 | CJ40: =Dataset[[#This Row],[2028/29 Targeted savings]]+Dataset[[#This Row],[2028/29 From - Total]] -> 0 | CK40: =Dataset[[#This Row],[2025/26 Targeted savings]] -> 0 | CL40: =SUM(Dataset[[#This Row],[2026/27 Targeted savings]],Dataset[[#This Row],[2026/27 From - Total]],Dataset[[#This Row],[2026/27 To - Total]]) -> 0 | CM40: =SUM(Dataset[[#This Row],[2027/28 Targeted savings]],Dataset[[#This Row],[2027/28 From - Total]],Dataset[[#This Row],[2027/28 To - Total]]) -> 0 | CN40: =SUM(Dataset[[#This Row],[2028/29 Targeted savings]],Dataset[[#This Row],[2028/29 From - Total]],Dataset[[#This Row],[2028/29 To - Total]]) -> 0 | CO40: =Dataset[[#This Row],[2025/26 Baseline]]+Dataset[[#This Row],[2025/26 Total change]] -> 0 | CP40: =Dataset[[#This Row],[2026/27 Baseline]]+Dataset[[#This Row],[2026/27 Total change]] -> 0 | CQ40: =Dataset[[#This Row],[2027/28 Baseline]]+Dataset[[#This Row],[2027/28 Total change]] -> 0 | CR40: =Dataset[[#This Row],[2028/29 Baseline]]+Dataset[[#This Row],[2028/29 Total change]] -> 0
A41: NAT|Non-transfer item | B41: 37|Inventory: Food and food supplies | C41: 2026_27 | D41: MTEC2026 | E41: 37 | F41: 1 | G41: 1 | H41: 44922 | I41: 23 | J41: 37 | K41: 01 | L41: 01 | M41: 044922 | N41: 000023 | O41: 37|01|01|000023 | P41: 01 | Q41: 01 | R41: 02 | S41: 23 | T41: 23 | U41: 01|01|02|23|23 | V41: National | W41: Sport, Arts and Culture | X41: Administration | Y41: Ministry | Z41: Non-transfer item | AA41: Current | AB41: Current payments | AC41: Goods and services | AD41: Inventory: Food and food supplies | AE41: Inventory: Food and food supplies | AF41: Learning and culture | AG41: Arts, culture, sport and recreation | AH41: NAT | AI41: 0 | AJ41: 0 | AK41: 0 | AL41: 0 | AM41: 0 | AN41: 0 | AO41: 0 | AP41: 0 | AQ41: 0 | AR41: 0 | AS41: 0 | CB41: =Dataset[[#This Row],[2026/27 From - Spending review Topic 1]]+Dataset[[#This Row],[2026/27 From - Spending review Topic 2]]+Dataset[[#This Row],[2026/27 From - Spending review Topic 3]]+Dataset[[#This Row],[2026/27 From - Spending review Topic 4]]+Dataset[[#This Row],[2026/27 From - Other reallocations]] -> 0 | CC41: =Dataset[[#This Row],[2027/28 From - Spending review Topic 1]]+Dataset[[#This Row],[2027/28 From - Spending review Topic 2]]+Dataset[[#This Row],[2027/28 From - Spending review Topic 3]]+Dataset[[#This Row],[2027/28 From - Spending review Topic 4]]+Dataset[[#This Row],[2027/28 From - Other reallocations]] -> 0 | CD41: =Dataset[[#This Row],[2028/29 From - Spending review Topic 1]]+Dataset[[#This Row],[2028/29 From - Spending review Topic 2]]+Dataset[[#This Row],[2028/29 From - Spending review Topic 3]]+Dataset[[#This Row],[2028/29 From - Spending review Topic 4]]+Dataset[[#This Row],[2028/29 From - Other reallocations]] -> 0 | CE41: =Dataset[[#This Row],[2026/27 To - Spending review Topic 1]]+Dataset[[#This Row],[2026/27 To - Spending review Topic 2]]+Dataset[[#This Row],[2026/27 To - Spending review Topic 3]]+Dataset[[#This Row],[2026/27 To - Spending review Topic 4]]+Dataset[[#This Row],[2026/27 To - Other reallocations]] -> 0 | CF41: =Dataset[[#This Row],[2027/28 To - Spending review Topic 1]]+Dataset[[#This Row],[2027/28 To - Spending review Topic 2]]+Dataset[[#This Row],[2027/28 To - Spending review Topic 3]]+Dataset[[#This Row],[2027/28 To - Spending review Topic 4]]+Dataset[[#This Row],[2027/28 To - Other reallocations]] -> 0 | CG41: =Dataset[[#This Row],[2028/29 To - Spending review Topic 1]]+Dataset[[#This Row],[2028/29 To - Spending review Topic 2]]+Dataset[[#This Row],[2028/29 To - Spending review Topic 3]]+Dataset[[#This Row],[2028/29 To - Spending review Topic 4]]+Dataset[[#This Row],[2028/29 To - Other reallocations]] -> 0 | CH41: =Dataset[[#This Row],[2026/27 Targeted savings]]+Dataset[[#This Row],[2026/27 From - Total]] -> 0 | CI41: =Dataset[[#This Row],[2027/28 Targeted savings]]+Dataset[[#This Row],[2027/28 From - Total]] -> 0 | CJ41: =Dataset[[#This Row],[2028/29 Targeted savings]]+Dataset[[#This Row],[2028/29 From - Total]] -> 0 | CK41: =Dataset[[#This Row],[2025/26 Targeted savings]] -> 0 | CL41: =SUM(Dataset[[#This Row],[2026/27 Targeted savings]],Dataset[[#This Row],[2026/27 From - Total]],Dataset[[#This Row],[2026/27 To - Total]]) -> 0 | CM41: =SUM(Dataset[[#This Row],[2027/28 Targeted savings]],Dataset[[#This Row],[2027/28 From - Total]],Dataset[[#This Row],[2027/28 To - Total]]) -> 0 | CN41: =SUM(Dataset[[#This Row],[2028/29 Targeted savings]],Dataset[[#This Row],[2028/29 From - Total]],Dataset[[#This Row],[2028/29 To - Total]]) -> 0 | CO41: =Dataset[[#This Row],[2025/26 Baseline]]+Dataset[[#This Row],[2025/26 Total change]] -> 0 | CP41: =Dataset[[#This Row],[2026/27 Baseline]]+Dataset[[#This Row],[2026/27 Total change]] -> 0 | CQ41: =Dataset[[#This Row],[2027/28 Baseline]]+Dataset[[#This Row],[2027/28 Total change]] -> 0 | CR41: =Dataset[[#This Row],[2028/29 Baseline]]+Dataset[[#This Row],[2028/29 Total change]] -> 0
A42: NAT|Non-transfer item | B42: 37|Inventory: Fuel, oil and gas | C42: 2026_27 | D42: MTEC2026 | E42: 37 | F42: 1 | G42: 1 | H42: 44923 | I42: 24 | J42: 37 | K42: 01 | L42: 01 | M42: 044923 | N42: 000024 | O42: 37|01|01|000024 | P42: 01 | Q42: 01 | R42: 02 | S42: 24 | T42: 24 | U42: 01|01|02|24|24 | V42: National | W42: Sport, Arts and Culture | X42: Administration | Y42: Ministry | Z42: Non-transfer item | AA42: Current | AB42: Current payments | AC42: Goods and services | AD42: Inventory: Fuel, oil and gas | AE42: Inventory: Fuel, oil and gas | AF42: Learning and culture | AG42: Arts, culture, sport and recreation | AH42: NAT | AI42: 0 | AJ42: 0 | AK42: 0 | AL42: 0 | AM42: 0 | AN42: 0 | AO42: 0 | AP42: 0 | AQ42: 0 | AR42: 0 | AS42: 0 | CB42: =Dataset[[#This Row],[2026/27 From - Spending review Topic 1]]+Dataset[[#This Row],[2026/27 From - Spending review Topic 2]]+Dataset[[#This Row],[2026/27 From - Spending review Topic 3]]+Dataset[[#This Row],[2026/27 From - Spending review Topic 4]]+Dataset[[#This Row],[2026/27 From - Other reallocations]] -> 0 | CC42: =Dataset[[#This Row],[2027/28 From - Spending review Topic 1]]+Dataset[[#This Row],[2027/28 From - Spending review Topic 2]]+Dataset[[#This Row],[2027/28 From - Spending review Topic 3]]+Dataset[[#This Row],[2027/28 From - Spending review Topic 4]]+Dataset[[#This Row],[2027/28 From - Other reallocations]] -> 0 | CD42: =Dataset[[#This Row],[2028/29 From - Spending review Topic 1]]+Dataset[[#This Row],[2028/29 From - Spending review Topic 2]]+Dataset[[#This Row],[2028/29 From - Spending review Topic 3]]+Dataset[[#This Row],[2028/29 From - Spending review Topic 4]]+Dataset[[#This Row],[2028/29 From - Other reallocations]] -> 0 | CE42: =Dataset[[#This Row],[2026/27 To - Spending review Topic 1]]+Dataset[[#This Row],[2026/27 To - Spending review Topic 2]]+Dataset[[#This Row],[2026/27 To - Spending review Topic 3]]+Dataset[[#This Row],[2026/27 To - Spending review Topic 4]]+Dataset[[#This Row],[2026/27 To - Other reallocations]] -> 0 | CF42: =Dataset[[#This Row],[2027/28 To - Spending review Topic 1]]+Dataset[[#This Row],[2027/28 To - Spending review Topic 2]]+Dataset[[#This Row],[2027/28 To - Spending review Topic 3]]+Dataset[[#This Row],[2027/28 To - Spending review Topic 4]]+Dataset[[#This Row],[2027/28 To - Other reallocations]] -> 0 | CG42: =Dataset[[#This Row],[2028/29 To - Spending review Topic 1]]+Dataset[[#This Row],[2028/29 To - Spending review Topic 2]]+Dataset[[#This Row],[2028/29 To - Spending review Topic 3]]+Dataset[[#This Row],[2028/29 To - Spending review Topic 4]]+Dataset[[#This Row],[2028/29 To - Other reallocations]] -> 0 | CH42: =Dataset[[#This Row],[2026/27 Targeted savings]]+Dataset[[#This Row],[2026/27 From - Total]] -> 0 | CI42: =Dataset[[#This Row],[2027/28 Targeted savings]]+Dataset[[#This Row],[2027/28 From - Total]] -> 0 | CJ42: =Dataset[[#This Row],[2028/29 Targeted savings]]+Dataset[[#This Row],[2028/29 From - Total]] -> 0 | CK42: =Dataset[[#This Row],[2025/26 Targeted savings]] -> 0 | CL42: =SUM(Dataset[[#This Row],[2026/27 Targeted savings]],Dataset[[#This Row],[2026/27 From - Total]],Dataset[[#This Row],[2026/27 To - Total]]) -> 0 | CM42: =SUM(Dataset[[#This Row],[2027/28 Targeted savings]],Dataset[[#This Row],[2027/28 From - Total]],Dataset[[#This Row],[2027/28 To - Total]]) -> 0 | CN42: =SUM(Dataset[[#This Row],[2028/29 Targeted savings]],Dataset[[#This Row],[2028/29 From - Total]],Dataset[[#This Row],[2028/29 To - Total]]) -> 0 | CO42: =Dataset[[#This Row],[2025/26 Baseline]]+Dataset[[#This Row],[2025/26 Total change]] -> 0 | CP42: =Dataset[[#This Row],[2026/27 Baseline]]+Dataset[[#This Row],[2026/27 Total change]] -> 0 | CQ42: =Dataset[[#This Row],[2027/28 Baseline]]+Dataset[[#This Row],[2027/28 Total change]] -> 0 | CR42: =Dataset[[#This Row],[2028/29 Baseline]]+Dataset[[#This Row],[2028/29 Total change]] -> 0
A43: NAT|Non-transfer item | B43: 37|Inventory: Learner and teacher support material | C43: 2026_27 | D43: MTEC2026 | E43: 37 | F43: 1 | G43: 1 | H43: 44924 | I43: 25 | J43: 37 | K43: 01 | L43: 01 | M43: 044924 | N43: 000025 | O43: 37|01|01|000025 | P43: 01 | Q43: 01 | R43: 02 | S43: 25 | T43: 25 | U43: 01|01|02|25|25 | V43: National | W43: Sport, Arts and Culture | X43: Administration | Y43: Ministry | Z43: Non-transfer item | AA43: Current | AB43: Current payments | AC43: Goods and services | AD43: Inventory: Learner and teacher support material | AE43: Inventory: Learner and teacher support material | AF43: Learning and culture | AG43: Arts, culture, sport and recreation | AH43: NAT | AI43: 0 | AJ43: 0 | AK43: 0 | AL43: 0 | AM43: 0 | AN43: 0 | AO43: 0 | AP43: 0 | AQ43: 0 | AR43: 0 | AS43: 0 | CB43: =Dataset[[#This Row],[2026/27 From - Spending review Topic 1]]+Dataset[[#This Row],[2026/27 From - Spending review Topic 2]]+Dataset[[#This Row],[2026/27 From - Spending review Topic 3]]+Dataset[[#This Row],[2026/27 From - Spending review Topic 4]]+Dataset[[#This Row],[2026/27 From - Other reallocations]] -> 0 | CC43: =Dataset[[#This Row],[2027/28 From - Spending review Topic 1]]+Dataset[[#This Row],[2027/28 From - Spending review Topic 2]]+Dataset[[#This Row],[2027/28 From - Spending review Topic 3]]+Dataset[[#This Row],[2027/28 From - Spending review Topic 4]]+Dataset[[#This Row],[2027/28 From - Other reallocations]] -> 0 | CD43: =Dataset[[#This Row],[2028/29 From - Spending review Topic 1]]+Dataset[[#This Row],[2028/29 From - Spending review Topic 2]]+Dataset[[#This Row],[2028/29 From - Spending review Topic 3]]+Dataset[[#This Row],[2028/29 From - Spending review Topic 4]]+Dataset[[#This Row],[2028/29 From - Other reallocations]] -> 0 | CE43: =Dataset[[#This Row],[2026/27 To - Spending review Topic 1]]+Dataset[[#This Row],[2026/27 To - Spending review Topic 2]]+Dataset[[#This Row],[2026/27 To - Spending review Topic 3]]+Dataset[[#This Row],[2026/27 To - Spending review Topic 4]]+Dataset[[#This Row],[2026/27 To - Other reallocations]] -> 0 | CF43: =Dataset[[#This Row],[2027/28 To - Spending review Topic 1]]+Dataset[[#This Row],[2027/28 To - Spending review Topic 2]]+Dataset[[#This Row],[2027/28 To - Spending review Topic 3]]+Dataset[[#This Row],[2027/28 To - Spending review Topic 4]]+Dataset[[#This Row],[2027/28 To - Other reallocations]] -> 0 | CG43: =Dataset[[#This Row],[2028/29 To - Spending review Topic 1]]+Dataset[[#This Row],[2028/29 To - Spending review Topic 2]]+Dataset[[#This Row],[2028/29 To - Spending review Topic 3]]+Dataset[[#This Row],[2028/29 To - Spending review Topic 4]]+Dataset[[#This Row],[2028/29 To - Other reallocations]] -> 0 | CH43: =Dataset[[#This Row],[2026/27 Targeted savings]]+Dataset[[#This Row],[2026/27 From - Total]] -> 0 | CI43: =Dataset[[#This Row],[2027/28 Targeted savings]]+Dataset[[#This Row],[2027/28 From - Total]] -> 0 | CJ43: =Dataset[[#This Row],[2028/29 Targeted savings]]+Dataset[[#This Row],[2028/29 From - Total]] -> 0 | CK43: =Dataset[[#This Row],[2025/26 Targeted savings]] -> 0 | CL43: =SUM(Dataset[[#This Row],[2026/27 Targeted savings]],Dataset[[#This Row],[2026/27 From - Total]],Dataset[[#This Row],[2026/27 To - Total]]) -> 0 | CM43: =SUM(Dataset[[#This Row],[2027/28 Targeted savings]],Dataset[[#This Row],[2027/28 From - Total]],Dataset[[#This Row],[2027/28 To - Total]]) -> 0 | CN43: =SUM(Dataset[[#This Row],[2028/29 Targeted savings]],Dataset[[#This Row],[2028/29 From - Total]],Dataset[[#This Row],[2028/29 To - Total]]) -> 0 | CO43: =Dataset[[#This Row],[2025/26 Baseline]]+Dataset[[#This Row],[2025/26 Total change]] -> 0 | CP43: =Dataset[[#This Row],[2026/27 Baseline]]+Dataset[[#This Row],[2026/27 Total change]] -> 0 | CQ43: =Dataset[[#This Row],[2027/28 Baseline]]+Dataset[[#This Row],[2027/28 Total change]] -> 0 | CR43: =Dataset[[#This Row],[2028/29 Baseline]]+Dataset[[#This Row],[2028/29 Total change]] -> 0
A44: NAT|Non-transfer item | B44: 37|Inventory: Materials and supplies | C44: 2026_27 | D44: MTEC2026 | E44: 37 | F44: 1 | G44: 1 | H44: 44925 | I44: 26 | J44: 37 | K44: 01 | L44: 01 | M44: 044925 | N44: 000026 | O44: 37|01|01|000026 | P44: 01 | Q44: 01 | R44: 02 | S44: 26 | T44: 26 | U44: 01|01|02|26|26 | V44: National | W44: Sport, Arts and Culture | X44: Administration | Y44: Ministry | Z44: Non-transfer item | AA44: Current | AB44: Current payments | AC44: Goods and services | AD44: Inventory: Materials and supplies | AE44: Inventory: Materials and supplies | AF44: Learning and culture | AG44: Arts, culture, sport and recreation | AH44: NAT | AI44: 0 | AJ44: 0 | AK44: 0 | AL44: 0 | AM44: 0 | AN44: 0 | AO44: 0 | AP44: 0 | AQ44: 0 | AR44: 0 | AS44: 0 | CB44: =Dataset[[#This Row],[2026/27 From - Spending review Topic 1]]+Dataset[[#This Row],[2026/27 From - Spending review Topic 2]]+Dataset[[#This Row],[2026/27 From - Spending review Topic 3]]+Dataset[[#This Row],[2026/27 From - Spending review Topic 4]]+Dataset[[#This Row],[2026/27 From - Other reallocations]] -> 0 | CC44: =Dataset[[#This Row],[2027/28 From - Spending review Topic 1]]+Dataset[[#This Row],[2027/28 From - Spending review Topic 2]]+Dataset[[#This Row],[2027/28 From - Spending review Topic 3]]+Dataset[[#This Row],[2027/28 From - Spending review Topic 4]]+Dataset[[#This Row],[2027/28 From - Other reallocations]] -> 0 | CD44: =Dataset[[#This Row],[2028/29 From - Spending review Topic 1]]+Dataset[[#This Row],[2028/29 From - Spending review Topic 2]]+Dataset[[#This Row],[2028/29 From - Spending review Topic 3]]+Dataset[[#This Row],[2028/29 From - Spending review Topic 4]]+Dataset[[#This Row],[2028/29 From - Other reallocations]] -> 0 | CE44: =Dataset[[#This Row],[2026/27 To - Spending review Topic 1]]+Dataset[[#This Row],[2026/27 To - Spending review Topic 2]]+Dataset[[#This Row],[2026/27 To - Spending review Topic 3]]+Dataset[[#This Row],[2026/27 To - Spending review Topic 4]]+Dataset[[#This Row],[2026/27 To - Other reallocations]] -> 0 | CF44: =Dataset[[#This Row],[2027/28 To - Spending review Topic 1]]+Dataset[[#This Row],[2027/28 To - Spending review Topic 2]]+Dataset[[#This Row],[2027/28 To - Spending review Topic 3]]+Dataset[[#This Row],[2027/28 To - Spending review Topic 4]]+Dataset[[#This Row],[2027/28 To - Other reallocations]] -> 0 | CG44: =Dataset[[#This Row],[2028/29 To - Spending review Topic 1]]+Dataset[[#This Row],[2028/29 To - Spending review Topic 2]]+Dataset[[#This Row],[2028/29 To - Spending review Topic 3]]+Dataset[[#This Row],[2028/29 To - Spending review Topic 4]]+Dataset[[#This Row],[2028/29 To - Other reallocations]] -> 0 | CH44: =Dataset[[#This Row],[2026/27 Targeted savings]]+Dataset[[#This Row],[2026/27 From - Total]] -> 0 | CI44: =Dataset[[#This Row],[2027/28 Targeted savings]]+Dataset[[#This Row],[2027/28 From - Total]] -> 0 | CJ44: =Dataset[[#This Row],[2028/29 Targeted savings]]+Dataset[[#This Row],[2028/29 From - Total]] -> 0 | CK44: =Dataset[[#This Row],[2025/26 Targeted savings]] -> 0 | CL44: =SUM(Dataset[[#This Row],[2026/27 Targeted savings]],Dataset[[#This Row],[2026/27 From - Total]],Dataset[[#This Row],[2026/27 To - Total]]) -> 0 | CM44: =SUM(Dataset[[#This Row],[2027/28 Targeted savings]],Dataset[[#This Row],[2027/28 From - Total]],Dataset[[#This Row],[2027/28 To - Total]]) -> 0 | CN44: =SUM(Dataset[[#This Row],[2028/29 Targeted savings]],Dataset[[#This Row],[2028/29 From - Total]],Dataset[[#This Row],[2028/29 To - Total]]) -> 0 | CO44: =Dataset[[#This Row],[2025/26 Baseline]]+Dataset[[#This Row],[2025/26 Total change]] -> 0 | CP44: =Dataset[[#This Row],[2026/27 Baseline]]+Dataset[[#This Row],[2026/27 Total change]] -> 0 | CQ44: =Dataset[[#This Row],[2027/28 Baseline]]+Dataset[[#This Row],[2027/28 Total change]] -> 0 | CR44: =Dataset[[#This Row],[2028/29 Baseline]]+Dataset[[#This Row],[2028/29 Total change]] -> 0
A45: NAT|Non-transfer item | B45: 37|Inventory: Medical supplies | C45: 2026_27 | D45: MTEC2026 | E45: 37 | F45: 1 | G45: 1 | H45: 44926 | I45: 27 | J45: 37 | K45: 01 | L45: 01 | M45: 044926 | N45: 000027 | O45: 37|01|01|000027 | P45: 01 | Q45: 01 | R45: 02 | S45: 27 | T45: 27 | U45: 01|01|02|27|27 | V45: National | W45: Sport, Arts and Culture | X45: Administration | Y45: Ministry | Z45: Non-transfer item | AA45: Current | AB45: Current payments | AC45: Goods and services | AD45: Inventory: Medical supplies | AE45: Inventory: Medical supplies | AF45: Learning and culture | AG45: Arts, culture, sport and recreation | AH45: NAT | AI45: 0 | AJ45: 0 | AK45: 0 | AL45: 0 | AM45: 0 | AN45: 0 | AO45: 0 | AP45: 0 | AQ45: 0 | AR45: 0 | AS45: 0 | CB45: =Dataset[[#This Row],[2026/27 From - Spending review Topic 1]]+Dataset[[#This Row],[2026/27 From - Spending review Topic 2]]+Dataset[[#This Row],[2026/27 From - Spending review Topic 3]]+Dataset[[#This Row],[2026/27 From - Spending review Topic 4]]+Dataset[[#This Row],[2026/27 From - Other reallocations]] -> 0 | CC45: =Dataset[[#This Row],[2027/28 From - Spending review Topic 1]]+Dataset[[#This Row],[2027/28 From - Spending review Topic 2]]+Dataset[[#This Row],[2027/28 From - Spending review Topic 3]]+Dataset[[#This Row],[2027/28 From - Spending review Topic 4]]+Dataset[[#This Row],[2027/28 From - Other reallocations]] -> 0 | CD45: =Dataset[[#This Row],[2028/29 From - Spending review Topic 1]]+Dataset[[#This Row],[2028/29 From - Spending review Topic 2]]+Dataset[[#This Row],[2028/29 From - Spending review Topic 3]]+Dataset[[#This Row],[2028/29 From - Spending review Topic 4]]+Dataset[[#This Row],[2028/29 From - Other reallocations]] -> 0 | CE45: =Dataset[[#This Row],[2026/27 To - Spending review Topic 1]]+Dataset[[#This Row],[2026/27 To - Spending review Topic 2]]+Dataset[[#This Row],[2026/27 To - Spending review Topic 3]]+Dataset[[#This Row],[2026/27 To - Spending review Topic 4]]+Dataset[[#This Row],[2026/27 To - Other reallocations]] -> 0 | CF45: =Dataset[[#This Row],[2027/28 To - Spending review Topic 1]]+Dataset[[#This Row],[2027/28 To - Spending review Topic 2]]+Dataset[[#This Row],[2027/28 To - Spending review Topic 3]]+Dataset[[#This Row],[2027/28 To - Spending review Topic 4]]+Dataset[[#This Row],[2027/28 To - Other reallocations]] -> 0 | CG45: =Dataset[[#This Row],[2028/29 To - Spending review Topic 1]]+Dataset[[#This Row],[2028/29 To - Spending review Topic 2]]+Dataset[[#This Row],[2028/29 To - Spending review Topic 3]]+Dataset[[#This Row],[2028/29 To - Spending review Topic 4]]+Dataset[[#This Row],[2028/29 To - Other reallocations]] -> 0 | CH45: =Dataset[[#This Row],[2026/27 Targeted savings]]+Dataset[[#This Row],[2026/27 From - Total]] -> 0 | CI45: =Dataset[[#This Row],[2027/28 Targeted savings]]+Dataset[[#This Row],[2027/28 From - Total]] -> 0 | CJ45: =Dataset[[#This Row],[2028/29 Targeted savings]]+Dataset[[#This Row],[2028/29 From - Total]] -> 0 | CK45: =Dataset[[#This Row],[2025/26 Targeted savings]] -> 0 | CL45: =SUM(Dataset[[#This Row],[2026/27 Targeted savings]],Dataset[[#This Row],[2026/27 From - Total]],Dataset[[#This Row],[2026/27 To - Total]]) -> 0 | CM45: =SUM(Dataset[[#This Row],[2027/28 Targeted savings]],Dataset[[#This Row],[2027/28 From - Total]],Dataset[[#This Row],[2027/28 To - Total]]) -> 0 | CN45: =SUM(Dataset[[#This Row],[2028/29 Targeted savings]],Dataset[[#This Row],[2028/29 From - Total]],Dataset[[#This Row],[2028/29 To - Total]]) -> 0 | CO45: =Dataset[[#This Row],[2025/26 Baseline]]+Dataset[[#This Row],[2025/26 Total change]] -> 0 | CP45: =Dataset[[#This Row],[2026/27 Baseline]]+Dataset[[#This Row],[2026/27 Total change]] -> 0 | CQ45: =Dataset[[#This Row],[2027/28 Baseline]]+Dataset[[#This Row],[2027/28 Total change]] -> 0 | CR45: =Dataset[[#This Row],[2028/29 Baseline]]+Dataset[[#This Row],[2028/29 Total change]] -> 0
A46: NAT|Non-transfer item | B46: 37|Inventory: Medicine | C46: 2026_27 | D46: MTEC2026 | E46: 37 | F46: 1 | G46: 1 | H46: 44927 | I46: 28 | J46: 37 | K46: 01 | L46: 01 | M46: 044927 | N46: 000028 | O46: 37|01|01|000028 | P46: 01 | Q46: 01 | R46: 02 | S46: 28 | T46: 28 | U46: 01|01|02|28|28 | V46: National | W46: Sport, Arts and Culture | X46: Administration | Y46: Ministry | Z46: Non-transfer item | AA46: Current | AB46: Current payments | AC46: Goods and services | AD46: Inventory: Medicine | AE46: Inventory: Medicine | AF46: Learning and culture | AG46: Arts, culture, sport and recreation | AH46: NAT | AI46: 0 | AJ46: 0 | AK46: 0 | AL46: 0 | AM46: 0 | AN46: 0 | AO46: 0 | AP46: 0 | AQ46: 0 | AR46: 0 | AS46: 0 | CB46: =Dataset[[#This Row],[2026/27 From - Spending review Topic 1]]+Dataset[[#This Row],[2026/27 From - Spending review Topic 2]]+Dataset[[#This Row],[2026/27 From - Spending review Topic 3]]+Dataset[[#This Row],[2026/27 From - Spending review Topic 4]]+Dataset[[#This Row],[2026/27 From - Other reallocations]] -> 0 | CC46: =Dataset[[#This Row],[2027/28 From - Spending review Topic 1]]+Dataset[[#This Row],[2027/28 From - Spending review Topic 2]]+Dataset[[#This Row],[2027/28 From - Spending review Topic 3]]+Dataset[[#This Row],[2027/28 From - Spending review Topic 4]]+Dataset[[#This Row],[2027/28 From - Other reallocations]] -> 0 | CD46: =Dataset[[#This Row],[2028/29 From - Spending review Topic 1]]+Dataset[[#This Row],[2028/29 From - Spending review Topic 2]]+Dataset[[#This Row],[2028/29 From - Spending review Topic 3]]+Dataset[[#This Row],[2028/29 From - Spending review Topic 4]]+Dataset[[#This Row],[2028/29 From - Other reallocations]] -> 0 | CE46: =Dataset[[#This Row],[2026/27 To - Spending review Topic 1]]+Dataset[[#This Row],[2026/27 To - Spending review Topic 2]]+Dataset[[#This Row],[2026/27 To - Spending review Topic 3]]+Dataset[[#This Row],[2026/27 To - Spending review Topic 4]]+Dataset[[#This Row],[2026/27 To - Other reallocations]] -> 0 | CF46: =Dataset[[#This Row],[2027/28 To - Spending review Topic 1]]+Dataset[[#This Row],[2027/28 To - Spending review Topic 2]]+Dataset[[#This Row],[2027/28 To - Spending review Topic 3]]+Dataset[[#This Row],[2027/28 To - Spending review Topic 4]]+Dataset[[#This Row],[2027/28 To - Other reallocations]] -> 0 | CG46: =Dataset[[#This Row],[2028/29 To - Spending review Topic 1]]+Dataset[[#This Row],[2028/29 To - Spending review Topic 2]]+Dataset[[#This Row],[2028/29 To - Spending review Topic 3]]+Dataset[[#This Row],[2028/29 To - Spending review Topic 4]]+Dataset[[#This Row],[2028/29 To - Other reallocations]] -> 0 | CH46: =Dataset[[#This Row],[2026/27 Targeted savings]]+Dataset[[#This Row],[2026/27 From - Total]] -> 0 | CI46: =Dataset[[#This Row],[2027/28 Targeted savings]]+Dataset[[#This Row],[2027/28 From - Total]] -> 0 | CJ46: =Dataset[[#This Row],[2028/29 Targeted savings]]+Dataset[[#This Row],[2028/29 From - Total]] -> 0 | CK46: =Dataset[[#This Row],[2025/26 Targeted savings]] -> 0 | CL46: =SUM(Dataset[[#This Row],[2026/27 Targeted savings]],Dataset[[#This Row],[2026/27 From - Total]],Dataset[[#This Row],[2026/27 To - Total]]) -> 0 | CM46: =SUM(Dataset[[#This Row],[2027/28 Targeted savings]],Dataset[[#This Row],[2027/28 From - Total]],Dataset[[#This Row],[2027/28 To - Total]]) -> 0 | CN46: =SUM(Dataset[[#This Row],[2028/29 Targeted savings]],Dataset[[#This Row],[2028/29 From - Total]],Dataset[[#This Row],[2028/29 To - Total]]) -> 0 | CO46: =Dataset[[#This Row],[2025/26 Baseline]]+Dataset[[#This Row],[2025/26 Total change]] -> 0 | CP46: =Dataset[[#This Row],[2026/27 Baseline]]+Dataset[[#This Row],[2026/27 Total change]] -> 0 | CQ46: =Dataset[[#This Row],[2027/28 Baseline]]+Dataset[[#This Row],[2027/28 Total change]] -> 0 | CR46: =Dataset[[#This Row],[2028/29 Baseline]]+Dataset[[#This Row],[2028/29 Total change]] -> 0
A47: NAT|Non-transfer item | B47: 37|Medsas inventory interface | C47: 2026_27 | D47: MTEC2026 | E47: 37 | F47: 1 | G47: 1 | H47: 44928 | I47: 29 | J47: 37 | K47: 01 | L47: 01 | M47: 044928 | N47: 000029 | O47: 37|01|01|000029 | P47: 01 | Q47: 01 | R47: 02 | S47: 29 | T47: 29 | U47: 01|01|02|29|29 | V47: National | W47: Sport, Arts and Culture | X47: Administration | Y47: Ministry | Z47: Non-transfer item | AA47: Current | AB47: Current payments | AC47: Goods and services | AD47: Medsas inventory interface | AE47: Medsas inventory interface | AF47: Learning and culture | AG47: Arts, culture, sport and recreation | AH47: NAT | AI47: 0 | AJ47: 0 | AK47: 0 | AL47: 0 | AM47: 0 | AN47: 0 | AO47: 0 | AP47: 0 | AQ47: 0 | AR47: 0 | AS47: 0 | CB47: =Dataset[[#This Row],[2026/27 From - Spending review Topic 1]]+Dataset[[#This Row],[2026/27 From - Spending review Topic 2]]+Dataset[[#This Row],[2026/27 From - Spending review Topic 3]]+Dataset[[#This Row],[2026/27 From - Spending review Topic 4]]+Dataset[[#This Row],[2026/27 From - Other reallocations]] -> 0 | CC47: =Dataset[[#This Row],[2027/28 From - Spending review Topic 1]]+Dataset[[#This Row],[2027/28 From - Spending review Topic 2]]+Dataset[[#This Row],[2027/28 From - Spending review Topic 3]]+Dataset[[#This Row],[2027/28 From - Spending review Topic 4]]+Dataset[[#This Row],[2027/28 From - Other reallocations]] -> 0 | CD47: =Dataset[[#This Row],[2028/29 From - Spending review Topic 1]]+Dataset[[#This Row],[2028/29 From - Spending review Topic 2]]+Dataset[[#This Row],[2028/29 From - Spending review Topic 3]]+Dataset[[#This Row],[2028/29 From - Spending review Topic 4]]+Dataset[[#This Row],[2028/29 From - Other reallocations]] -> 0 | CE47: =Dataset[[#This Row],[2026/27 To - Spending review Topic 1]]+Dataset[[#This Row],[2026/27 To - Spending review Topic 2]]+Dataset[[#This Row],[2026/27 To - Spending review Topic 3]]+Dataset[[#This Row],[2026/27 To - Spending review Topic 4]]+Dataset[[#This Row],[2026/27 To - Other reallocations]] -> 0 | CF47: =Dataset[[#This Row],[2027/28 To - Spending review Topic 1]]+Dataset[[#This Row],[2027/28 To - Spending review Topic 2]]+Dataset[[#This Row],[2027/28 To - Spending review Topic 3]]+Dataset[[#This Row],[2027/28 To - Spending review Topic 4]]+Dataset[[#This Row],[2027/28 To - Other reallocations]] -> 0 | CG47: =Dataset[[#This Row],[2028/29 To - Spending review Topic 1]]+Dataset[[#This Row],[2028/29 To - Spending review Topic 2]]+Dataset[[#This Row],[2028/29 To - Spending review Topic 3]]+Dataset[[#This Row],[2028/29 To - Spending review Topic 4]]+Dataset[[#This Row],[2028/29 To - Other reallocations]] -> 0 | CH47: =Dataset[[#This Row],[2026/27 Targeted savings]]+Dataset[[#This Row],[2026/27 From - Total]] -> 0 | CI47: =Dataset[[#This Row],[2027/28 Targeted savings]]+Dataset[[#This Row],[2027/28 From - Total]] -> 0 | CJ47: =Dataset[[#This Row],[2028/29 Targeted savings]]+Dataset[[#This Row],[2028/29 From - Total]] -> 0 | CK47: =Dataset[[#This Row],[2025/26 Targeted savings]] -> 0 | CL47: =SUM(Dataset[[#This Row],[2026/27 Targeted savings]],Dataset[[#This Row],[2026/27 From - Total]],Dataset[[#This Row],[2026/27 To - Total]]) -> 0 | CM47: =SUM(Dataset[[#This Row],[2027/28 Targeted savings]],Dataset[[#This Row],[2027/28 From - Total]],Dataset[[#This Row],[2027/28 To - Total]]) -> 0 | CN47: =SUM(Dataset[[#This Row],[2028/29 Targeted savings]],Dataset[[#This Row],[2028/29 From - Total]],Dataset[[#This Row],[2028/29 To - Total]]) -> 0 | CO47: =Dataset[[#This Row],[2025/26 Baseline]]+Dataset[[#This Row],[2025/26 Total change]] -> 0 | CP47: =Dataset[[#This Row],[2026/27 Baseline]]+Dataset[[#This Row],[2026/27 Total change]] -> 0 | CQ47: =Dataset[[#This Row],[2027/28 Baseline]]+Dataset[[#This Row],[2027/28 Total change]] -> 0 | CR47: =Dataset[[#This Row],[2028/29 Baseline]]+Dataset[[#This Row],[2028/29 Total change]] -> 0
A48: NAT|Non-transfer item | B48: 37|Inventory: Other supplies | C48: 2026_27 | D48: MTEC2026 | E48: 37 | F48: 1 | G48: 1 | H48: 44929 | I48: 30 | J48: 37 | K48: 01 | L48: 01 | M48: 044929 | N48: 000030 | O48: 37|01|01|000030 | P48: 01 | Q48: 01 | R48: 02 | S48: 30 | T48: 30 | U48: 01|01|02|30|30 | V48: National | W48: Sport, Arts and Culture | X48: Administration | Y48: Ministry | Z48: Non-transfer item | AA48: Current | AB48: Current payments | AC48: Goods and services | AD48: Inventory: Other supplies | AE48: Inventory: Other supplies | AF48: Learning and culture | AG48: Arts, culture, sport and recreation | AH48: NAT | AI48: 0 | AJ48: 0 | AK48: 0 | AL48: 0 | AM48: 0 | AN48: 0 | AO48: 0 | AP48: 0 | AQ48: 0 | AR48: 0 | AS48: 0 | CB48: =Dataset[[#This Row],[2026/27 From - Spending review Topic 1]]+Dataset[[#This Row],[2026/27 From - Spending review Topic 2]]+Dataset[[#This Row],[2026/27 From - Spending review Topic 3]]+Dataset[[#This Row],[2026/27 From - Spending review Topic 4]]+Dataset[[#This Row],[2026/27 From - Other reallocations]] -> 0 | CC48: =Dataset[[#This Row],[2027/28 From - Spending review Topic 1]]+Dataset[[#This Row],[2027/28 From - Spending review Topic 2]]+Dataset[[#This Row],[2027/28 From - Spending review Topic 3]]+Dataset[[#This Row],[2027/28 From - Spending review Topic 4]]+Dataset[[#This Row],[2027/28 From - Other reallocations]] -> 0 | CD48: =Dataset[[#This Row],[2028/29 From - Spending review Topic 1]]+Dataset[[#This Row],[2028/29 From - Spending review Topic 2]]+Dataset[[#This Row],[2028/29 From - Spending review Topic 3]]+Dataset[[#This Row],[2028/29 From - Spending review Topic 4]]+Dataset[[#This Row],[2028/29 From - Other reallocations]] -> 0 | CE48: =Dataset[[#This Row],[2026/27 To - Spending review Topic 1]]+Dataset[[#This Row],[2026/27 To - Spending review Topic 2]]+Dataset[[#This Row],[2026/27 To - Spending review Topic 3]]+Dataset[[#This Row],[2026/27 To - Spending review Topic 4]]+Dataset[[#This Row],[2026/27 To - Other reallocations]] -> 0 | CF48: =Dataset[[#This Row],[2027/28 To - Spending review Topic 1]]+Dataset[[#This Row],[2027/28 To - Spending review Topic 2]]+Dataset[[#This Row],[2027/28 To - Spending review Topic 3]]+Dataset[[#This Row],[2027/28 To - Spending review Topic 4]]+Dataset[[#This Row],[2027/28 To - Other reallocations]] -> 0 | CG48: =Dataset[[#This Row],[2028/29 To - Spending review Topic 1]]+Dataset[[#This Row],[2028/29 To - Spending review Topic 2]]+Dataset[[#This Row],[2028/29 To - Spending review Topic 3]]+Dataset[[#This Row],[2028/29 To - Spending review Topic 4]]+Dataset[[#This Row],[2028/29 To - Other reallocations]] -> 0 | CH48: =Dataset[[#This Row],[2026/27 Targeted savings]]+Dataset[[#This Row],[2026/27 From - Total]] -> 0 | CI48: =Dataset[[#This Row],[2027/28 Targeted savings]]+Dataset[[#This Row],[2027/28 From - Total]] -> 0 | CJ48: =Dataset[[#This Row],[2028/29 Targeted savings]]+Dataset[[#This Row],[2028/29 From - Total]] -> 0 | CK48: =Dataset[[#This Row],[2025/26 Targeted savings]] -> 0 | CL48: =SUM(Dataset[[#This Row],[2026/27 Targeted savings]],Dataset[[#This Row],[2026/27 From - Total]],Dataset[[#This Row],[2026/27 To - Total]]) -> 0 | CM48: =SUM(Dataset[[#This Row],[2027/28 Targeted savings]],Dataset[[#This Row],[2027/28 From - Total]],Dataset[[#This Row],[2027/28 To - Total]]) -> 0 | CN48: =SUM(Dataset[[#This Row],[2028/29 Targeted savings]],Dataset[[#This Row],[2028/29 From - Total]],Dataset[[#This Row],[2028/29 To - Total]]) -> 0 | CO48: =Dataset[[#This Row],[2025/26 Baseline]]+Dataset[[#This Row],[2025/26 Total change]] -> 0 | CP48: =Dataset[[#This Row],[2026/27 Baseline]]+Dataset[[#This Row],[2026/27 Total change]] -> 0 | CQ48: =Dataset[[#This Row],[2027/28 Baseline]]+Dataset[[#This Row],[2027/28 Total change]] -> 0 | CR48: =Dataset[[#This Row],[2028/29 Baseline]]+Dataset[[#This Row],[2028/29 Total change]] -> 0
A49: NAT|Non-transfer item | B49: 37|Consumable supplies | C49: 2026_27 | D49: MTEC2026 | E49: 37 | F49: 1 | G49: 1 | H49: 44930 | I49: 31 | J49: 37 | K49: 01 | L49: 01 | M49: 044930 | N49: 000031 | O49: 37|01|01|000031 | P49: 01 | Q49: 01 | R49: 02 | S49: 31 | T49: 31 | U49: 01|01|02|31|31 | V49: National | W49: Sport, Arts and Culture | X49: Administration | Y49: Ministry | Z49: Non-transfer item | AA49: Current | AB49: Current payments | AC49: Goods and services | AD49: Consumable supplies | AE49: Consumable supplies | AF49: Learning and culture | AG49: Arts, culture, sport and recreation | AH49: NAT | AI49: 0 | AJ49: 0 | AK49: 0 | AL49: 0 | AM49: 0 | AN49: 0 | AO49: 0 | AP49: 0 | AQ49: 0 | AR49: 0 | AS49: 0 | CB49: =Dataset[[#This Row],[2026/27 From - Spending review Topic 1]]+Dataset[[#This Row],[2026/27 From - Spending review Topic 2]]+Dataset[[#This Row],[2026/27 From - Spending review Topic 3]]+Dataset[[#This Row],[2026/27 From - Spending review Topic 4]]+Dataset[[#This Row],[2026/27 From - Other reallocations]] -> 0 | CC49: =Dataset[[#This Row],[2027/28 From - Spending review Topic 1]]+Dataset[[#This Row],[2027/28 From - Spending review Topic 2]]+Dataset[[#This Row],[2027/28 From - Spending review Topic 3]]+Dataset[[#This Row],[2027/28 From - Spending review Topic 4]]+Dataset[[#This Row],[2027/28 From - Other reallocations]] -> 0 | CD49: =Dataset[[#This Row],[2028/29 From - Spending review Topic 1]]+Dataset[[#This Row],[2028/29 From - Spending review Topic 2]]+Dataset[[#This Row],[2028/29 From - Spending review Topic 3]]+Dataset[[#This Row],[2028/29 From - Spending review Topic 4]]+Dataset[[#This Row],[2028/29 From - Other reallocations]] -> 0 | CE49: =Dataset[[#This Row],[2026/27 To - Spending review Topic 1]]+Dataset[[#This Row],[2026/27 To - Spending review Topic 2]]+Dataset[[#This Row],[2026/27 To - Spending review Topic 3]]+Dataset[[#This Row],[2026/27 To - Spending review Topic 4]]+Dataset[[#This Row],[2026/27 To - Other reallocations]] -> 0 | CF49: =Dataset[[#This Row],[2027/28 To - Spending review Topic 1]]+Dataset[[#This Row],[2027/28 To - Spending review Topic 2]]+Dataset[[#This Row],[2027/28 To - Spending review Topic 3]]+Dataset[[#This Row],[2027/28 To - Spending review Topic 4]]+Dataset[[#This Row],[2027/28 To - Other reallocations]] -> 0 | CG49: =Dataset[[#This Row],[2028/29 To - Spending review Topic 1]]+Dataset[[#This Row],[2028/29 To - Spending review Topic 2]]+Dataset[[#This Row],[2028/29 To - Spending review Topic 3]]+Dataset[[#This Row],[2028/29 To - Spending review Topic 4]]+Dataset[[#This Row],[2028/29 To - Other reallocations]] -> 0 | CH49: =Dataset[[#This Row],[2026/27 Targeted savings]]+Dataset[[#This Row],[2026/27 From - Total]] -> 0 | CI49: =Dataset[[#This Row],[2027/28 Targeted savings]]+Dataset[[#This Row],[2027/28 From - Total]] -> 0 | CJ49: =Dataset[[#This Row],[2028/29 Targeted savings]]+Dataset[[#This Row],[2028/29 From - Total]] -> 0 | CK49: =Dataset[[#This Row],[2025/26 Targeted savings]] -> 0 | CL49: =SUM(Dataset[[#This Row],[2026/27 Targeted savings]],Dataset[[#This Row],[2026/27 From - Total]],Dataset[[#This Row],[2026/27 To - Total]]) -> 0 | CM49: =SUM(Dataset[[#This Row],[2027/28 Targeted savings]],Dataset[[#This Row],[2027/28 From - Total]],Dataset[[#This Row],[2027/28 To - Total]]) -> 0 | CN49: =SUM(Dataset[[#This Row],[2028/29 Targeted savings]],Dataset[[#This Row],[2028/29 From - Total]],Dataset[[#This Row],[2028/29 To - Total]]) -> 0 | CO49: =Dataset[[#This Row],[2025/26 Baseline]]+Dataset[[#This Row],[2025/26 Total change]] -> 0 | CP49: =Dataset[[#This Row],[2026/27 Baseline]]+Dataset[[#This Row],[2026/27 Total change]] -> 0 | CQ49: =Dataset[[#This Row],[2027/28 Baseline]]+Dataset[[#This Row],[2027/28 Total change]] -> 0 | CR49: =Dataset[[#This Row],[2028/29 Baseline]]+Dataset[[#This Row],[2028/29 Total change]] -> 0
A50: NAT|Non-transfer item | B50: 37|Consumables: Stationery, printing and office supplies | C50: 2026_27 | D50: MTEC2026 | E50: 37 | F50: 1 | G50: 1 | H50: 44931 | I50: 32 | J50: 37 | K50: 01 | L50: 01 | M50: 044931 | N50: 000032 | O50: 37|01|01|000032 | P50: 01 | Q50: 01 | R50: 02 | S50: 32 | T50: 32 | U50: 01|01|02|32|32 | V50: National | W50: Sport, Arts and Culture | X50: Administration | Y50: Ministry | Z50: Non-transfer item | AA50: Current | AB50: Current payments | AC50: Goods and services | AD50: Consumables: Stationery, printing and office supplies | AE50: Consumables: Stationery, printing and office supplies | AF50: Learning and culture | AG50: Arts, culture, sport and recreation | AH50: NAT | AI50: 0 | AJ50: 0 | AK50: 0 | AL50: 0 | AM50: 0 | AN50: 0 | AO50: 0 | AP50: 0 | AQ50: 0 | AR50: 0 | AS50: 0 | CB50: =Dataset[[#This Row],[2026/27 From - Spending review Topic 1]]+Dataset[[#This Row],[2026/27 From - Spending review Topic 2]]+Dataset[[#This Row],[2026/27 From - Spending review Topic 3]]+Dataset[[#This Row],[2026/27 From - Spending review Topic 4]]+Dataset[[#This Row],[2026/27 From - Other reallocations]] -> 0 | CC50: =Dataset[[#This Row],[2027/28 From - Spending review Topic 1]]+Dataset[[#This Row],[2027/28 From - Spending review Topic 2]]+Dataset[[#This Row],[2027/28 From - Spending review Topic 3]]+Dataset[[#This Row],[2027/28 From - Spending review Topic 4]]+Dataset[[#This Row],[2027/28 From - Other reallocations]] -> 0 | CD50: =Dataset[[#This Row],[2028/29 From - Spending review Topic 1]]+Dataset[[#This Row],[2028/29 From - Spending review Topic 2]]+Dataset[[#This Row],[2028/29 From - Spending review Topic 3]]+Dataset[[#This Row],[2028/29 From - Spending review Topic 4]]+Dataset[[#This Row],[2028/29 From - Other reallocations]] -> 0 | CE50: =Dataset[[#This Row],[2026/27 To - Spending review Topic 1]]+Dataset[[#This Row],[2026/27 To - Spending review Topic 2]]+Dataset[[#This Row],[2026/27 To - Spending review Topic 3]]+Dataset[[#This Row],[2026/27 To - Spending review Topic 4]]+Dataset[[#This Row],[2026/27 To - Other reallocations]] -> 0 | CF50: =Dataset[[#This Row],[2027/28 To - Spending review Topic 1]]+Dataset[[#This Row],[2027/28 To - Spending review Topic 2]]+Dataset[[#This Row],[2027/28 To - Spending review Topic 3]]+Dataset[[#This Row],[2027/28 To - Spending review Topic 4]]+Dataset[[#This Row],[2027/28 To - Other reallocations]] -> 0 | CG50: =Dataset[[#This Row],[2028/29 To - Spending review Topic 1]]+Dataset[[#This Row],[2028/29 To - Spending review Topic 2]]+Dataset[[#This Row],[2028/29 To - Spending review Topic 3]]+Dataset[[#This Row],[2028/29 To - Spending review Topic 4]]+Dataset[[#This Row],[2028/29 To - Other reallocations]] -> 0 | CH50: =Dataset[[#This Row],[2026/27 Targeted savings]]+Dataset[[#This Row],[2026/27 From - Total]] -> 0 | CI50: =Dataset[[#This Row],[2027/28 Targeted savings]]+Dataset[[#This Row],[2027/28 From - Total]] -> 0 | CJ50: =Dataset[[#This Row],[2028/29 Targeted savings]]+Dataset[[#This Row],[2028/29 From - Total]] -> 0 | CK50: =Dataset[[#This Row],[2025/26 Targeted savings]] -> 0 | CL50: =SUM(Dataset[[#This Row],[2026/27 Targeted savings]],Dataset[[#This Row],[2026/27 From - Total]],Dataset[[#This Row],[2026/27 To - Total]]) -> 0 | CM50: =SUM(Dataset[[#This Row],[2027/28 Targeted savings]],Dataset[[#This Row],[2027/28 From - Total]],Dataset[[#This Row],[2027/28 To - Total]]) -> 0 | CN50: =SUM(Dataset[[#This Row],[2028/29 Targeted savings]],Dataset[[#This Row],[2028/29 From - Total]],Dataset[[#This Row],[2028/29 To - Total]]) -> 0 | CO50: =Dataset[[#This Row],[2025/26 Baseline]]+Dataset[[#This Row],[2025/26 Total change]] -> 0 | CP50: =Dataset[[#This Row],[2026/27 Baseline]]+Dataset[[#This Row],[2026/27 Total change]] -> 0 | CQ50: =Dataset[[#This Row],[2027/28 Baseline]]+Dataset[[#This Row],[2027/28 Total change]] -> 0 | CR50: =Dataset[[#This Row],[2028/29 Baseline]]+Dataset[[#This Row],[2028/29 Total change]] -> 0
A51: NAT|Non-transfer item | B51: 37|Operating leases | C51: 2026_27 | D51: MTEC2026 | E51: 37 | F51: 1 | G51: 1 | H51: 44932 | I51: 33 | J51: 37 | K51: 01 | L51: 01 | M51: 044932 | N51: 000033 | O51: 37|01|01|000033 | P51: 01 | Q51: 01 | R51: 02 | S51: 33 | T51: 33 | U51: 01|01|02|33|33 | V51: National | W51: Sport, Arts and Culture | X51: Administration | Y51: Ministry | Z51: Non-transfer item | AA51: Current | AB51: Current payments | AC51: Goods and services | AD51: Operating leases | AE51: Operating leases | AF51: Learning and culture | AG51: Arts, culture, sport and recreation | AH51: NAT | AI51: 0 | AJ51: 0 | AK51: 0 | AL51: 0 | AM51: 0 | AN51: 0 | AO51: 0 | AP51: 0 | AQ51: 0 | AR51: 0 | AS51: 0 | CB51: =Dataset[[#This Row],[2026/27 From - Spending review Topic 1]]+Dataset[[#This Row],[2026/27 From - Spending review Topic 2]]+Dataset[[#This Row],[2026/27 From - Spending review Topic 3]]+Dataset[[#This Row],[2026/27 From - Spending review Topic 4]]+Dataset[[#This Row],[2026/27 From - Other reallocations]] -> 0 | CC51: =Dataset[[#This Row],[2027/28 From - Spending review Topic 1]]+Dataset[[#This Row],[2027/28 From - Spending review Topic 2]]+Dataset[[#This Row],[2027/28 From - Spending review Topic 3]]+Dataset[[#This Row],[2027/28 From - Spending review Topic 4]]+Dataset[[#This Row],[2027/28 From - Other reallocations]] -> 0 | CD51: =Dataset[[#This Row],[2028/29 From - Spending review Topic 1]]+Dataset[[#This Row],[2028/29 From - Spending review Topic 2]]+Dataset[[#This Row],[2028/29 From - Spending review Topic 3]]+Dataset[[#This Row],[2028/29 From - Spending review Topic 4]]+Dataset[[#This Row],[2028/29 From - Other reallocations]] -> 0 | CE51: =Dataset[[#This Row],[2026/27 To - Spending review Topic 1]]+Dataset[[#This Row],[2026/27 To - Spending review Topic 2]]+Dataset[[#This Row],[2026/27 To - Spending review Topic 3]]+Dataset[[#This Row],[2026/27 To - Spending review Topic 4]]+Dataset[[#This Row],[2026/27 To - Other reallocations]] -> 0 | CF51: =Dataset[[#This Row],[2027/28 To - Spending review Topic 1]]+Dataset[[#This Row],[2027/28 To - Spending review Topic 2]]+Dataset[[#This Row],[2027/28 To - Spending review Topic 3]]+Dataset[[#This Row],[2027/28 To - Spending review Topic 4]]+Dataset[[#This Row],[2027/28 To - Other reallocations]] -> 0 | CG51: =Dataset[[#This Row],[2028/29 To - Spending review Topic 1]]+Dataset[[#This Row],[2028/29 To - Spending review Topic 2]]+Dataset[[#This Row],[2028/29 To - Spending review Topic 3]]+Dataset[[#This Row],[2028/29 To - Spending review Topic 4]]+Dataset[[#This Row],[2028/29 To - Other reallocations]] -> 0 | CH51: =Dataset[[#This Row],[2026/27 Targeted savings]]+Dataset[[#This Row],[2026/27 From - Total]] -> 0 | CI51: =Dataset[[#This Row],[2027/28 Targeted savings]]+Dataset[[#This Row],[2027/28 From - Total]] -> 0 | CJ51: =Dataset[[#This Row],[2028/29 Targeted savings]]+Dataset[[#This Row],[2028/29 From - Total]] -> 0 | CK51: =Dataset[[#This Row],[2025/26 Targeted savings]] -> 0 | CL51: =SUM(Dataset[[#This Row],[2026/27 Targeted savings]],Dataset[[#This Row],[2026/27 From - Total]],Dataset[[#This Row],[2026/27 To - Total]]) -> 0 | CM51: =SUM(Dataset[[#This Row],[2027/28 Targeted savings]],Dataset[[#This Row],[2027/28 From - Total]],Dataset[[#This Row],[2027/28 To - Total]]) -> 0 | CN51: =SUM(Dataset[[#This Row],[2028/29 Targeted savings]],Dataset[[#This Row],[2028/29 From - Total]],Dataset[[#This Row],[2028/29 To - Total]]) -> 0 | CO51: =Dataset[[#This Row],[2025/26 Baseline]]+Dataset[[#This Row],[2025/26 Total change]] -> 0 | CP51: =Dataset[[#This Row],[2026/27 Baseline]]+Dataset[[#This Row],[2026/27 Total change]] -> 0 | CQ51: =Dataset[[#This Row],[2027/28 Baseline]]+Dataset[[#This Row],[2027/28 Total change]] -> 0 | CR51: =Dataset[[#This Row],[2028/29 Baseline]]+Dataset[[#This Row],[2028/29 Total change]] -> 0
A52: NAT|Non-transfer item | B52: 37|Rental and hiring | C52: 2026_27 | D52: MTEC2026 | E52: 37 | F52: 1 | G52: 1 | H52: 44933 | I52: 34 | J52: 37 | K52: 01 | L52: 01 | M52: 044933 | N52: 000034 | O52: 37|01|01|000034 | P52: 01 | Q52: 01 | R52: 02 | S52: 34 | T52: 34 | U52: 01|01|02|34|34 | V52: National | W52: Sport, Arts and Culture | X52: Administration | Y52: Ministry | Z52: Non-transfer item | AA52: Current | AB52: Current payments | AC52: Goods and services | AD52: Rental and hiring | AE52: Rental and hiring | AF52: Learning and culture | AG52: Arts, culture, sport and recreation | AH52: NAT | AI52: 0 | AJ52: 0 | AK52: 0 | AL52: 0 | AM52: 0 | AN52: 0 | AO52: 0 | AP52: 0 | AQ52: 0 | AR52: 0 | AS52: 0 | CB52: =Dataset[[#This Row],[2026/27 From - Spending review Topic 1]]+Dataset[[#This Row],[2026/27 From - Spending review Topic 2]]+Dataset[[#This Row],[2026/27 From - Spending review Topic 3]]+Dataset[[#This Row],[2026/27 From - Spending review Topic 4]]+Dataset[[#This Row],[2026/27 From - Other reallocations]] -> 0 | CC52: =Dataset[[#This Row],[2027/28 From - Spending review Topic 1]]+Dataset[[#This Row],[2027/28 From - Spending review Topic 2]]+Dataset[[#This Row],[2027/28 From - Spending review Topic 3]]+Dataset[[#This Row],[2027/28 From - Spending review Topic 4]]+Dataset[[#This Row],[2027/28 From - Other reallocations]] -> 0 | CD52: =Dataset[[#This Row],[2028/29 From - Spending review Topic 1]]+Dataset[[#This Row],[2028/29 From - Spending review Topic 2]]+Dataset[[#This Row],[2028/29 From - Spending review Topic 3]]+Dataset[[#This Row],[2028/29 From - Spending review Topic 4]]+Dataset[[#This Row],[2028/29 From - Other reallocations]] -> 0 | CE52: =Dataset[[#This Row],[2026/27 To - Spending review Topic 1]]+Dataset[[#This Row],[2026/27 To - Spending review Topic 2]]+Dataset[[#This Row],[2026/27 To - Spending review Topic 3]]+Dataset[[#This Row],[2026/27 To - Spending review Topic 4]]+Dataset[[#This Row],[2026/27 To - Other reallocations]] -> 0 | CF52: =Dataset[[#This Row],[2027/28 To - Spending review Topic 1]]+Dataset[[#This Row],[2027/28 To - Spending review Topic 2]]+Dataset[[#This Row],[2027/28 To - Spending review Topic 3]]+Dataset[[#This Row],[2027/28 To - Spending review Topic 4]]+Dataset[[#This Row],[2027/28 To - Other reallocations]] -> 0 | CG52: =Dataset[[#This Row],[2028/29 To - Spending review Topic 1]]+Dataset[[#This Row],[2028/29 To - Spending review Topic 2]]+Dataset[[#This Row],[2028/29 To - Spending review Topic 3]]+Dataset[[#This Row],[2028/29 To - Spending review Topic 4]]+Dataset[[#This Row],[2028/29 To - Other reallocations]] -> 0 | CH52: =Dataset[[#This Row],[2026/27 Targeted savings]]+Dataset[[#This Row],[2026/27 From - Total]] -> 0 | CI52: =Dataset[[#This Row],[2027/28 Targeted savings]]+Dataset[[#This Row],[2027/28 From - Total]] -> 0 | CJ52: =Dataset[[#This Row],[2028/29 Targeted savings]]+Dataset[[#This Row],[2028/29 From - Total]] -> 0 | CK52: =Dataset[[#This Row],[2025/26 Targeted savings]] -> 0 | CL52: =SUM(Dataset[[#This Row],[2026/27 Targeted savings]],Dataset[[#This Row],[2026/27 From - Total]],Dataset[[#This Row],[2026/27 To - Total]]) -> 0 | CM52: =SUM(Dataset[[#This Row],[2027/28 Targeted savings]],Dataset[[#This Row],[2027/28 From - Total]],Dataset[[#This Row],[2027/28 To - Total]]) -> 0 | CN52: =SUM(Dataset[[#This Row],[2028/29 Targeted savings]],Dataset[[#This Row],[2028/29 From - Total]],Dataset[[#This Row],[2028/29 To - Total]]) -> 0 | CO52: =Dataset[[#This Row],[2025/26 Baseline]]+Dataset[[#This Row],[2025/26 Total change]] -> 0 | CP52: =Dataset[[#This Row],[2026/27 Baseline]]+Dataset[[#This Row],[2026/27 Total change]] -> 0 | CQ52: =Dataset[[#This Row],[2027/28 Baseline]]+Dataset[[#This Row],[2027/28 Total change]] -> 0 | CR52: =Dataset[[#This Row],[2028/29 Baseline]]+Dataset[[#This Row],[2028/29 Total change]] -> 0
A53: NAT|Non-transfer item | B53: 37|Property payments | C53: 2026_27 | D53: MTEC2026 | E53: 37 | F53: 1 | G53: 1 | H53: 44934 | I53: 35 | J53: 37 | K53: 01 | L53: 01 | M53: 044934 | N53: 000035 | O53: 37|01|01|000035 | P53: 01 | Q53: 01 | R53: 02 | S53: 35 | T53: 35 | U53: 01|01|02|35|35 | V53: National | W53: Sport, Arts and Culture | X53: Administration | Y53: Ministry | Z53: Non-transfer item | AA53: Current | AB53: Current payments | AC53: Goods and services | AD53: Property payments | AE53: Property payments | AF53: Learning and culture | AG53: Arts, culture, sport and recreation | AH53: NAT | AI53: 0 | AJ53: 0 | AK53: 0 | AL53: 0 | AM53: 0 | AN53: 0 | AO53: 0 | AP53: 0 | AQ53: 0 | AR53: 0 | AS53: 0 | CB53: =Dataset[[#This Row],[2026/27 From - Spending review Topic 1]]+Dataset[[#This Row],[2026/27 From - Spending review Topic 2]]+Dataset[[#This Row],[2026/27 From - Spending review Topic 3]]+Dataset[[#This Row],[2026/27 From - Spending review Topic 4]]+Dataset[[#This Row],[2026/27 From - Other reallocations]] -> 0 | CC53: =Dataset[[#This Row],[2027/28 From - Spending review Topic 1]]+Dataset[[#This Row],[2027/28 From - Spending review Topic 2]]+Dataset[[#This Row],[2027/28 From - Spending review Topic 3]]+Dataset[[#This Row],[2027/28 From - Spending review Topic 4]]+Dataset[[#This Row],[2027/28 From - Other reallocations]] -> 0 | CD53: =Dataset[[#This Row],[2028/29 From - Spending review Topic 1]]+Dataset[[#This Row],[2028/29 From - Spending review Topic 2]]+Dataset[[#This Row],[2028/29 From - Spending review Topic 3]]+Dataset[[#This Row],[2028/29 From - Spending review Topic 4]]+Dataset[[#This Row],[2028/29 From - Other reallocations]] -> 0 | CE53: =Dataset[[#This Row],[2026/27 To - Spending review Topic 1]]+Dataset[[#This Row],[2026/27 To - Spending review Topic 2]]+Dataset[[#This Row],[2026/27 To - Spending review Topic 3]]+Dataset[[#This Row],[2026/27 To - Spending review Topic 4]]+Dataset[[#This Row],[2026/27 To - Other reallocations]] -> 0 | CF53: =Dataset[[#This Row],[2027/28 To - Spending review Topic 1]]+Dataset[[#This Row],[2027/28 To - Spending review Topic 2]]+Dataset[[#This Row],[2027/28 To - Spending review Topic 3]]+Dataset[[#This Row],[2027/28 To - Spending review Topic 4]]+Dataset[[#This Row],[2027/28 To - Other reallocations]] -> 0 | CG53: =Dataset[[#This Row],[2028/29 To - Spending review Topic 1]]+Dataset[[#This Row],[2028/29 To - Spending review Topic 2]]+Dataset[[#This Row],[2028/29 To - Spending review Topic 3]]+Dataset[[#This Row],[2028/29 To - Spending review Topic 4]]+Dataset[[#This Row],[2028/29 To - Other reallocations]] -> 0 | CH53: =Dataset[[#This Row],[2026/27 Targeted savings]]+Dataset[[#This Row],[2026/27 From - Total]] -> 0 | CI53: =Dataset[[#This Row],[2027/28 Targeted savings]]+Dataset[[#This Row],[2027/28 From - Total]] -> 0 | CJ53: =Dataset[[#This Row],[2028/29 Targeted savings]]+Dataset[[#This Row],[2028/29 From - Total]] -> 0 | CK53: =Dataset[[#This Row],[2025/26 Targeted savings]] -> 0 | CL53: =SUM(Dataset[[#This Row],[2026/27 Targeted savings]],Dataset[[#This Row],[2026/27 From - Total]],Dataset[[#This Row],[2026/27 To - Total]]) -> 0 | CM53: =SUM(Dataset[[#This Row],[2027/28 Targeted savings]],Dataset[[#This Row],[2027/28 From - Total]],Dataset[[#This Row],[2027/28 To - Total]]) -> 0 | CN53: =SUM(Dataset[[#This Row],[2028/29 Targeted savings]],Dataset[[#This Row],[2028/29 From - Total]],Dataset[[#This Row],[2028/29 To - Total]]) -> 0 | CO53: =Dataset[[#This Row],[2025/26 Baseline]]+Dataset[[#This Row],[2025/26 Total change]] -> 0 | CP53: =Dataset[[#This Row],[2026/27 Baseline]]+Dataset[[#This Row],[2026/27 Total change]] -> 0 | CQ53: =Dataset[[#This Row],[2027/28 Baseline]]+Dataset[[#This Row],[2027/28 Total change]] -> 0 | CR53: =Dataset[[#This Row],[2028/29 Baseline]]+Dataset[[#This Row],[2028/29 Total change]] -> 0
A54: NAT|Non-transfer item | B54: 37|Transport provided: Departmental activity | C54: 2026_27 | D54: MTEC2026 | E54: 37 | F54: 1 | G54: 1 | H54: 44935 | I54: 36 | J54: 37 | K54: 01 | L54: 01 | M54: 044935 | N54: 000036 | O54: 37|01|01|000036 | P54: 01 | Q54: 01 | R54: 02 | S54: 36 | T54: 36 | U54: 01|01|02|36|36 | V54: National | W54: Sport, Arts and Culture | X54: Administration | Y54: Ministry | Z54: Non-transfer item | AA54: Current | AB54: Current payments | AC54: Goods and services | AD54: Transport provided: Departmental activity | AE54: Transport provided: Departmental activity | AF54: Learning and culture | AG54: Arts, culture, sport and recreation | AH54: NAT | AI54: 0 | AJ54: 0 | AK54: 0 | AL54: 0 | AM54: 0 | AN54: 0 | AO54: 0 | AP54: 0 | AQ54: 0 | AR54: 0 | AS54: 0 | CB54: =Dataset[[#This Row],[2026/27 From - Spending review Topic 1]]+Dataset[[#This Row],[2026/27 From - Spending review Topic 2]]+Dataset[[#This Row],[2026/27 From - Spending review Topic 3]]+Dataset[[#This Row],[2026/27 From - Spending review Topic 4]]+Dataset[[#This Row],[2026/27 From - Other reallocations]] -> 0 | CC54: =Dataset[[#This Row],[2027/28 From - Spending review Topic 1]]+Dataset[[#This Row],[2027/28 From - Spending review Topic 2]]+Dataset[[#This Row],[2027/28 From - Spending review Topic 3]]+Dataset[[#This Row],[2027/28 From - Spending review Topic 4]]+Dataset[[#This Row],[2027/28 From - Other reallocations]] -> 0 | CD54: =Dataset[[#This Row],[2028/29 From - Spending review Topic 1]]+Dataset[[#This Row],[2028/29 From - Spending review Topic 2]]+Dataset[[#This Row],[2028/29 From - Spending review Topic 3]]+Dataset[[#This Row],[2028/29 From - Spending review Topic 4]]+Dataset[[#This Row],[2028/29 From - Other reallocations]] -> 0 | CE54: =Dataset[[#This Row],[2026/27 To - Spending review Topic 1]]+Dataset[[#This Row],[2026/27 To - Spending review Topic 2]]+Dataset[[#This Row],[2026/27 To - Spending review Topic 3]]+Dataset[[#This Row],[2026/27 To - Spending review Topic 4]]+Dataset[[#This Row],[2026/27 To - Other reallocations]] -> 0 | CF54: =Dataset[[#This Row],[2027/28 To - Spending review Topic 1]]+Dataset[[#This Row],[2027/28 To - Spending review Topic 2]]+Dataset[[#This Row],[2027/28 To - Spending review Topic 3]]+Dataset[[#This Row],[2027/28 To - Spending review Topic 4]]+Dataset[[#This Row],[2027/28 To - Other reallocations]] -> 0 | CG54: =Dataset[[#This Row],[2028/29 To - Spending review Topic 1]]+Dataset[[#This Row],[2028/29 To - Spending review Topic 2]]+Dataset[[#This Row],[2028/29 To - Spending review Topic 3]]+Dataset[[#This Row],[2028/29 To - Spending review Topic 4]]+Dataset[[#This Row],[2028/29 To - Other reallocations]] -> 0 | CH54: =Dataset[[#This Row],[2026/27 Targeted savings]]+Dataset[[#This Row],[2026/27 From - Total]] -> 0 | CI54: =Dataset[[#This Row],[2027/28 Targeted savings]]+Dataset[[#This Row],[2027/28 From - Total]] -> 0 | CJ54: =Dataset[[#This Row],[2028/29 Targeted savings]]+Dataset[[#This Row],[2028/29 From - Total]] -> 0 | CK54: =Dataset[[#This Row],[2025/26 Targeted savings]] -> 0 | CL54: =SUM(Dataset[[#This Row],[2026/27 Targeted savings]],Dataset[[#This Row],[2026/27 From - Total]],Dataset[[#This Row],[2026/27 To - Total]]) -> 0 | CM54: =SUM(Dataset[[#This Row],[2027/28 Targeted savings]],Dataset[[#This Row],[2027/28 From - Total]],Dataset[[#This Row],[2027/28 To - Total]]) -> 0 | CN54: =SUM(Dataset[[#This Row],[2028/29 Targeted savings]],Dataset[[#This Row],[2028/29 From - Total]],Dataset[[#This Row],[2028/29 To - Total]]) -> 0 | CO54: =Dataset[[#This Row],[2025/26 Baseline]]+Dataset[[#This Row],[2025/26 Total change]] -> 0 | CP54: =Dataset[[#This Row],[2026/27 Baseline]]+Dataset[[#This Row],[2026/27 Total change]] -> 0 | CQ54: =Dataset[[#This Row],[2027/28 Baseline]]+Dataset[[#This Row],[2027/28 Total change]] -> 0 | CR54: =Dataset[[#This Row],[2028/29 Baseline]]+Dataset[[#This Row],[2028/29 Total change]] -> 0
A55: NAT|Non-transfer item | B55: 37|Travel and subsistence | C55: 2026_27 | D55: MTEC2026 | E55: 37 | F55: 1 | G55: 1 | H55: 44936 | I55: 37 | J55: 37 | K55: 01 | L55: 01 | M55: 044936 | N55: 000037 | O55: 37|01|01|000037 | P55: 01 | Q55: 01 | R55: 02 | S55: 37 | T55: 37 | U55: 01|01|02|37|37 | V55: National | W55: Sport, Arts and Culture | X55: Administration | Y55: Ministry | Z55: Non-transfer item | AA55: Current | AB55: Current payments | AC55: Goods and services | AD55: Travel and subsistence | AE55: Travel and subsistence | AF55: Learning and culture | AG55: Arts, culture, sport and recreation | AH55: NAT | AI55: 0 | AJ55: 0 | AK55: 0 | AL55: 0 | AM55: 0 | AN55: 0 | AO55: 0 | AP55: 0 | AQ55: 0 | AR55: 0 | AS55: 0 | CB55: =Dataset[[#This Row],[2026/27 From - Spending review Topic 1]]+Dataset[[#This Row],[2026/27 From - Spending review Topic 2]]+Dataset[[#This Row],[2026/27 From - Spending review Topic 3]]+Dataset[[#This Row],[2026/27 From - Spending review Topic 4]]+Dataset[[#This Row],[2026/27 From - Other reallocations]] -> 0 | CC55: =Dataset[[#This Row],[2027/28 From - Spending review Topic 1]]+Dataset[[#This Row],[2027/28 From - Spending review Topic 2]]+Dataset[[#This Row],[2027/28 From - Spending review Topic 3]]+Dataset[[#This Row],[2027/28 From - Spending review Topic 4]]+Dataset[[#This Row],[2027/28 From - Other reallocations]] -> 0 | CD55: =Dataset[[#This Row],[2028/29 From - Spending review Topic 1]]+Dataset[[#This Row],[2028/29 From - Spending review Topic 2]]+Dataset[[#This Row],[2028/29 From - Spending review Topic 3]]+Dataset[[#This Row],[2028/29 From - Spending review Topic 4]]+Dataset[[#This Row],[2028/29 From - Other reallocations]] -> 0 | CE55: =Dataset[[#This Row],[2026/27 To - Spending review Topic 1]]+Dataset[[#This Row],[2026/27 To - Spending review Topic 2]]+Dataset[[#This Row],[2026/27 To - Spending review Topic 3]]+Dataset[[#This Row],[2026/27 To - Spending review Topic 4]]+Dataset[[#This Row],[2026/27 To - Other reallocations]] -> 0 | CF55: =Dataset[[#This Row],[2027/28 To - Spending review Topic 1]]+Dataset[[#This Row],[2027/28 To - Spending review Topic 2]]+Dataset[[#This Row],[2027/28 To - Spending review Topic 3]]+Dataset[[#This Row],[2027/28 To - Spending review Topic 4]]+Dataset[[#This Row],[2027/28 To - Other reallocations]] -> 0 | CG55: =Dataset[[#This Row],[2028/29 To - Spending review Topic 1]]+Dataset[[#This Row],[2028/29 To - Spending review Topic 2]]+Dataset[[#This Row],[2028/29 To - Spending review Topic 3]]+Dataset[[#This Row],[2028/29 To - Spending review Topic 4]]+Dataset[[#This Row],[2028/29 To - Other reallocations]] -> 0 | CH55: =Dataset[[#This Row],[2026/27 Targeted savings]]+Dataset[[#This Row],[2026/27 From - Total]] -> 0 | CI55: =Dataset[[#This Row],[2027/28 Targeted savings]]+Dataset[[#This Row],[2027/28 From - Total]] -> 0 | CJ55: =Dataset[[#This Row],[2028/29 Targeted savings]]+Dataset[[#This Row],[2028/29 From - Total]] -> 0 | CK55: =Dataset[[#This Row],[2025/26 Targeted savings]] -> 0 | CL55: =SUM(Dataset[[#This Row],[2026/27 Targeted savings]],Dataset[[#This Row],[2026/27 From - Total]],Dataset[[#This Row],[2026/27 To - Total]]) -> 0 | CM55: =SUM(Dataset[[#This Row],[2027/28 Targeted savings]],Dataset[[#This Row],[2027/28 From - Total]],Dataset[[#This Row],[2027/28 To - Total]]) -> 0 | CN55: =SUM(Dataset[[#This Row],[2028/29 Targeted savings]],Dataset[[#This Row],[2028/29 From - Total]],Dataset[[#This Row],[2028/29 To - Total]]) -> 0 | CO55: =Dataset[[#This Row],[2025/26 Baseline]]+Dataset[[#This Row],[2025/26 Total change]] -> 0 | CP55: =Dataset[[#This Row],[2026/27 Baseline]]+Dataset[[#This Row],[2026/27 Total change]] -> 0 | CQ55: =Dataset[[#This Row],[2027/28 Baseline]]+Dataset[[#This Row],[2027/28 Total change]] -> 0 | CR55: =Dataset[[#This Row],[2028/29 Baseline]]+Dataset[[#This Row],[2028/29 Total change]] -> 0
A56: NAT|Non-transfer item | B56: 37|Training and development | C56: 2026_27 | D56: MTEC2026 | E56: 37 | F56: 1 | G56: 1 | H56: 44937 | I56: 38 | J56: 37 | K56: 01 | L56: 01 | M56: 044937 | N56: 000038 | O56: 37|01|01|000038 | P56: 01 | Q56: 01 | R56: 02 | S56: 38 | T56: 38 | U56: 01|01|02|38|38 | V56: National | W56: Sport, Arts and Culture | X56: Administration | Y56: Ministry | Z56: Non-transfer item | AA56: Current | AB56: Current payments | AC56: Goods and services | AD56: Training and development | AE56: Training and development | AF56: Learning and culture | AG56: Arts, culture, sport and recreation | AH56: NAT | AI56: 0 | AJ56: 0 | AK56: 0 | AL56: 0 | AM56: 0 | AN56: 0 | AO56: 0 | AP56: 0 | AQ56: 0 | AR56: 0 | AS56: 0 | CB56: =Dataset[[#This Row],[2026/27 From - Spending review Topic 1]]+Dataset[[#This Row],[2026/27 From - Spending review Topic 2]]+Dataset[[#This Row],[2026/27 From - Spending review Topic 3]]+Dataset[[#This Row],[2026/27 From - Spending review Topic 4]]+Dataset[[#This Row],[2026/27 From - Other reallocations]] -> 0 | CC56: =Dataset[[#This Row],[2027/28 From - Spending review Topic 1]]+Dataset[[#This Row],[2027/28 From - Spending review Topic 2]]+Dataset[[#This Row],[2027/28 From - Spending review Topic 3]]+Dataset[[#This Row],[2027/28 From - Spending review Topic 4]]+Dataset[[#This Row],[2027/28 From - Other reallocations]] -> 0 | CD56: =Dataset[[#This Row],[2028/29 From - Spending review Topic 1]]+Dataset[[#This Row],[2028/29 From - Spending review Topic 2]]+Dataset[[#This Row],[2028/29 From - Spending review Topic 3]]+Dataset[[#This Row],[2028/29 From - Spending review Topic 4]]+Dataset[[#This Row],[2028/29 From - Other reallocations]] -> 0 | CE56: =Dataset[[#This Row],[2026/27 To - Spending review Topic 1]]+Dataset[[#This Row],[2026/27 To - Spending review Topic 2]]+Dataset[[#This Row],[2026/27 To - Spending review Topic 3]]+Dataset[[#This Row],[2026/27 To - Spending review Topic 4]]+Dataset[[#This Row],[2026/27 To - Other reallocations]] -> 0 | CF56: =Dataset[[#This Row],[2027/28 To - Spending review Topic 1]]+Dataset[[#This Row],[2027/28 To - Spending review Topic 2]]+Dataset[[#This Row],[2027/28 To - Spending review Topic 3]]+Dataset[[#This Row],[2027/28 To - Spending review Topic 4]]+Dataset[[#This Row],[2027/28 To - Other reallocations]] -> 0 | CG56: =Dataset[[#This Row],[2028/29 To - Spending review Topic 1]]+Dataset[[#This Row],[2028/29 To - Spending review Topic 2]]+Dataset[[#This Row],[2028/29 To - Spending review Topic 3]]+Dataset[[#This Row],[2028/29 To - Spending review Topic 4]]+Dataset[[#This Row],[2028/29 To - Other reallocations]] -> 0 | CH56: =Dataset[[#This Row],[2026/27 Targeted savings]]+Dataset[[#This Row],[2026/27 From - Total]] -> 0 | CI56: =Dataset[[#This Row],[2027/28 Targeted savings]]+Dataset[[#This Row],[2027/28 From - Total]] -> 0 | CJ56: =Dataset[[#This Row],[2028/29 Targeted savings]]+Dataset[[#This Row],[2028/29 From - Total]] -> 0 | CK56: =Dataset[[#This Row],[2025/26 Targeted savings]] -> 0 | CL56: =SUM(Dataset[[#This Row],[2026/27 Targeted savings]],Dataset[[#This Row],[2026/27 From - Total]],Dataset[[#This Row],[2026/27 To - Total]]) -> 0 | CM56: =SUM(Dataset[[#This Row],[2027/28 Targeted savings]],Dataset[[#This Row],[2027/28 From - Total]],Dataset[[#This Row],[2027/28 To - Total]]) -> 0 | CN56: =SUM(Dataset[[#This Row],[2028/29 Targeted savings]],Dataset[[#This Row],[2028/29 From - Total]],Dataset[[#This Row],[2028/29 To - Total]]) -> 0 | CO56: =Dataset[[#This Row],[2025/26 Baseline]]+Dataset[[#This Row],[2025/26 Total change]] -> 0 | CP56: =Dataset[[#This Row],[2026/27 Baseline]]+Dataset[[#This Row],[2026/27 Total change]] -> 0 | CQ56: =Dataset[[#This Row],[2027/28 Baseline]]+Dataset[[#This Row],[2027/28 Total change]] -> 0 | CR56: =Dataset[[#This Row],[2028/29 Baseline]]+Dataset[[#This Row],[2028/29 Total change]] -> 0
A57: NAT|Non-transfer item | B57: 37|Operating payments | C57: 2026_27 | D57: MTEC2026 | E57: 37 | F57: 1 | G57: 1 | H57: 44938 | I57: 39 | J57: 37 | K57: 01 | L57: 01 | M57: 044938 | N57: 000039 | O57: 37|01|01|000039 | P57: 01 | Q57: 01 | R57: 02 | S57: 39 | T57: 39 | U57: 01|01|02|39|39 | V57: National | W57: Sport, Arts and Culture | X57: Administration | Y57: Ministry | Z57: Non-transfer item | AA57: Current | AB57: Current payments | AC57: Goods and services | AD57: Operating payments | AE57: Operating payments | AF57: Learning and culture | AG57: Arts, culture, sport and recreation | AH57: NAT | AI57: 0 | AJ57: 0 | AK57: 0 | AL57: 0 | AM57: 0 | AN57: 0 | AO57: 0 | AP57: 0 | AQ57: 0 | AR57: 0 | AS57: 0 | CB57: =Dataset[[#This Row],[2026/27 From - Spending review Topic 1]]+Dataset[[#This Row],[2026/27 From - Spending review Topic 2]]+Dataset[[#This Row],[2026/27 From - Spending review Topic 3]]+Dataset[[#This Row],[2026/27 From - Spending review Topic 4]]+Dataset[[#This Row],[2026/27 From - Other reallocations]] -> 0 | CC57: =Dataset[[#This Row],[2027/28 From - Spending review Topic 1]]+Dataset[[#This Row],[2027/28 From - Spending review Topic 2]]+Dataset[[#This Row],[2027/28 From - Spending review Topic 3]]+Dataset[[#This Row],[2027/28 From - Spending review Topic 4]]+Dataset[[#This Row],[2027/28 From - Other reallocations]] -> 0 | CD57: =Dataset[[#This Row],[2028/29 From - Spending review Topic 1]]+Dataset[[#This Row],[2028/29 From - Spending review Topic 2]]+Dataset[[#This Row],[2028/29 From - Spending review Topic 3]]+Dataset[[#This Row],[2028/29 From - Spending review Topic 4]]+Dataset[[#This Row],[2028/29 From - Other reallocations]] -> 0 | CE57: =Dataset[[#This Row],[2026/27 To - Spending review Topic 1]]+Dataset[[#This Row],[2026/27 To - Spending review Topic 2]]+Dataset[[#This Row],[2026/27 To - Spending review Topic 3]]+Dataset[[#This Row],[2026/27 To - Spending review Topic 4]]+Dataset[[#This Row],[2026/27 To - Other reallocations]] -> 0 | CF57: =Dataset[[#This Row],[2027/28 To - Spending review Topic 1]]+Dataset[[#This Row],[2027/28 To - Spending review Topic 2]]+Dataset[[#This Row],[2027/28 To - Spending review Topic 3]]+Dataset[[#This Row],[2027/28 To - Spending review Topic 4]]+Dataset[[#This Row],[2027/28 To - Other reallocations]] -> 0 | CG57: =Dataset[[#This Row],[2028/29 To - Spending review Topic 1]]+Dataset[[#This Row],[2028/29 To - Spending review Topic 2]]+Dataset[[#This Row],[2028/29 To - Spending review Topic 3]]+Dataset[[#This Row],[2028/29 To - Spending review Topic 4]]+Dataset[[#This Row],[2028/29 To - Other reallocations]] -> 0 | CH57: =Dataset[[#This Row],[2026/27 Targeted savings]]+Dataset[[#This Row],[2026/27 From - Total]] -> 0 | CI57: =Dataset[[#This Row],[2027/28 Targeted savings]]+Dataset[[#This Row],[2027/28 From - Total]] -> 0 | CJ57: =Dataset[[#This Row],[2028/29 Targeted savings]]+Dataset[[#This Row],[2028/29 From - Total]] -> 0 | CK57: =Dataset[[#This Row],[2025/26 Targeted savings]] -> 0 | CL57: =SUM(Dataset[[#This Row],[2026/27 Targeted savings]],Dataset[[#This Row],[2026/27 From - Total]],Dataset[[#This Row],[2026/27 To - Total]]) -> 0 | CM57: =SUM(Dataset[[#This Row],[2027/28 Targeted savings]],Dataset[[#This Row],[2027/28 From - Total]],Dataset[[#This Row],[2027/28 To - Total]]) -> 0 | CN57: =SUM(Dataset[[#This Row],[2028/29 Targeted savings]],Dataset[[#This Row],[2028/29 From - Total]],Dataset[[#This Row],[2028/29 To - Total]]) -> 0 | CO57: =Dataset[[#This Row],[2025/26 Baseline]]+Dataset[[#This Row],[2025/26 Total change]] -> 0 | CP57: =Dataset[[#This Row],[2026/27 Baseline]]+Dataset[[#This Row],[2026/27 Total change]] -> 0 | CQ57: =Dataset[[#This Row],[2027/28 Baseline]]+Dataset[[#This Row],[2027/28 Total change]] -> 0 | CR57: =Dataset[[#This Row],[2028/29 Baseline]]+Dataset[[#This Row],[2028/29 Total change]] -> 0
A58: NAT|Non-transfer item | B58: 37|Venues and facilities | C58: 2026_27 | D58: MTEC2026 | E58: 37 | F58: 1 | G58: 1 | H58: 44939 | I58: 40 | J58: 37 | K58: 01 | L58: 01 | M58: 044939 | N58: 000040 | O58: 37|01|01|000040 | P58: 01 | Q58: 01 | R58: 02 | S58: 40 | T58: 40 | U58: 01|01|02|40|40 | V58: National | W58: Sport, Arts and Culture | X58: Administration | Y58: Ministry | Z58: Non-transfer item | AA58: Current | AB58: Current payments | AC58: Goods and services | AD58: Venues and facilities | AE58: Venues and facilities | AF58: Learning and culture | AG58: Arts, culture, sport and recreation | AH58: NAT | AI58: 0 | AJ58: 0 | AK58: 0 | AL58: 0 | AM58: 0 | AN58: 0 | AO58: 0 | AP58: 0 | AQ58: 0 | AR58: 0 | AS58: 0 | CB58: =Dataset[[#This Row],[2026/27 From - Spending review Topic 1]]+Dataset[[#This Row],[2026/27 From - Spending review Topic 2]]+Dataset[[#This Row],[2026/27 From - Spending review Topic 3]]+Dataset[[#This Row],[2026/27 From - Spending review Topic 4]]+Dataset[[#This Row],[2026/27 From - Other reallocations]] -> 0 | CC58: =Dataset[[#This Row],[2027/28 From - Spending review Topic 1]]+Dataset[[#This Row],[2027/28 From - Spending review Topic 2]]+Dataset[[#This Row],[2027/28 From - Spending review Topic 3]]+Dataset[[#This Row],[2027/28 From - Spending review Topic 4]]+Dataset[[#This Row],[2027/28 From - Other reallocations]] -> 0 | CD58: =Dataset[[#This Row],[2028/29 From - Spending review Topic 1]]+Dataset[[#This Row],[2028/29 From - Spending review Topic 2]]+Dataset[[#This Row],[2028/29 From - Spending review Topic 3]]+Dataset[[#This Row],[2028/29 From - Spending review Topic 4]]+Dataset[[#This Row],[2028/29 From - Other reallocations]] -> 0 | CE58: =Dataset[[#This Row],[2026/27 To - Spending review Topic 1]]+Dataset[[#This Row],[2026/27 To - Spending review Topic 2]]+Dataset[[#This Row],[2026/27 To - Spending review Topic 3]]+Dataset[[#This Row],[2026/27 To - Spending review Topic 4]]+Dataset[[#This Row],[2026/27 To - Other reallocations]] -> 0 | CF58: =Dataset[[#This Row],[2027/28 To - Spending review Topic 1]]+Dataset[[#This Row],[2027/28 To - Spending review Topic 2]]+Dataset[[#This Row],[2027/28 To - Spending review Topic 3]]+Dataset[[#This Row],[2027/28 To - Spending review Topic 4]]+Dataset[[#This Row],[2027/28 To - Other reallocations]] -> 0 | CG58: =Dataset[[#This Row],[2028/29 To - Spending review Topic 1]]+Dataset[[#This Row],[2028/29 To - Spending review Topic 2]]+Dataset[[#This Row],[2028/29 To - Spending review Topic 3]]+Dataset[[#This Row],[2028/29 To - Spending review Topic 4]]+Dataset[[#This Row],[2028/29 To - Other reallocations]] -> 0 | CH58: =Dataset[[#This Row],[2026/27 Targeted savings]]+Dataset[[#This Row],[2026/27 From - Total]] -> 0 | CI58: =Dataset[[#This Row],[2027/28 Targeted savings]]+Dataset[[#This Row],[2027/28 From - Total]] -> 0 | CJ58: =Dataset[[#This Row],[2028/29 Targeted savings]]+Dataset[[#This Row],[2028/29 From - Total]] -> 0 | CK58: =Dataset[[#This Row],[2025/26 Targeted savings]] -> 0 | CL58: =SUM(Dataset[[#This Row],[2026/27 Targeted savings]],Dataset[[#This Row],[2026/27 From - Total]],Dataset[[#This Row],[2026/27 To - Total]]) -> 0 | CM58: =SUM(Dataset[[#This Row],[2027/28 Targeted savings]],Dataset[[#This Row],[2027/28 From - Total]],Dataset[[#This Row],[2027/28 To - Total]]) -> 0 | CN58: =SUM(Dataset[[#This Row],[2028/29 Targeted savings]],Dataset[[#This Row],[2028/29 From - Total]],Dataset[[#This Row],[2028/29 To - Total]]) -> 0 | CO58: =Dataset[[#This Row],[2025/26 Baseline]]+Dataset[[#This Row],[2025/26 Total change]] -> 0 | CP58: =Dataset[[#This Row],[2026/27 Baseline]]+Dataset[[#This Row],[2026/27 Total change]] -> 0 | CQ58: =Dataset[[#This Row],[2027/28 Baseline]]+Dataset[[#This Row],[2027/28 Total change]] -> 0 | CR58: =Dataset[[#This Row],[2028/29 Baseline]]+Dataset[[#This Row],[2028/29 Total change]] -> 0
A59: NAT|Non-transfer item | B59: 37|Interest (Incl. interest on unitary payments (PPP)) | C59: 2026_27 | D59: MTEC2026 | E59: 37 | F59: 1 | G59: 1 | H59: 44940 | I59: 41 | J59: 37 | K59: 01 | L59: 01 | M59: 044940 | N59: 000041 | O59: 37|01|01|000041 | P59: 01 | Q59: 01 | R59: 03 | S59: 41 | T59: 41 | U59: 01|01|03|41|41 | V59: National | W59: Sport, Arts and Culture | X59: Administration | Y59: Ministry | Z59: Non-transfer item | AA59: Current | AB59: Current payments | AC59: Interest and rent on land | AD59: Interest (Incl. interest on unitary payments (PPP)) | AE59: Interest (Incl. interest on unitary payments (PPP)) | AF59: Learning and culture | AG59: Arts, culture, sport and recreation | AH59: NAT | AI59: 0 | AJ59: 0 | AK59: 0 | AL59: 0 | AM59: 0 | AN59: 0 | AO59: 0 | AP59: 0 | AQ59: 0 | AR59: 0 | AS59: 0 | CB59: =Dataset[[#This Row],[2026/27 From - Spending review Topic 1]]+Dataset[[#This Row],[2026/27 From - Spending review Topic 2]]+Dataset[[#This Row],[2026/27 From - Spending review Topic 3]]+Dataset[[#This Row],[2026/27 From - Spending review Topic 4]]+Dataset[[#This Row],[2026/27 From - Other reallocations]] -> 0 | CC59: =Dataset[[#This Row],[2027/28 From - Spending review Topic 1]]+Dataset[[#This Row],[2027/28 From - Spending review Topic 2]]+Dataset[[#This Row],[2027/28 From - Spending review Topic 3]]+Dataset[[#This Row],[2027/28 From - Spending review Topic 4]]+Dataset[[#This Row],[2027/28 From - Other reallocations]] -> 0 | CD59: =Dataset[[#This Row],[2028/29 From - Spending review Topic 1]]+Dataset[[#This Row],[2028/29 From - Spending review Topic 2]]+Dataset[[#This Row],[2028/29 From - Spending review Topic 3]]+Dataset[[#This Row],[2028/29 From - Spending review Topic 4]]+Dataset[[#This Row],[2028/29 From - Other reallocations]] -> 0 | CE59: =Dataset[[#This Row],[2026/27 To - Spending review Topic 1]]+Dataset[[#This Row],[2026/27 To - Spending review Topic 2]]+Dataset[[#This Row],[2026/27 To - Spending review Topic 3]]+Dataset[[#This Row],[2026/27 To - Spending review Topic 4]]+Dataset[[#This Row],[2026/27 To - Other reallocations]] -> 0 | CF59: =Dataset[[#This Row],[2027/28 To - Spending review Topic 1]]+Dataset[[#This Row],[2027/28 To - Spending review Topic 2]]+Dataset[[#This Row],[2027/28 To - Spending review Topic 3]]+Dataset[[#This Row],[2027/28 To - Spending review Topic 4]]+Dataset[[#This Row],[2027/28 To - Other reallocations]] -> 0 | CG59: =Dataset[[#This Row],[2028/29 To - Spending review Topic 1]]+Dataset[[#This Row],[2028/29 To - Spending review Topic 2]]+Dataset[[#This Row],[2028/29 To - Spending review Topic 3]]+Dataset[[#This Row],[2028/29 To - Spending review Topic 4]]+Dataset[[#This Row],[2028/29 To - Other reallocations]] -> 0 | CH59: =Dataset[[#This Row],[2026/27 Targeted savings]]+Dataset[[#This Row],[2026/27 From - Total]] -> 0 | CI59: =Dataset[[#This Row],[2027/28 Targeted savings]]+Dataset[[#This Row],[2027/28 From - Total]] -> 0 | CJ59: =Dataset[[#This Row],[2028/29 Targeted savings]]+Dataset[[#This Row],[2028/29 From - Total]] -> 0 | CK59: =Dataset[[#This Row],[2025/26 Targeted savings]] -> 0 | CL59: =SUM(Dataset[[#This Row],[2026/27 Targeted savings]],Dataset[[#This Row],[2026/27 From - Total]],Dataset[[#This Row],[2026/27 To - Total]]) -> 0 | CM59: =SUM(Dataset[[#This Row],[2027/28 Targeted savings]],Dataset[[#This Row],[2027/28 From - Total]],Dataset[[#This Row],[2027/28 To - Total]]) -> 0 | CN59: =SUM(Dataset[[#This Row],[2028/29 Targeted savings]],Dataset[[#This Row],[2028/29 From - Total]],Dataset[[#This Row],[2028/29 To - Total]]) -> 0 | CO59: =Dataset[[#This Row],[2025/26 Baseline]]+Dataset[[#This Row],[2025/26 Total change]] -> 0 | CP59: =Dataset[[#This Row],[2026/27 Baseline]]+Dataset[[#This Row],[2026/27 Total change]] -> 0 | CQ59: =Dataset[[#This Row],[2027/28 Baseline]]+Dataset[[#This Row],[2027/28 Total change]] -> 0 | CR59: =Dataset[[#This Row],[2028/29 Baseline]]+Dataset[[#This Row],[2028/29 Total change]] -> 0
A60: NAT|Non-transfer item | B60: 37|Rent on land | C60: 2026_27 | D60: MTEC2026 | E60: 37 | F60: 1 | G60: 1 | H60: 44941 | I60: 42 | J60: 37 | K60: 01 | L60: 01 | M60: 044941 | N60: 000042 | O60: 37|01|01|000042 | P60: 01 | Q60: 01 | R60: 03 | S60: 42 | T60: 42 | U60: 01|01|03|42|42 | V60: National | W60: Sport, Arts and Culture | X60: Administration | Y60: Ministry | Z60: Non-transfer item | AA60: Current | AB60: Current payments | AC60: Interest and rent on land | AD60: Rent on land | AE60: Rent on land | AF60: Learning and culture | AG60: Arts, culture, sport and recreation | AH60: NAT | AI60: 0 | AJ60: 0 | AK60: 0 | AL60: 0 | AM60: 0 | AN60: 0 | AO60: 0 | AP60: 0 | AQ60: 0 | AR60: 0 | AS60: 0 | CB60: =Dataset[[#This Row],[2026/27 From - Spending review Topic 1]]+Dataset[[#This Row],[2026/27 From - Spending review Topic 2]]+Dataset[[#This Row],[2026/27 From - Spending review Topic 3]]+Dataset[[#This Row],[2026/27 From - Spending review Topic 4]]+Dataset[[#This Row],[2026/27 From - Other reallocations]] -> 0 | CC60: =Dataset[[#This Row],[2027/28 From - Spending review Topic 1]]+Dataset[[#This Row],[2027/28 From - Spending review Topic 2]]+Dataset[[#This Row],[2027/28 From - Spending review Topic 3]]+Dataset[[#This Row],[2027/28 From - Spending review Topic 4]]+Dataset[[#This Row],[2027/28 From - Other reallocations]] -> 0 | CD60: =Dataset[[#This Row],[2028/29 From - Spending review Topic 1]]+Dataset[[#This Row],[2028/29 From - Spending review Topic 2]]+Dataset[[#This Row],[2028/29 From - Spending review Topic 3]]+Dataset[[#This Row],[2028/29 From - Spending review Topic 4]]+Dataset[[#This Row],[2028/29 From - Other reallocations]] -> 0 | CE60: =Dataset[[#This Row],[2026/27 To - Spending review Topic 1]]+Dataset[[#This Row],[2026/27 To - Spending review Topic 2]]+Dataset[[#This Row],[2026/27 To - Spending review Topic 3]]+Dataset[[#This Row],[2026/27 To - Spending review Topic 4]]+Dataset[[#This Row],[2026/27 To - Other reallocations]] -> 0 | CF60: =Dataset[[#This Row],[2027/28 To - Spending review Topic 1]]+Dataset[[#This Row],[2027/28 To - Spending review Topic 2]]+Dataset[[#This Row],[2027/28 To - Spending review Topic 3]]+Dataset[[#This Row],[2027/28 To - Spending review Topic 4]]+Dataset[[#This Row],[2027/28 To - Other reallocations]] -> 0 | CG60: =Dataset[[#This Row],[2028/29 To - Spending review Topic 1]]+Dataset[[#This Row],[2028/29 To - Spending review Topic 2]]+Dataset[[#This Row],[2028/29 To - Spending review Topic 3]]+Dataset[[#This Row],[2028/29 To - Spending review Topic 4]]+Dataset[[#This Row],[2028/29 To - Other reallocations]] -> 0 | CH60: =Dataset[[#This Row],[2026/27 Targeted savings]]+Dataset[[#This Row],[2026/27 From - Total]] -> 0 | CI60: =Dataset[[#This Row],[2027/28 Targeted savings]]+Dataset[[#This Row],[2027/28 From - Total]] -> 0 | CJ60: =Dataset[[#This Row],[2028/29 Targeted savings]]+Dataset[[#This Row],[2028/29 From - Total]] -> 0 | CK60: =Dataset[[#This Row],[2025/26 Targeted savings]] -> 0 | CL60: =SUM(Dataset[[#This Row],[2026/27 Targeted savings]],Dataset[[#This Row],[2026/27 From - Total]],Dataset[[#This Row],[2026/27 To - Total]]) -> 0 | CM60: =SUM(Dataset[[#This Row],[2027/28 Targeted savings]],Dataset[[#This Row],[2027/28 From - Total]],Dataset[[#This Row],[2027/28 To - Total]]) -> 0 | CN60: =SUM(Dataset[[#This Row],[2028/29 Targeted savings]],Dataset[[#This Row],[2028/29 From - Total]],Dataset[[#This Row],[2028/29 To - Total]]) -> 0 | CO60: =Dataset[[#This Row],[2025/26 Baseline]]+Dataset[[#This Row],[2025/26 Total change]] -> 0 | CP60: =Dataset[[#This Row],[2026/27 Baseline]]+Dataset[[#This Row],[2026/27 Total change]] -> 0 | CQ60: =Dataset[[#This Row],[2027/28 Baseline]]+Dataset[[#This Row],[2027/28 Total change]] -> 0 | CR60: =Dataset[[#This Row],[2028/29 Baseline]]+Dataset[[#This Row],[2028/29 Total change]] -> 0
A61: NAT|Non-transfer item | B61: 37|Buildings | C61: 2026_27 | D61: MTEC2026 | E61: 37 | F61: 1 | G61: 1 | H61: 44942 | I61: 43 | J61: 37 | K61: 01 | L61: 01 | M61: 044942 | N61: 000043 | O61: 37|01|01|000043 | P61: 02 | Q61: 03 | R61: 11 | S61: 54 | T61: 58 | U61: 02|03|11|54|58 | V61: National | W61: Sport, Arts and Culture | X61: Administration | Y61: Ministry | Z61: Non-transfer item | AA61: Capital | AB61: Payments for capital assets | AC61: Buildings and other fixed structures | AD61: Buildings | AE61: Buildings | AF61: Learning and culture | AG61: Arts, culture, sport and recreation | AH61: NAT | AI61: 0 | AJ61: 0 | AK61: 0 | AL61: 0 | AM61: 0 | AN61: 0 | AO61: 0 | AP61: 0 | AQ61: 0 | AR61: 0 | AS61: 0 | CB61: =Dataset[[#This Row],[2026/27 From - Spending review Topic 1]]+Dataset[[#This Row],[2026/27 From - Spending review Topic 2]]+Dataset[[#This Row],[2026/27 From - Spending review Topic 3]]+Dataset[[#This Row],[2026/27 From - Spending review Topic 4]]+Dataset[[#This Row],[2026/27 From - Other reallocations]] -> 0 | CC61: =Dataset[[#This Row],[2027/28 From - Spending review Topic 1]]+Dataset[[#This Row],[2027/28 From - Spending review Topic 2]]+Dataset[[#This Row],[2027/28 From - Spending review Topic 3]]+Dataset[[#This Row],[2027/28 From - Spending review Topic 4]]+Dataset[[#This Row],[2027/28 From - Other reallocations]] -> 0 | CD61: =Dataset[[#This Row],[2028/29 From - Spending review Topic 1]]+Dataset[[#This Row],[2028/29 From - Spending review Topic 2]]+Dataset[[#This Row],[2028/29 From - Spending review Topic 3]]+Dataset[[#This Row],[2028/29 From - Spending review Topic 4]]+Dataset[[#This Row],[2028/29 From - Other reallocations]] -> 0 | CE61: =Dataset[[#This Row],[2026/27 To - Spending review Topic 1]]+Dataset[[#This Row],[2026/27 To - Spending review Topic 2]]+Dataset[[#This Row],[2026/27 To - Spending review Topic 3]]+Dataset[[#This Row],[2026/27 To - Spending review Topic 4]]+Dataset[[#This Row],[2026/27 To - Other reallocations]] -> 0 | CF61: =Dataset[[#This Row],[2027/28 To - Spending review Topic 1]]+Dataset[[#This Row],[2027/28 To - Spending review Topic 2]]+Dataset[[#This Row],[2027/28 To - Spending review Topic 3]]+Dataset[[#This Row],[2027/28 To - Spending review Topic 4]]+Dataset[[#This Row],[2027/28 To - Other reallocations]] -> 0 | CG61: =Dataset[[#This Row],[2028/29 To - Spending review Topic 1]]+Dataset[[#This Row],[2028/29 To - Spending review Topic 2]]+Dataset[[#This Row],[2028/29 To - Spending review Topic 3]]+Dataset[[#This Row],[2028/29 To - Spending review Topic 4]]+Dataset[[#This Row],[2028/29 To - Other reallocations]] -> 0 | CH61: =Dataset[[#This Row],[2026/27 Targeted savings]]+Dataset[[#This Row],[2026/27 From - Total]] -> 0 | CI61: =Dataset[[#This Row],[2027/28 Targeted savings]]+Dataset[[#This Row],[2027/28 From - Total]] -> 0 | CJ61: =Dataset[[#This Row],[2028/29 Targeted savings]]+Dataset[[#This Row],[2028/29 From - Total]] -> 0 | CK61: =Dataset[[#This Row],[2025/26 Targeted savings]] -> 0 | CL61: =SUM(Dataset[[#This Row],[2026/27 Targeted savings]],Dataset[[#This Row],[2026/27 From - Total]],Dataset[[#This Row],[2026/27 To - Total]]) -> 0 | CM61: =SUM(Dataset[[#This Row],[2027/28 Targeted savings]],Dataset[[#This Row],[2027/28 From - Total]],Dataset[[#This Row],[2027/28 To - Total]]) -> 0 | CN61: =SUM(Dataset[[#This Row],[2028/29 Targeted savings]],Dataset[[#This Row],[2028/29 From - Total]],Dataset[[#This Row],[2028/29 To - Total]]) -> 0 | CO61: =Dataset[[#This Row],[2025/26 Baseline]]+Dataset[[#This Row],[2025/26 Total change]] -> 0 | CP61: =Dataset[[#This Row],[2026/27 Baseline]]+Dataset[[#This Row],[2026/27 Total change]] -> 0 | CQ61: =Dataset[[#This Row],[2027/28 Baseline]]+Dataset[[#This Row],[2027/28 Total change]] -> 0 | CR61: =Dataset[[#This Row],[2028/29 Baseline]]+Dataset[[#This Row],[2028/29 Total change]] -> 0
A62: NAT|Non-transfer item | B62: 37|Other fixed structures | C62: 2026_27 | D62: MTEC2026 | E62: 37 | F62: 1 | G62: 1 | H62: 44943 | I62: 44 | J62: 37 | K62: 01 | L62: 01 | M62: 044943 | N62: 000044 | O62: 37|01|01|000044 | P62: 02 | Q62: 03 | R62: 11 | S62: 55 | T62: 59 | U62: 02|03|11|55|59 | V62: National | W62: Sport, Arts and Culture | X62: Administration | Y62: Ministry | Z62: Non-transfer item | AA62: Capital | AB62: Payments for capital assets | AC62: Buildings and other fixed structures | AD62: Other fixed structures | AE62: Other fixed structures | AF62: Learning and culture | AG62: Arts, culture, sport and recreation | AH62: NAT | AI62: 0 | AJ62: 0 | AK62: 0 | AL62: 0 | AM62: 0 | AN62: 0 | AO62: 0 | AP62: 0 | AQ62: 0 | AR62: 0 | AS62: 0 | CB62: =Dataset[[#This Row],[2026/27 From - Spending review Topic 1]]+Dataset[[#This Row],[2026/27 From - Spending review Topic 2]]+Dataset[[#This Row],[2026/27 From - Spending review Topic 3]]+Dataset[[#This Row],[2026/27 From - Spending review Topic 4]]+Dataset[[#This Row],[2026/27 From - Other reallocations]] -> 0 | CC62: =Dataset[[#This Row],[2027/28 From - Spending review Topic 1]]+Dataset[[#This Row],[2027/28 From - Spending review Topic 2]]+Dataset[[#This Row],[2027/28 From - Spending review Topic 3]]+Dataset[[#This Row],[2027/28 From - Spending review Topic 4]]+Dataset[[#This Row],[2027/28 From - Other reallocations]] -> 0 | CD62: =Dataset[[#This Row],[2028/29 From - Spending review Topic 1]]+Dataset[[#This Row],[2028/29 From - Spending review Topic 2]]+Dataset[[#This Row],[2028/29 From - Spending review Topic 3]]+Dataset[[#This Row],[2028/29 From - Spending review Topic 4]]+Dataset[[#This Row],[2028/29 From - Other reallocations]] -> 0 | CE62: =Dataset[[#This Row],[2026/27 To - Spending review Topic 1]]+Dataset[[#This Row],[2026/27 To - Spending review Topic 2]]+Dataset[[#This Row],[2026/27 To - Spending review Topic 3]]+Dataset[[#This Row],[2026/27 To - Spending review Topic 4]]+Dataset[[#This Row],[2026/27 To - Other reallocations]] -> 0 | CF62: =Dataset[[#This Row],[2027/28 To - Spending review Topic 1]]+Dataset[[#This Row],[2027/28 To - Spending review Topic 2]]+Dataset[[#This Row],[2027/28 To - Spending review Topic 3]]+Dataset[[#This Row],[2027/28 To - Spending review Topic 4]]+Dataset[[#This Row],[2027/28 To - Other reallocations]] -> 0 | CG62: =Dataset[[#This Row],[2028/29 To - Spending review Topic 1]]+Dataset[[#This Row],[2028/29 To - Spending review Topic 2]]+Dataset[[#This Row],[2028/29 To - Spending review Topic 3]]+Dataset[[#This Row],[2028/29 To - Spending review Topic 4]]+Dataset[[#This Row],[2028/29 To - Other reallocations]] -> 0 | CH62: =Dataset[[#This Row],[2026/27 Targeted savings]]+Dataset[[#This Row],[2026/27 From - Total]] -> 0 | CI62: =Dataset[[#This Row],[2027/28 Targeted savings]]+Dataset[[#This Row],[2027/28 From - Total]] -> 0 | CJ62: =Dataset[[#This Row],[2028/29 Targeted savings]]+Dataset[[#This Row],[2028/29 From - Total]] -> 0 | CK62: =Dataset[[#This Row],[2025/26 Targeted savings]] -> 0 | CL62: =SUM(Dataset[[#This Row],[2026/27 Targeted savings]],Dataset[[#This Row],[2026/27 From - Total]],Dataset[[#This Row],[2026/27 To - Total]]) -> 0 | CM62: =SUM(Dataset[[#This Row],[2027/28 Targeted savings]],Dataset[[#This Row],[2027/28 From - Total]],Dataset[[#This Row],[2027/28 To - Total]]) -> 0 | CN62: =SUM(Dataset[[#This Row],[2028/29 Targeted savings]],Dataset[[#This Row],[2028/29 From - Total]],Dataset[[#This Row],[2028/29 To - Total]]) -> 0 | CO62: =Dataset[[#This Row],[2025/26 Baseline]]+Dataset[[#This Row],[2025/26 Total change]] -> 0 | CP62: =Dataset[[#This Row],[2026/27 Baseline]]+Dataset[[#This Row],[2026/27 Total change]] -> 0 | CQ62: =Dataset[[#This Row],[2027/28 Baseline]]+Dataset[[#This Row],[2027/28 Total change]] -> 0 | CR62: =Dataset[[#This Row],[2028/29 Baseline]]+Dataset[[#This Row],[2028/29 Total change]] -> 0
A63: NAT|Non-transfer item | B63: 37|Transport equipment | C63: 2026_27 | D63: MTEC2026 | E63: 37 | F63: 1 | G63: 1 | H63: 44944 | I63: 45 | J63: 37 | K63: 01 | L63: 01 | M63: 044944 | N63: 000045 | O63: 37|01|01|000045 | P63: 02 | Q63: 03 | R63: 12 | S63: 56 | T63: 60 | U63: 02|03|12|56|60 | V63: National | W63: Sport, Arts and Culture | X63: Administration | Y63: Ministry | Z63: Non-transfer item | AA63: Capital | AB63: Payments for capital assets | AC63: Machinery and equipment | AD63: Transport equipment | AE63: Transport equipment | AF63: Learning and culture | AG63: Arts, culture, sport and recreation | AH63: NAT | AI63: 0 | AJ63: 0 | AK63: 0 | AL63: 0 | AM63: 0 | AN63: 0 | AO63: 0 | AP63: 0 | AQ63: 0 | AR63: 0 | AS63: 0 | CB63: =Dataset[[#This Row],[2026/27 From - Spending review Topic 1]]+Dataset[[#This Row],[2026/27 From - Spending review Topic 2]]+Dataset[[#This Row],[2026/27 From - Spending review Topic 3]]+Dataset[[#This Row],[2026/27 From - Spending review Topic 4]]+Dataset[[#This Row],[2026/27 From - Other reallocations]] -> 0 | CC63: =Dataset[[#This Row],[2027/28 From - Spending review Topic 1]]+Dataset[[#This Row],[2027/28 From - Spending review Topic 2]]+Dataset[[#This Row],[2027/28 From - Spending review Topic 3]]+Dataset[[#This Row],[2027/28 From - Spending review Topic 4]]+Dataset[[#This Row],[2027/28 From - Other reallocations]] -> 0 | CD63: =Dataset[[#This Row],[2028/29 From - Spending review Topic 1]]+Dataset[[#This Row],[2028/29 From - Spending review Topic 2]]+Dataset[[#This Row],[2028/29 From - Spending review Topic 3]]+Dataset[[#This Row],[2028/29 From - Spending review Topic 4]]+Dataset[[#This Row],[2028/29 From - Other reallocations]] -> 0 | CE63: =Dataset[[#This Row],[2026/27 To - Spending review Topic 1]]+Dataset[[#This Row],[2026/27 To - Spending review Topic 2]]+Dataset[[#This Row],[2026/27 To - Spending review Topic 3]]+Dataset[[#This Row],[2026/27 To - Spending review Topic 4]]+Dataset[[#This Row],[2026/27 To - Other reallocations]] -> 0 | CF63: =Dataset[[#This Row],[2027/28 To - Spending review Topic 1]]+Dataset[[#This Row],[2027/28 To - Spending review Topic 2]]+Dataset[[#This Row],[2027/28 To - Spending review Topic 3]]+Dataset[[#This Row],[2027/28 To - Spending review Topic 4]]+Dataset[[#This Row],[2027/28 To - Other reallocations]] -> 0 | CG63: =Dataset[[#This Row],[2028/29 To - Spending review Topic 1]]+Dataset[[#This Row],[2028/29 To - Spending review Topic 2]]+Dataset[[#This Row],[2028/29 To - Spending review Topic 3]]+Dataset[[#This Row],[2028/29 To - Spending review Topic 4]]+Dataset[[#This Row],[2028/29 To - Other reallocations]] -> 0 | CH63: =Dataset[[#This Row],[2026/27 Targeted savings]]+Dataset[[#This Row],[2026/27 From - Total]] -> 0 | CI63: =Dataset[[#This Row],[2027/28 Targeted savings]]+Dataset[[#This Row],[2027/28 From - Total]] -> 0 | CJ63: =Dataset[[#This Row],[2028/29 Targeted savings]]+Dataset[[#This Row],[2028/29 From - Total]] -> 0 | CK63: =Dataset[[#This Row],[2025/26 Targeted savings]] -> 0 | CL63: =SUM(Dataset[[#This Row],[2026/27 Targeted savings]],Dataset[[#This Row],[2026/27 From - Total]],Dataset[[#This Row],[2026/27 To - Total]]) -> 0 | CM63: =SUM(Dataset[[#This Row],[2027/28 Targeted savings]],Dataset[[#This Row],[2027/28 From - Total]],Dataset[[#This Row],[2027/28 To - Total]]) -> 0 | CN63: =SUM(Dataset[[#This Row],[2028/29 Targeted savings]],Dataset[[#This Row],[2028/29 From - Total]],Dataset[[#This Row],[2028/29 To - Total]]) -> 0 | CO63: =Dataset[[#This Row],[2025/26 Baseline]]+Dataset[[#This Row],[2025/26 Total change]] -> 0 | CP63: =Dataset[[#This Row],[2026/27 Baseline]]+Dataset[[#This Row],[2026/27 Total change]] -> 0 | CQ63: =Dataset[[#This Row],[2027/28 Baseline]]+Dataset[[#This Row],[2027/28 Total change]] -> 0 | CR63: =Dataset[[#This Row],[2028/29 Baseline]]+Dataset[[#This Row],[2028/29 Total change]] -> 0
A64: NAT|Non-transfer item | B64: 37|Other machinery and equipment | C64: 2026_27 | D64: MTEC2026 | E64: 37 | F64: 1 | G64: 1 | H64: 44945 | I64: 46 | J64: 37 | K64: 01 | L64: 01 | M64: 044945 | N64: 000046 | O64: 37|01|01|000046 | P64: 02 | Q64: 03 | R64: 12 | S64: 57 | T64: 61 | U64: 02|03|12|57|61 | V64: National | W64: Sport, Arts and Culture | X64: Administration | Y64: Ministry | Z64: Non-transfer item | AA64: Capital | AB64: Payments for capital assets | AC64: Machinery and equipment | AD64: Other machinery and equipment | AE64: Other machinery and equipment | AF64: Learning and culture | AG64: Arts, culture, sport and recreation | AH64: NAT | AI64: 0 | AJ64: 0 | AK64: 0 | AL64: 0 | AM64: 0 | AN64: 0 | AO64: 0 | AP64: 0 | AQ64: 0 | AR64: 0 | AS64: 0 | CB64: =Dataset[[#This Row],[2026/27 From - Spending review Topic 1]]+Dataset[[#This Row],[2026/27 From - Spending review Topic 2]]+Dataset[[#This Row],[2026/27 From - Spending review Topic 3]]+Dataset[[#This Row],[2026/27 From - Spending review Topic 4]]+Dataset[[#This Row],[2026/27 From - Other reallocations]] -> 0 | CC64: =Dataset[[#This Row],[2027/28 From - Spending review Topic 1]]+Dataset[[#This Row],[2027/28 From - Spending review Topic 2]]+Dataset[[#This Row],[2027/28 From - Spending review Topic 3]]+Dataset[[#This Row],[2027/28 From - Spending review Topic 4]]+Dataset[[#This Row],[2027/28 From - Other reallocations]] -> 0 | CD64: =Dataset[[#This Row],[2028/29 From - Spending review Topic 1]]+Dataset[[#This Row],[2028/29 From - Spending review Topic 2]]+Dataset[[#This Row],[2028/29 From - Spending review Topic 3]]+Dataset[[#This Row],[2028/29 From - Spending review Topic 4]]+Dataset[[#This Row],[2028/29 From - Other reallocations]] -> 0 | CE64: =Dataset[[#This Row],[2026/27 To - Spending review Topic 1]]+Dataset[[#This Row],[2026/27 To - Spending review Topic 2]]+Dataset[[#This Row],[2026/27 To - Spending review Topic 3]]+Dataset[[#This Row],[2026/27 To - Spending review Topic 4]]+Dataset[[#This Row],[2026/27 To - Other reallocations]] -> 0 | CF64: =Dataset[[#This Row],[2027/28 To - Spending review Topic 1]]+Dataset[[#This Row],[2027/28 To - Spending review Topic 2]]+Dataset[[#This Row],[2027/28 To - Spending review Topic 3]]+Dataset[[#This Row],[2027/28 To - Spending review Topic 4]]+Dataset[[#This Row],[2027/28 To - Other reallocations]] -> 0 | CG64: =Dataset[[#This Row],[2028/29 To - Spending review Topic 1]]+Dataset[[#This Row],[2028/29 To - Spending review Topic 2]]+Dataset[[#This Row],[2028/29 To - Spending review Topic 3]]+Dataset[[#This Row],[2028/29 To - Spending review Topic 4]]+Dataset[[#This Row],[2028/29 To - Other reallocations]] -> 0 | CH64: =Dataset[[#This Row],[2026/27 Targeted savings]]+Dataset[[#This Row],[2026/27 From - Total]] -> 0 | CI64: =Dataset[[#This Row],[2027/28 Targeted savings]]+Dataset[[#This Row],[2027/28 From - Total]] -> 0 | CJ64: =Dataset[[#This Row],[2028/29 Targeted savings]]+Dataset[[#This Row],[2028/29 From - Total]] -> 0 | CK64: =Dataset[[#This Row],[2025/26 Targeted savings]] -> 0 | CL64: =SUM(Dataset[[#This Row],[2026/27 Targeted savings]],Dataset[[#This Row],[2026/27 From - Total]],Dataset[[#This Row],[2026/27 To - Total]]) -> 0 | CM64: =SUM(Dataset[[#This Row],[2027/28 Targeted savings]],Dataset[[#This Row],[2027/28 From - Total]],Dataset[[#This Row],[2027/28 To - Total]]) -> 0 | CN64: =SUM(Dataset[[#This Row],[2028/29 Targeted savings]],Dataset[[#This Row],[2028/29 From - Total]],Dataset[[#This Row],[2028/29 To - Total]]) -> 0 | CO64: =Dataset[[#This Row],[2025/26 Baseline]]+Dataset[[#This Row],[2025/26 Total change]] -> 0 | CP64: =Dataset[[#This Row],[2026/27 Baseline]]+Dataset[[#This Row],[2026/27 Total change]] -> 0 | CQ64: =Dataset[[#This Row],[2027/28 Baseline]]+Dataset[[#This Row],[2027/28 Total change]] -> 0 | CR64: =Dataset[[#This Row],[2028/29 Baseline]]+Dataset[[#This Row],[2028/29 Total change]] -> 0
A65: NAT|Non-transfer item | B65: 37|Heritage assets | C65: 2026_27 | D65: MTEC2026 | E65: 37 | F65: 1 | G65: 1 | H65: 44946 | I65: 47 | J65: 37 | K65: 01 | L65: 01 | M65: 044946 | N65: 000047 | O65: 37|01|01|000047 | P65: 02 | Q65: 03 | R65: 13 | S65: 58 | T65: 62 | U65: 02|03|13|58|62 | V65: National | W65: Sport, Arts and Culture | X65: Administration | Y65: Ministry | Z65: Non-transfer item | AA65: Capital | AB65: Payments for capital assets | AC65: Heritage assets | AD65: Heritage assets | AE65: Heritage assets | AF65: Learning and culture | AG65: Arts, culture, sport and recreation | AH65: NAT | AI65: 0 | AJ65: 0 | AK65: 0 | AL65: 0 | AM65: 0 | AN65: 0 | AO65: 0 | AP65: 0 | AQ65: 0 | AR65: 0 | AS65: 0 | CB65: =Dataset[[#This Row],[2026/27 From - Spending review Topic 1]]+Dataset[[#This Row],[2026/27 From - Spending review Topic 2]]+Dataset[[#This Row],[2026/27 From - Spending review Topic 3]]+Dataset[[#This Row],[2026/27 From - Spending review Topic 4]]+Dataset[[#This Row],[2026/27 From - Other reallocations]] -> 0 | CC65: =Dataset[[#This Row],[2027/28 From - Spending review Topic 1]]+Dataset[[#This Row],[2027/28 From - Spending review Topic 2]]+Dataset[[#This Row],[2027/28 From - Spending review Topic 3]]+Dataset[[#This Row],[2027/28 From - Spending review Topic 4]]+Dataset[[#This Row],[2027/28 From - Other reallocations]] -> 0 | CD65: =Dataset[[#This Row],[2028/29 From - Spending review Topic 1]]+Dataset[[#This Row],[2028/29 From - Spending review Topic 2]]+Dataset[[#This Row],[2028/29 From - Spending review Topic 3]]+Dataset[[#This Row],[2028/29 From - Spending review Topic 4]]+Dataset[[#This Row],[2028/29 From - Other reallocations]] -> 0 | CE65: =Dataset[[#This Row],[2026/27 To - Spending review Topic 1]]+Dataset[[#This Row],[2026/27 To - Spending review Topic 2]]+Dataset[[#This Row],[2026/27 To - Spending review Topic 3]]+Dataset[[#This Row],[2026/27 To - Spending review Topic 4]]+Dataset[[#This Row],[2026/27 To - Other reallocations]] -> 0 | CF65: =Dataset[[#This Row],[2027/28 To - Spending review Topic 1]]+Dataset[[#This Row],[2027/28 To - Spending review Topic 2]]+Dataset[[#This Row],[2027/28 To - Spending review Topic 3]]+Dataset[[#This Row],[2027/28 To - Spending review Topic 4]]+Dataset[[#This Row],[2027/28 To - Other reallocations]] -> 0 | CG65: =Dataset[[#This Row],[2028/29 To - Spending review Topic 1]]+Dataset[[#This Row],[2028/29 To - Spending review Topic 2]]+Dataset[[#This Row],[2028/29 To - Spending review Topic 3]]+Dataset[[#This Row],[2028/29 To - Spending review Topic 4]]+Dataset[[#This Row],[2028/29 To - Other reallocations]] -> 0 | CH65: =Dataset[[#This Row],[2026/27 Targeted savings]]+Dataset[[#This Row],[2026/27 From - Total]] -> 0 | CI65: =Dataset[[#This Row],[2027/28 Targeted savings]]+Dataset[[#This Row],[2027/28 From - Total]] -> 0 | CJ65: =Dataset[[#This Row],[2028/29 Targeted savings]]+Dataset[[#This Row],[2028/29 From - Total]] -> 0 | CK65: =Dataset[[#This Row],[2025/26 Targeted savings]] -> 0 | CL65: =SUM(Dataset[[#This Row],[2026/27 Targeted savings]],Dataset[[#This Row],[2026/27 From - Total]],Dataset[[#This Row],[2026/27 To - Total]]) -> 0 | CM65: =SUM(Dataset[[#This Row],[2027/28 Targeted savings]],Dataset[[#This Row],[2027/28 From - Total]],Dataset[[#This Row],[2027/28 To - Total]]) -> 0 | CN65: =SUM(Dataset[[#This Row],[2028/29 Targeted savings]],Dataset[[#This Row],[2028/29 From - Total]],Dataset[[#This Row],[2028/29 To - Total]]) -> 0 | CO65: =Dataset[[#This Row],[2025/26 Baseline]]+Dataset[[#This Row],[2025/26 Total change]] -> 0 | CP65: =Dataset[[#This Row],[2026/27 Baseline]]+Dataset[[#This Row],[2026/27 Total change]] -> 0 | CQ65: =Dataset[[#This Row],[2027/28 Baseline]]+Dataset[[#This Row],[2027/28 Total change]] -> 0 | CR65: =Dataset[[#This Row],[2028/29 Baseline]]+Dataset[[#This Row],[2028/29 Total change]] -> 0
A66: NAT|Non-transfer item | B66: 37|Specialised military assets | C66: 2026_27 | D66: MTEC2026 | E66: 37 | F66: 1 | G66: 1 | H66: 44947 | I66: 48 | J66: 37 | K66: 01 | L66: 01 | M66: 044947 | N66: 000048 | O66: 37|01|01|000048 | P66: 02 | Q66: 03 | R66: 14 | S66: 59 | T66: 63 | U66: 02|03|14|59|63 | V66: National | W66: Sport, Arts and Culture | X66: Administration | Y66: Ministry | Z66: Non-transfer item | AA66: Capital | AB66: Payments for capital assets | AC66: Specialised military assets | AD66: Specialised military assets | AE66: Specialised military assets | AF66: Learning and culture | AG66: Arts, culture, sport and recreation | AH66: NAT | AI66: 0 | AJ66: 0 | AK66: 0 | AL66: 0 | AM66: 0 | AN66: 0 | AO66: 0 | AP66: 0 | AQ66: 0 | AR66: 0 | AS66: 0 | CB66: =Dataset[[#This Row],[2026/27 From - Spending review Topic 1]]+Dataset[[#This Row],[2026/27 From - Spending review Topic 2]]+Dataset[[#This Row],[2026/27 From - Spending review Topic 3]]+Dataset[[#This Row],[2026/27 From - Spending review Topic 4]]+Dataset[[#This Row],[2026/27 From - Other reallocations]] -> 0 | CC66: =Dataset[[#This Row],[2027/28 From - Spending review Topic 1]]+Dataset[[#This Row],[2027/28 From - Spending review Topic 2]]+Dataset[[#This Row],[2027/28 From - Spending review Topic 3]]+Dataset[[#This Row],[2027/28 From - Spending review Topic 4]]+Dataset[[#This Row],[2027/28 From - Other reallocations]] -> 0 | CD66: =Dataset[[#This Row],[2028/29 From - Spending review Topic 1]]+Dataset[[#This Row],[2028/29 From - Spending review Topic 2]]+Dataset[[#This Row],[2028/29 From - Spending review Topic 3]]+Dataset[[#This Row],[2028/29 From - Spending review Topic 4]]+Dataset[[#This Row],[2028/29 From - Other reallocations]] -> 0 | CE66: =Dataset[[#This Row],[2026/27 To - Spending review Topic 1]]+Dataset[[#This Row],[2026/27 To - Spending review Topic 2]]+Dataset[[#This Row],[2026/27 To - Spending review Topic 3]]+Dataset[[#This Row],[2026/27 To - Spending review Topic 4]]+Dataset[[#This Row],[2026/27 To - Other reallocations]] -> 0 | CF66: =Dataset[[#This Row],[2027/28 To - Spending review Topic 1]]+Dataset[[#This Row],[2027/28 To - Spending review Topic 2]]+Dataset[[#This Row],[2027/28 To - Spending review Topic 3]]+Dataset[[#This Row],[2027/28 To - Spending review Topic 4]]+Dataset[[#This Row],[2027/28 To - Other reallocations]] -> 0 | CG66: =Dataset[[#This Row],[2028/29 To - Spending review Topic 1]]+Dataset[[#This Row],[2028/29 To - Spending review Topic 2]]+Dataset[[#This Row],[2028/29 To - Spending review Topic 3]]+Dataset[[#This Row],[2028/29 To - Spending review Topic 4]]+Dataset[[#This Row],[2028/29 To - Other reallocations]] -> 0 | CH66: =Dataset[[#This Row],[2026/27 Targeted savings]]+Dataset[[#This Row],[2026/27 From - Total]] -> 0 | CI66: =Dataset[[#This Row],[2027/28 Targeted savings]]+Dataset[[#This Row],[2027/28 From - Total]] -> 0 | CJ66: =Dataset[[#This Row],[2028/29 Targeted savings]]+Dataset[[#This Row],[2028/29 From - Total]] -> 0 | CK66: =Dataset[[#This Row],[2025/26 Targeted savings]] -> 0 | CL66: =SUM(Dataset[[#This Row],[2026/27 Targeted savings]],Dataset[[#This Row],[2026/27 From - Total]],Dataset[[#This Row],[2026/27 To - Total]]) -> 0 | CM66: =SUM(Dataset[[#This Row],[2027/28 Targeted savings]],Dataset[[#This Row],[2027/28 From - Total]],Dataset[[#This Row],[2027/28 To - Total]]) -> 0 | CN66: =SUM(Dataset[[#This Row],[2028/29 Targeted savings]],Dataset[[#This Row],[2028/29 From - Total]],Dataset[[#This Row],[2028/29 To - Total]]) -> 0 | CO66: =Dataset[[#This Row],[2025/26 Baseline]]+Dataset[[#This Row],[2025/26 Total change]] -> 0 | CP66: =Dataset[[#This Row],[2026/27 Baseline]]+Dataset[[#This Row],[2026/27 Total change]] -> 0 | CQ66: =Dataset[[#This Row],[2027/28 Baseline]]+Dataset[[#This Row],[2027/28 Total change]] -> 0 | CR66: =Dataset[[#This Row],[2028/29 Baseline]]+Dataset[[#This Row],[2028/29 Total change]] -> 0
A67: NAT|Non-transfer item | B67: 37|Biological assets | C67: 2026_27 | D67: MTEC2026 | E67: 37 | F67: 1 | G67: 1 | H67: 44948 | I67: 49 | J67: 37 | K67: 01 | L67: 01 | M67: 044948 | N67: 000049 | O67: 37|01|01|000049 | P67: 02 | Q67: 03 | R67: 15 | S67: 60 | T67: 64 | U67: 02|03|15|60|64 | V67: National | W67: Sport, Arts and Culture | X67: Administration | Y67: Ministry | Z67: Non-transfer item | AA67: Capital | AB67: Payments for capital assets | AC67: Biological assets | AD67: Biological assets | AE67: Biological assets | AF67: Learning and culture | AG67: Arts, culture, sport and recreation | AH67: NAT | AI67: 0 | AJ67: 0 | AK67: 0 | AL67: 0 | AM67: 0 | AN67: 0 | AO67: 0 | AP67: 0 | AQ67: 0 | AR67: 0 | AS67: 0 | CB67: =Dataset[[#This Row],[2026/27 From - Spending review Topic 1]]+Dataset[[#This Row],[2026/27 From - Spending review Topic 2]]+Dataset[[#This Row],[2026/27 From - Spending review Topic 3]]+Dataset[[#This Row],[2026/27 From - Spending review Topic 4]]+Dataset[[#This Row],[2026/27 From - Other reallocations]] -> 0 | CC67: =Dataset[[#This Row],[2027/28 From - Spending review Topic 1]]+Dataset[[#This Row],[2027/28 From - Spending review Topic 2]]+Dataset[[#This Row],[2027/28 From - Spending review Topic 3]]+Dataset[[#This Row],[2027/28 From - Spending review Topic 4]]+Dataset[[#This Row],[2027/28 From - Other reallocations]] -> 0 | CD67: =Dataset[[#This Row],[2028/29 From - Spending review Topic 1]]+Dataset[[#This Row],[2028/29 From - Spending review Topic 2]]+Dataset[[#This Row],[2028/29 From - Spending review Topic 3]]+Dataset[[#This Row],[2028/29 From - Spending review Topic 4]]+Dataset[[#This Row],[2028/29 From - Other reallocations]] -> 0 | CE67: =Dataset[[#This Row],[2026/27 To - Spending review Topic 1]]+Dataset[[#This Row],[2026/27 To - Spending review Topic 2]]+Dataset[[#This Row],[2026/27 To - Spending review Topic 3]]+Dataset[[#This Row],[2026/27 To - Spending review Topic 4]]+Dataset[[#This Row],[2026/27 To - Other reallocations]] -> 0 | CF67: =Dataset[[#This Row],[2027/28 To - Spending review Topic 1]]+Dataset[[#This Row],[2027/28 To - Spending review Topic 2]]+Dataset[[#This Row],[2027/28 To - Spending review Topic 3]]+Dataset[[#This Row],[2027/28 To - Spending review Topic 4]]+Dataset[[#This Row],[2027/28 To - Other reallocations]] -> 0 | CG67: =Dataset[[#This Row],[2028/29 To - Spending review Topic 1]]+Dataset[[#This Row],[2028/29 To - Spending review Topic 2]]+Dataset[[#This Row],[2028/29 To - Spending review Topic 3]]+Dataset[[#This Row],[2028/29 To - Spending review Topic 4]]+Dataset[[#This Row],[2028/29 To - Other reallocations]] -> 0 | CH67: =Dataset[[#This Row],[2026/27 Targeted savings]]+Dataset[[#This Row],[2026/27 From - Total]] -> 0 | CI67: =Dataset[[#This Row],[2027/28 Targeted savings]]+Dataset[[#This Row],[2027/28 From - Total]] -> 0 | CJ67: =Dataset[[#This Row],[2028/29 Targeted savings]]+Dataset[[#This Row],[2028/29 From - Total]] -> 0 | CK67: =Dataset[[#This Row],[2025/26 Targeted savings]] -> 0 | CL67: =SUM(Dataset[[#This Row],[2026/27 Targeted savings]],Dataset[[#This Row],[2026/27 From - Total]],Dataset[[#This Row],[2026/27 To - Total]]) -> 0 | CM67: =SUM(Dataset[[#This Row],[2027/28 Targeted savings]],Dataset[[#This Row],[2027/28 From - Total]],Dataset[[#This Row],[2027/28 To - Total]]) -> 0 | CN67: =SUM(Dataset[[#This Row],[2028/29 Targeted savings]],Dataset[[#This Row],[2028/29 From - Total]],Dataset[[#This Row],[2028/29 To - Total]]) -> 0 | CO67: =Dataset[[#This Row],[2025/26 Baseline]]+Dataset[[#This Row],[2025/26 Total change]] -> 0 | CP67: =Dataset[[#This Row],[2026/27 Baseline]]+Dataset[[#This Row],[2026/27 Total change]] -> 0 | CQ67: =Dataset[[#This Row],[2027/28 Baseline]]+Dataset[[#This Row],[2027/28 Total change]] -> 0 | CR67: =Dataset[[#This Row],[2028/29 Baseline]]+Dataset[[#This Row],[2028/29 Total change]] -> 0
A68: NAT|Non-transfer item | B68: 37|Land and sub-soil assets | C68: 2026_27 | D68: MTEC2026 | E68: 37 | F68: 1 | G68: 1 | H68: 44949 | I68: 50 | J68: 37 | K68: 01 | L68: 01 | M68: 044949 | N68: 000050 | O68: 37|01|01|000050 | P68: 02 | Q68: 03 | R68: 16 | S68: 61 | T68: 65 | U68: 02|03|16|61|65 | V68: National | W68: Sport, Arts and Culture | X68: Administration | Y68: Ministry | Z68: Non-transfer item | AA68: Capital | AB68: Payments for capital assets | AC68: Land and sub-soil assets | AD68: Land and sub-soil assets | AE68: Land and sub-soil assets | AF68: Learning and culture | AG68: Arts, culture, sport and recreation | AH68: NAT | AI68: 0 | AJ68: 0 | AK68: 0 | AL68: 0 | AM68: 0 | AN68: 0 | AO68: 0 | AP68: 0 | AQ68: 0 | AR68: 0 | AS68: 0 | CB68: =Dataset[[#This Row],[2026/27 From - Spending review Topic 1]]+Dataset[[#This Row],[2026/27 From - Spending review Topic 2]]+Dataset[[#This Row],[2026/27 From - Spending review Topic 3]]+Dataset[[#This Row],[2026/27 From - Spending review Topic 4]]+Dataset[[#This Row],[2026/27 From - Other reallocations]] -> 0 | CC68: =Dataset[[#This Row],[2027/28 From - Spending review Topic 1]]+Dataset[[#This Row],[2027/28 From - Spending review Topic 2]]+Dataset[[#This Row],[2027/28 From - Spending review Topic 3]]+Dataset[[#This Row],[2027/28 From - Spending review Topic 4]]+Dataset[[#This Row],[2027/28 From - Other reallocations]] -> 0 | CD68: =Dataset[[#This Row],[2028/29 From - Spending review Topic 1]]+Dataset[[#This Row],[2028/29 From - Spending review Topic 2]]+Dataset[[#This Row],[2028/29 From - Spending review Topic 3]]+Dataset[[#This Row],[2028/29 From - Spending review Topic 4]]+Dataset[[#This Row],[2028/29 From - Other reallocations]] -> 0 | CE68: =Dataset[[#This Row],[2026/27 To - Spending review Topic 1]]+Dataset[[#This Row],[2026/27 To - Spending review Topic 2]]+Dataset[[#This Row],[2026/27 To - Spending review Topic 3]]+Dataset[[#This Row],[2026/27 To - Spending review Topic 4]]+Dataset[[#This Row],[2026/27 To - Other reallocations]] -> 0 | CF68: =Dataset[[#This Row],[2027/28 To - Spending review Topic 1]]+Dataset[[#This Row],[2027/28 To - Spending review Topic 2]]+Dataset[[#This Row],[2027/28 To - Spending review Topic 3]]+Dataset[[#This Row],[2027/28 To - Spending review Topic 4]]+Dataset[[#This Row],[2027/28 To - Other reallocations]] -> 0 | CG68: =Dataset[[#This Row],[2028/29 To - Spending review Topic 1]]+Dataset[[#This Row],[2028/29 To - Spending review Topic 2]]+Dataset[[#This Row],[2028/29 To - Spending review Topic 3]]+Dataset[[#This Row],[2028/29 To - Spending review Topic 4]]+Dataset[[#This Row],[2028/29 To - Other reallocations]] -> 0 | CH68: =Dataset[[#This Row],[2026/27 Targeted savings]]+Dataset[[#This Row],[2026/27 From - Total]] -> 0 | CI68: =Dataset[[#This Row],[2027/28 Targeted savings]]+Dataset[[#This Row],[2027/28 From - Total]] -> 0 | CJ68: =Dataset[[#This Row],[2028/29 Targeted savings]]+Dataset[[#This Row],[2028/29 From - Total]] -> 0 | CK68: =Dataset[[#This Row],[2025/26 Targeted savings]] -> 0 | CL68: =SUM(Dataset[[#This Row],[2026/27 Targeted savings]],Dataset[[#This Row],[2026/27 From - Total]],Dataset[[#This Row],[2026/27 To - Total]]) -> 0 | CM68: =SUM(Dataset[[#This Row],[2027/28 Targeted savings]],Dataset[[#This Row],[2027/28 From - Total]],Dataset[[#This Row],[2027/28 To - Total]]) -> 0 | CN68: =SUM(Dataset[[#This Row],[2028/29 Targeted savings]],Dataset[[#This Row],[2028/29 From - Total]],Dataset[[#This Row],[2028/29 To - Total]]) -> 0 | CO68: =Dataset[[#This Row],[2025/26 Baseline]]+Dataset[[#This Row],[2025/26 Total change]] -> 0 | CP68: =Dataset[[#This Row],[2026/27 Baseline]]+Dataset[[#This Row],[2026/27 Total change]] -> 0 | CQ68: =Dataset[[#This Row],[2027/28 Baseline]]+Dataset[[#This Row],[2027/28 Total change]] -> 0 | CR68: =Dataset[[#This Row],[2028/29 Baseline]]+Dataset[[#This Row],[2028/29 Total change]] -> 0
A69: NAT|Non-transfer item | B69: 37|Software and other intangible assets | C69: 2026_27 | D69: MTEC2026 | E69: 37 | F69: 1 | G69: 1 | H69: 44950 | I69: 51 | J69: 37 | K69: 01 | L69: 01 | M69: 044950 | N69: 000051 | O69: 37|01|01|000051 | P69: 02 | Q69: 03 | R69: 17 | S69: 62 | T69: 66 | U69: 02|03|17|62|66 | V69: National | W69: Sport, Arts and Culture | X69: Administration | Y69: Ministry | Z69: Non-transfer item | AA69: Capital | AB69: Payments for capital assets | AC69: Software and other intangible assets | AD69: Software and other intangible assets | AE69: Software and other intangible assets | AF69: Learning and culture | AG69: Arts, culture, sport and recreation | AH69: NAT | AI69: 0 | AJ69: 0 | AK69: 0 | AL69: 0 | AM69: 0 | AN69: 0 | AO69: 0 | AP69: 0 | AQ69: 0 | AR69: 0 | AS69: 0 | CB69: =Dataset[[#This Row],[2026/27 From - Spending review Topic 1]]+Dataset[[#This Row],[2026/27 From - Spending review Topic 2]]+Dataset[[#This Row],[2026/27 From - Spending review Topic 3]]+Dataset[[#This Row],[2026/27 From - Spending review Topic 4]]+Dataset[[#This Row],[2026/27 From - Other reallocations]] -> 0 | CC69: =Dataset[[#This Row],[2027/28 From - Spending review Topic 1]]+Dataset[[#This Row],[2027/28 From - Spending review Topic 2]]+Dataset[[#This Row],[2027/28 From - Spending review Topic 3]]+Dataset[[#This Row],[2027/28 From - Spending review Topic 4]]+Dataset[[#This Row],[2027/28 From - Other reallocations]] -> 0 | CD69: =Dataset[[#This Row],[2028/29 From - Spending review Topic 1]]+Dataset[[#This Row],[2028/29 From - Spending review Topic 2]]+Dataset[[#This Row],[2028/29 From - Spending review Topic 3]]+Dataset[[#This Row],[2028/29 From - Spending review Topic 4]]+Dataset[[#This Row],[2028/29 From - Other reallocations]] -> 0 | CE69: =Dataset[[#This Row],[2026/27 To - Spending review Topic 1]]+Dataset[[#This Row],[2026/27 To - Spending review Topic 2]]+Dataset[[#This Row],[2026/27 To - Spending review Topic 3]]+Dataset[[#This Row],[2026/27 To - Spending review Topic 4]]+Dataset[[#This Row],[2026/27 To - Other reallocations]] -> 0 | CF69: =Dataset[[#This Row],[2027/28 To - Spending review Topic 1]]+Dataset[[#This Row],[2027/28 To - Spending review Topic 2]]+Dataset[[#This Row],[2027/28 To - Spending review Topic 3]]+Dataset[[#This Row],[2027/28 To - Spending review Topic 4]]+Dataset[[#This Row],[2027/28 To - Other reallocations]] -> 0 | CG69: =Dataset[[#This Row],[2028/29 To - Spending review Topic 1]]+Dataset[[#This Row],[2028/29 To - Spending review Topic 2]]+Dataset[[#This Row],[2028/29 To - Spending review Topic 3]]+Dataset[[#This Row],[2028/29 To - Spending review Topic 4]]+Dataset[[#This Row],[2028/29 To - Other reallocations]] -> 0 | CH69: =Dataset[[#This Row],[2026/27 Targeted savings]]+Dataset[[#This Row],[2026/27 From - Total]] -> 0 | CI69: =Dataset[[#This Row],[2027/28 Targeted savings]]+Dataset[[#This Row],[2027/28 From - Total]] -> 0 | CJ69: =Dataset[[#This Row],[2028/29 Targeted savings]]+Dataset[[#This Row],[2028/29 From - Total]] -> 0 | CK69: =Dataset[[#This Row],[2025/26 Targeted savings]] -> 0 | CL69: =SUM(Dataset[[#This Row],[2026/27 Targeted savings]],Dataset[[#This Row],[2026/27 From - Total]],Dataset[[#This Row],[2026/27 To - Total]]) -> 0 | CM69: =SUM(Dataset[[#This Row],[2027/28 Targeted savings]],Dataset[[#This Row],[2027/28 From - Total]],Dataset[[#This Row],[2027/28 To - Total]]) -> 0 | CN69: =SUM(Dataset[[#This Row],[2028/29 Targeted savings]],Dataset[[#This Row],[2028/29 From - Total]],Dataset[[#This Row],[2028/29 To - Total]]) -> 0 | CO69: =Dataset[[#This Row],[2025/26 Baseline]]+Dataset[[#This Row],[2025/26 Total change]] -> 0 | CP69: =Dataset[[#This Row],[2026/27 Baseline]]+Dataset[[#This Row],[2026/27 Total change]] -> 0 | CQ69: =Dataset[[#This Row],[2027/28 Baseline]]+Dataset[[#This Row],[2027/28 Total change]] -> 0 | CR69: =Dataset[[#This Row],[2028/29 Baseline]]+Dataset[[#This Row],[2028/29 Total change]] -> 0
A70: NAT|Non-transfer item | B70: 37|Salaries and wages | C70: 2026_27 | D70: MTEC2026 | E70: 37 | F70: 1 | G70: 2 | H70: 44951 | I70: 52 | J70: 37 | K70: 01 | L70: 02 | M70: 044951 | N70: 000052 | O70: 37|01|02|000052 | P70: 01 | Q70: 01 | R70: 01 | S70: 01 | T70: 01 | U70: 01|01|01|01|01 | V70: National | W70: Sport, Arts and Culture | X70: Administration | Y70: Management | Z70: Non-transfer item | AA70: Current | AB70: Current payments | AC70: Compensation of employees | AD70: Salaries and wages | AE70: Salaries and wages | AF70: Learning and culture | AG70: Arts, culture, sport and recreation | AH70: NAT | AI70: 39740 | AJ70: 39278 | AK70: 36632 | AL70: 43180 | AM70: 44948 | AN70: 44948 | AO70: 37938 | AP70: 42765 | AQ70: 43637 | AR70: 43889 | AS70: 45859 | CB70: =Dataset[[#This Row],[2026/27 From - Spending review Topic 1]]+Dataset[[#This Row],[2026/27 From - Spending review Topic 2]]+Dataset[[#This Row],[2026/27 From - Spending review Topic 3]]+Dataset[[#This Row],[2026/27 From - Spending review Topic 4]]+Dataset[[#This Row],[2026/27 From - Other reallocations]] -> 0 | CC70: =Dataset[[#This Row],[2027/28 From - Spending review Topic 1]]+Dataset[[#This Row],[2027/28 From - Spending review Topic 2]]+Dataset[[#This Row],[2027/28 From - Spending review Topic 3]]+Dataset[[#This Row],[2027/28 From - Spending review Topic 4]]+Dataset[[#This Row],[2027/28 From - Other reallocations]] -> 0 | CD70: =Dataset[[#This Row],[2028/29 From - Spending review Topic 1]]+Dataset[[#This Row],[2028/29 From - Spending review Topic 2]]+Dataset[[#This Row],[2028/29 From - Spending review Topic 3]]+Dataset[[#This Row],[2028/29 From - Spending review Topic 4]]+Dataset[[#This Row],[2028/29 From - Other reallocations]] -> 0 | CE70: =Dataset[[#This Row],[2026/27 To - Spending review Topic 1]]+Dataset[[#This Row],[2026/27 To - Spending review Topic 2]]+Dataset[[#This Row],[2026/27 To - Spending review Topic 3]]+Dataset[[#This Row],[2026/27 To - Spending review Topic 4]]+Dataset[[#This Row],[2026/27 To - Other reallocations]] -> 0 | CF70: =Dataset[[#This Row],[2027/28 To - Spending review Topic 1]]+Dataset[[#This Row],[2027/28 To - Spending review Topic 2]]+Dataset[[#This Row],[2027/28 To - Spending review Topic 3]]+Dataset[[#This Row],[2027/28 To - Spending review Topic 4]]+Dataset[[#This Row],[2027/28 To - Other reallocations]] -> 0 | CG70: =Dataset[[#This Row],[2028/29 To - Spending review Topic 1]]+Dataset[[#This Row],[2028/29 To - Spending review Topic 2]]+Dataset[[#This Row],[2028/29 To - Spending review Topic 3]]+Dataset[[#This Row],[2028/29 To - Spending review Topic 4]]+Dataset[[#This Row],[2028/29 To - Other reallocations]] -> 0 | CH70: =Dataset[[#This Row],[2026/27 Targeted savings]]+Dataset[[#This Row],[2026/27 From - Total]] -> 0 | CI70: =Dataset[[#This Row],[2027/28 Targeted savings]]+Dataset[[#This Row],[2027/28 From - Total]] -> 0 | CJ70: =Dataset[[#This Row],[2028/29 Targeted savings]]+Dataset[[#This Row],[2028/29 From - Total]] -> 0 | CK70: =Dataset[[#This Row],[2025/26 Targeted savings]] -> 0 | CL70: =SUM(Dataset[[#This Row],[2026/27 Targeted savings]],Dataset[[#This Row],[2026/27 From - Total]],Dataset[[#This Row],[2026/27 To - Total]]) -> 0 | CM70: =SUM(Dataset[[#This Row],[2027/28 Targeted savings]],Dataset[[#This Row],[2027/28 From - Total]],Dataset[[#This Row],[2027/28 To - Total]]) -> 0 | CN70: =SUM(Dataset[[#This Row],[2028/29 Targeted savings]],Dataset[[#This Row],[2028/29 From - Total]],Dataset[[#This Row],[2028/29 To - Total]]) -> 0 | CO70: =Dataset[[#This Row],[2025/26 Baseline]]+Dataset[[#This Row],[2025/26 Total change]] -> 42765 | CP70: =Dataset[[#This Row],[2026/27 Baseline]]+Dataset[[#This Row],[2026/27 Total change]] -> 43637 | CQ70: =Dataset[[#This Row],[2027/28 Baseline]]+Dataset[[#This Row],[2027/28 Total change]] -> 43889 | CR70: =Dataset[[#This Row],[2028/29 Baseline]]+Dataset[[#This Row],[2028/29 Total change]] -> 45859
A71: NAT|Non-transfer item | B71: 37|Social contributions | C71: 2026_27 | D71: MTEC2026 | E71: 37 | F71: 1 | G71: 2 | H71: 44952 | I71: 53 | J71: 37 | K71: 01 | L71: 02 | M71: 044952 | N71: 000053 | O71: 37|01|02|000053 | P71: 01 | Q71: 01 | R71: 01 | S71: 02 | T71: 02 | U71: 01|01|01|02|02 | V71: National | W71: Sport, Arts and Culture | X71: Administration | Y71: Management | Z71: Non-transfer item | AA71: Current | AB71: Current payments | AC71: Compensation of employees | AD71: Social contributions | AE71: Social contributions | AF71: Learning and culture | AG71: Arts, culture, sport and recreation | AH71: NAT | AI71: 3239 | AJ71: 3133 | AK71: 3630 | AL71: 3421 | AM71: 3573 | AN71: 3573 | AO71: 3464 | AP71: 3097 | AQ71: 3160 | AR71: 3178 | AS71: 3321 | CB71: =Dataset[[#This Row],[2026/27 From - Spending review Topic 1]]+Dataset[[#This Row],[2026/27 From - Spending review Topic 2]]+Dataset[[#This Row],[2026/27 From - Spending review Topic 3]]+Dataset[[#This Row],[2026/27 From - Spending review Topic 4]]+Dataset[[#This Row],[2026/27 From - Other reallocations]] -> 0 | CC71: =Dataset[[#This Row],[2027/28 From - Spending review Topic 1]]+Dataset[[#This Row],[2027/28 From - Spending review Topic 2]]+Dataset[[#This Row],[2027/28 From - Spending review Topic 3]]+Dataset[[#This Row],[2027/28 From - Spending review Topic 4]]+Dataset[[#This Row],[2027/28 From - Other reallocations]] -> 0 | CD71: =Dataset[[#This Row],[2028/29 From - Spending review Topic 1]]+Dataset[[#This Row],[2028/29 From - Spending review Topic 2]]+Dataset[[#This Row],[2028/29 From - Spending review Topic 3]]+Dataset[[#This Row],[2028/29 From - Spending review Topic 4]]+Dataset[[#This Row],[2028/29 From - Other reallocations]] -> 0 | CE71: =Dataset[[#This Row],[2026/27 To - Spending review Topic 1]]+Dataset[[#This Row],[2026/27 To - Spending review Topic 2]]+Dataset[[#This Row],[2026/27 To - Spending review Topic 3]]+Dataset[[#This Row],[2026/27 To - Spending review Topic 4]]+Dataset[[#This Row],[2026/27 To - Other reallocations]] -> 0 | CF71: =Dataset[[#This Row],[2027/28 To - Spending review Topic 1]]+Dataset[[#This Row],[2027/28 To - Spending review Topic 2]]+Dataset[[#This Row],[2027/28 To - Spending review Topic 3]]+Dataset[[#This Row],[2027/28 To - Spending review Topic 4]]+Dataset[[#This Row],[2027/28 To - Other reallocations]] -> 0 | CG71: =Dataset[[#This Row],[2028/29 To - Spending review Topic 1]]+Dataset[[#This Row],[2028/29 To - Spending review Topic 2]]+Dataset[[#This Row],[2028/29 To - Spending review Topic 3]]+Dataset[[#This Row],[2028/29 To - Spending review Topic 4]]+Dataset[[#This Row],[2028/29 To - Other reallocations]] -> 0 | CH71: =Dataset[[#This Row],[2026/27 Targeted savings]]+Dataset[[#This Row],[2026/27 From - Total]] -> 0 | CI71: =Dataset[[#This Row],[2027/28 Targeted savings]]+Dataset[[#This Row],[2027/28 From - Total]] -> 0 | CJ71: =Dataset[[#This Row],[2028/29 Targeted savings]]+Dataset[[#This Row],[2028/29 From - Total]] -> 0 | CK71: =Dataset[[#This Row],[2025/26 Targeted savings]] -> 0 | CL71: =SUM(Dataset[[#This Row],[2026/27 Targeted savings]],Dataset[[#This Row],[2026/27 From - Total]],Dataset[[#This Row],[2026/27 To - Total]]) -> 0 | CM71: =SUM(Dataset[[#This Row],[2027/28 Targeted savings]],Dataset[[#This Row],[2027/28 From - Total]],Dataset[[#This Row],[2027/28 To - Total]]) -> 0 | CN71: =SUM(Dataset[[#This Row],[2028/29 Targeted savings]],Dataset[[#This Row],[2028/29 From - Total]],Dataset[[#This Row],[2028/29 To - Total]]) -> 0 | CO71: =Dataset[[#This Row],[2025/26 Baseline]]+Dataset[[#This Row],[2025/26 Total change]] -> 3097 | CP71: =Dataset[[#This Row],[2026/27 Baseline]]+Dataset[[#This Row],[2026/27 Total change]] -> 3160 | CQ71: =Dataset[[#This Row],[2027/28 Baseline]]+Dataset[[#This Row],[2027/28 Total change]] -> 3178 | CR71: =Dataset[[#This Row],[2028/29 Baseline]]+Dataset[[#This Row],[2028/29 Total change]] -> 3321
A72: NAT|Non-transfer item | B72: 37|Administrative fees | C72: 2026_27 | D72: MTEC2026 | E72: 37 | F72: 1 | G72: 2 | H72: 44953 | I72: 54 | J72: 37 | K72: 01 | L72: 02 | M72: 044953 | N72: 000054 | O72: 37|01|02|000054 | P72: 01 | Q72: 01 | R72: 02 | S72: 03 | T72: 03 | U72: 01|01|02|03|03 | V72: National | W72: Sport, Arts and Culture | X72: Administration | Y72: Management | Z72: Non-transfer item | AA72: Current | AB72: Current payments | AC72: Goods and services | AD72: Administrative fees | AE72: Administrative fees | AF72: Learning and culture | AG72: Arts, culture, sport and recreation | AH72: NAT | AI72: 67 | AJ72: 101 | AK72: 243 | AL72: 552 | AM72: 552 | AN72: 552 | AO72: 109 | AP72: 577 | AQ72: 603 | AR72: 630 | AS72: 658 | CB72: =Dataset[[#This Row],[2026/27 From - Spending review Topic 1]]+Dataset[[#This Row],[2026/27 From - Spending review Topic 2]]+Dataset[[#This Row],[2026/27 From - Spending review Topic 3]]+Dataset[[#This Row],[2026/27 From - Spending review Topic 4]]+Dataset[[#This Row],[2026/27 From - Other reallocations]] -> 0 | CC72: =Dataset[[#This Row],[2027/28 From - Spending review Topic 1]]+Dataset[[#This Row],[2027/28 From - Spending review Topic 2]]+Dataset[[#This Row],[2027/28 From - Spending review Topic 3]]+Dataset[[#This Row],[2027/28 From - Spending review Topic 4]]+Dataset[[#This Row],[2027/28 From - Other reallocations]] -> 0 | CD72: =Dataset[[#This Row],[2028/29 From - Spending review Topic 1]]+Dataset[[#This Row],[2028/29 From - Spending review Topic 2]]+Dataset[[#This Row],[2028/29 From - Spending review Topic 3]]+Dataset[[#This Row],[2028/29 From - Spending review Topic 4]]+Dataset[[#This Row],[2028/29 From - Other reallocations]] -> 0 | CE72: =Dataset[[#This Row],[2026/27 To - Spending review Topic 1]]+Dataset[[#This Row],[2026/27 To - Spending review Topic 2]]+Dataset[[#This Row],[2026/27 To - Spending review Topic 3]]+Dataset[[#This Row],[2026/27 To - Spending review Topic 4]]+Dataset[[#This Row],[2026/27 To - Other reallocations]] -> 0 | CF72: =Dataset[[#This Row],[2027/28 To - Spending review Topic 1]]+Dataset[[#This Row],[2027/28 To - Spending review Topic 2]]+Dataset[[#This Row],[2027/28 To - Spending review Topic 3]]+Dataset[[#This Row],[2027/28 To - Spending review Topic 4]]+Dataset[[#This Row],[2027/28 To - Other reallocations]] -> 0 | CG72: =Dataset[[#This Row],[2028/29 To - Spending review Topic 1]]+Dataset[[#This Row],[2028/29 To - Spending review Topic 2]]+Dataset[[#This Row],[2028/29 To - Spending review Topic 3]]+Dataset[[#This Row],[2028/29 To - Spending review Topic 4]]+Dataset[[#This Row],[2028/29 To - Other reallocations]] -> 0 | CH72: =Dataset[[#This Row],[2026/27 Targeted savings]]+Dataset[[#This Row],[2026/27 From - Total]] -> 0 | CI72: =Dataset[[#This Row],[2027/28 Targeted savings]]+Dataset[[#This Row],[2027/28 From - Total]] -> 0 | CJ72: =Dataset[[#This Row],[2028/29 Targeted savings]]+Dataset[[#This Row],[2028/29 From - Total]] -> 0 | CK72: =Dataset[[#This Row],[2025/26 Targeted savings]] -> 0 | CL72: =SUM(Dataset[[#This Row],[2026/27 Targeted savings]],Dataset[[#This Row],[2026/27 From - Total]],Dataset[[#This Row],[2026/27 To - Total]]) -> 0 | CM72: =SUM(Dataset[[#This Row],[2027/28 Targeted savings]],Dataset[[#This Row],[2027/28 From - Total]],Dataset[[#This Row],[2027/28 To - Total]]) -> 0 | CN72: =SUM(Dataset[[#This Row],[2028/29 Targeted savings]],Dataset[[#This Row],[2028/29 From - Total]],Dataset[[#This Row],[2028/29 To - Total]]) -> 0 | CO72: =Dataset[[#This Row],[2025/26 Baseline]]+Dataset[[#This Row],[2025/26 Total change]] -> 577 | CP72: =Dataset[[#This Row],[2026/27 Baseline]]+Dataset[[#This Row],[2026/27 Total change]] -> 603 | CQ72: =Dataset[[#This Row],[2027/28 Baseline]]+Dataset[[#This Row],[2027/28 Total change]] -> 630 | CR72: =Dataset[[#This Row],[2028/29 Baseline]]+Dataset[[#This Row],[2028/29 Total change]] -> 658
A73: NAT|Non-transfer item | B73: 37|Advertising | C73: 2026_27 | D73: MTEC2026 | E73: 37 | F73: 1 | G73: 2 | H73: 44954 | I73: 55 | J73: 37 | K73: 01 | L73: 02 | M73: 044954 | N73: 000055 | O73: 37|01|02|000055 | P73: 01 | Q73: 01 | R73: 02 | S73: 04 | T73: 04 | U73: 01|01|02|04|04 | V73: National | W73: Sport, Arts and Culture | X73: Administration | Y73: Management | Z73: Non-transfer item | AA73: Current | AB73: Current payments | AC73: Goods and services | AD73: Advertising | AE73: Advertising | AF73: Learning and culture | AG73: Arts, culture, sport and recreation | AH73: NAT | AI73: 0 | AJ73: 0 | AK73: 0 | AL73: 296 | AM73: 296 | AN73: 296 | AO73: 80 | AP73: 309 | AQ73: 323 | AR73: 338 | AS73: 353 | CB73: =Dataset[[#This Row],[2026/27 From - Spending review Topic 1]]+Dataset[[#This Row],[2026/27 From - Spending review Topic 2]]+Dataset[[#This Row],[2026/27 From - Spending review Topic 3]]+Dataset[[#This Row],[2026/27 From - Spending review Topic 4]]+Dataset[[#This Row],[2026/27 From - Other reallocations]] -> 0 | CC73: =Dataset[[#This Row],[2027/28 From - Spending review Topic 1]]+Dataset[[#This Row],[2027/28 From - Spending review Topic 2]]+Dataset[[#This Row],[2027/28 From - Spending review Topic 3]]+Dataset[[#This Row],[2027/28 From - Spending review Topic 4]]+Dataset[[#This Row],[2027/28 From - Other reallocations]] -> 0 | CD73: =Dataset[[#This Row],[2028/29 From - Spending review Topic 1]]+Dataset[[#This Row],[2028/29 From - Spending review Topic 2]]+Dataset[[#This Row],[2028/29 From - Spending review Topic 3]]+Dataset[[#This Row],[2028/29 From - Spending review Topic 4]]+Dataset[[#This Row],[2028/29 From - Other reallocations]] -> 0 | CE73: =Dataset[[#This Row],[2026/27 To - Spending review Topic 1]]+Dataset[[#This Row],[2026/27 To - Spending review Topic 2]]+Dataset[[#This Row],[2026/27 To - Spending review Topic 3]]+Dataset[[#This Row],[2026/27 To - Spending review Topic 4]]+Dataset[[#This Row],[2026/27 To - Other reallocations]] -> 0 | CF73: =Dataset[[#This Row],[2027/28 To - Spending review Topic 1]]+Dataset[[#This Row],[2027/28 To - Spending review Topic 2]]+Dataset[[#This Row],[2027/28 To - Spending review Topic 3]]+Dataset[[#This Row],[2027/28 To - Spending review Topic 4]]+Dataset[[#This Row],[2027/28 To - Other reallocations]] -> 0 | CG73: =Dataset[[#This Row],[2028/29 To - Spending review Topic 1]]+Dataset[[#This Row],[2028/29 To - Spending review Topic 2]]+Dataset[[#This Row],[2028/29 To - Spending review Topic 3]]+Dataset[[#This Row],[2028/29 To - Spending review Topic 4]]+Dataset[[#This Row],[2028/29 To - Other reallocations]] -> 0 | CH73: =Dataset[[#This Row],[2026/27 Targeted savings]]+Dataset[[#This Row],[2026/27 From - Total]] -> 0 | CI73: =Dataset[[#This Row],[2027/28 Targeted savings]]+Dataset[[#This Row],[2027/28 From - Total]] -> 0 | CJ73: =Dataset[[#This Row],[2028/29 Targeted savings]]+Dataset[[#This Row],[2028/29 From - Total]] -> 0 | CK73: =Dataset[[#This Row],[2025/26 Targeted savings]] -> 0 | CL73: =SUM(Dataset[[#This Row],[2026/27 Targeted savings]],Dataset[[#This Row],[2026/27 From - Total]],Dataset[[#This Row],[2026/27 To - Total]]) -> 0 | CM73: =SUM(Dataset[[#This Row],[2027/28 Targeted savings]],Dataset[[#This Row],[2027/28 From - Total]],Dataset[[#This Row],[2027/28 To - Total]]) -> 0 | CN73: =SUM(Dataset[[#This Row],[2028/29 Targeted savings]],Dataset[[#This Row],[2028/29 From - Total]],Dataset[[#This Row],[2028/29 To - Total]]) -> 0 | CO73: =Dataset[[#This Row],[2025/26 Baseline]]+Dataset[[#This Row],[2025/26 Total change]] -> 309 | CP73: =Dataset[[#This Row],[2026/27 Baseline]]+Dataset[[#This Row],[2026/27 Total change]] -> 323 | CQ73: =Dataset[[#This Row],[2027/28 Baseline]]+Dataset[[#This Row],[2027/28 Total change]] -> 338 | CR73: =Dataset[[#This Row],[2028/29 Baseline]]+Dataset[[#This Row],[2028/29 Total change]] -> 353
A74: NAT|Non-transfer item | B74: 37|Minor assets | C74: 2026_27 | D74: MTEC2026 | E74: 37 | F74: 1 | G74: 2 | H74: 44955 | I74: 56 | J74: 37 | K74: 01 | L74: 02 | M74: 044955 | N74: 000056 | O74: 37|01|02|000056 | P74: 01 | Q74: 01 | R74: 02 | S74: 05 | T74: 05 | U74: 01|01|02|05|05 | V74: National | W74: Sport, Arts and Culture | X74: Administration | Y74: Management | Z74: Non-transfer item | AA74: Current | AB74: Current payments | AC74: Goods and services | AD74: Minor assets | AE74: Minor assets | AF74: Learning and culture | AG74: Arts, culture, sport and recreation | AH74: NAT | AI74: 8 | AJ74: 7 | AK74: 3 | AL74: 80 | AM74: 80 | AN74: 80 | AO74: 0 | AP74: 84 | AQ74: 88 | AR74: 92 | AS74: 96 | CB74: =Dataset[[#This Row],[2026/27 From - Spending review Topic 1]]+Dataset[[#This Row],[2026/27 From - Spending review Topic 2]]+Dataset[[#This Row],[2026/27 From - Spending review Topic 3]]+Dataset[[#This Row],[2026/27 From - Spending review Topic 4]]+Dataset[[#This Row],[2026/27 From - Other reallocations]] -> 0 | CC74: =Dataset[[#This Row],[2027/28 From - Spending review Topic 1]]+Dataset[[#This Row],[2027/28 From - Spending review Topic 2]]+Dataset[[#This Row],[2027/28 From - Spending review Topic 3]]+Dataset[[#This Row],[2027/28 From - Spending review Topic 4]]+Dataset[[#This Row],[2027/28 From - Other reallocations]] -> 0 | CD74: =Dataset[[#This Row],[2028/29 From - Spending review Topic 1]]+Dataset[[#This Row],[2028/29 From - Spending review Topic 2]]+Dataset[[#This Row],[2028/29 From - Spending review Topic 3]]+Dataset[[#This Row],[2028/29 From - Spending review Topic 4]]+Dataset[[#This Row],[2028/29 From - Other reallocations]] -> 0 | CE74: =Dataset[[#This Row],[2026/27 To - Spending review Topic 1]]+Dataset[[#This Row],[2026/27 To - Spending review Topic 2]]+Dataset[[#This Row],[2026/27 To - Spending review Topic 3]]+Dataset[[#This Row],[2026/27 To - Spending review Topic 4]]+Dataset[[#This Row],[2026/27 To - Other reallocations]] -> 0 | CF74: =Dataset[[#This Row],[2027/28 To - Spending review Topic 1]]+Dataset[[#This Row],[2027/28 To - Spending review Topic 2]]+Dataset[[#This Row],[2027/28 To - Spending review Topic 3]]+Dataset[[#This Row],[2027/28 To - Spending review Topic 4]]+Dataset[[#This Row],[2027/28 To - Other reallocations]] -> 0 | CG74: =Dataset[[#This Row],[2028/29 To - Spending review Topic 1]]+Dataset[[#This Row],[2028/29 To - Spending review Topic 2]]+Dataset[[#This Row],[2028/29 To - Spending review Topic 3]]+Dataset[[#This Row],[2028/29 To - Spending review Topic 4]]+Dataset[[#This Row],[2028/29 To - Other reallocations]] -> 0 | CH74: =Dataset[[#This Row],[2026/27 Targeted savings]]+Dataset[[#This Row],[2026/27 From - Total]] -> 0 | CI74: =Dataset[[#This Row],[2027/28 Targeted savings]]+Dataset[[#This Row],[2027/28 From - Total]] -> 0 | CJ74: =Dataset[[#This Row],[2028/29 Targeted savings]]+Dataset[[#This Row],[2028/29 From - Total]] -> 0 | CK74: =Dataset[[#This Row],[2025/26 Targeted savings]] -> 0 | CL74: =SUM(Dataset[[#This Row],[2026/27 Targeted savings]],Dataset[[#This Row],[2026/27 From - Total]],Dataset[[#This Row],[2026/27 To - Total]]) -> 0 | CM74: =SUM(Dataset[[#This Row],[2027/28 Targeted savings]],Dataset[[#This Row],[2027/28 From - Total]],Dataset[[#This Row],[2027/28 To - Total]]) -> 0 | CN74: =SUM(Dataset[[#This Row],[2028/29 Targeted savings]],Dataset[[#This Row],[2028/29 From - Total]],Dataset[[#This Row],[2028/29 To - Total]]) -> 0 | CO74: =Dataset[[#This Row],[2025/26 Baseline]]+Dataset[[#This Row],[2025/26 Total change]] -> 84 | CP74: =Dataset[[#This Row],[2026/27 Baseline]]+Dataset[[#This Row],[2026/27 Total change]] -> 88 | CQ74: =Dataset[[#This Row],[2027/28 Baseline]]+Dataset[[#This Row],[2027/28 Total change]] -> 92 | CR74: =Dataset[[#This Row],[2028/29 Baseline]]+Dataset[[#This Row],[2028/29 Total change]] -> 96
A75: NAT|Non-transfer item | B75: 37|Audit costs: External | C75: 2026_27 | D75: MTEC2026 | E75: 37 | F75: 1 | G75: 2 | H75: 44956 | I75: 57 | J75: 37 | K75: 01 | L75: 02 | M75: 044956 | N75: 000057 | O75: 37|01|02|000057 | P75: 01 | Q75: 01 | R75: 02 | S75: 06 | T75: 06 | U75: 01|01|02|06|06 | V75: National | W75: Sport, Arts and Culture | X75: Administration | Y75: Management | Z75: Non-transfer item | AA75: Current | AB75: Current payments | AC75: Goods and services | AD75: Audit costs: External | AE75: Audit costs: External | AF75: Learning and culture | AG75: Arts, culture, sport and recreation | AH75: NAT | AI75: 222 | AJ75: 67 | AK75: 524 | AL75: 893 | AM75: 893 | AN75: 893 | AO75: 789 | AP75: 933 | AQ75: 576 | AR75: 602 | AS75: 629 | CB75: =Dataset[[#This Row],[2026/27 From - Spending review Topic 1]]+Dataset[[#This Row],[2026/27 From - Spending review Topic 2]]+Dataset[[#This Row],[2026/27 From - Spending review Topic 3]]+Dataset[[#This Row],[2026/27 From - Spending review Topic 4]]+Dataset[[#This Row],[2026/27 From - Other reallocations]] -> 0 | CC75: =Dataset[[#This Row],[2027/28 From - Spending review Topic 1]]+Dataset[[#This Row],[2027/28 From - Spending review Topic 2]]+Dataset[[#This Row],[2027/28 From - Spending review Topic 3]]+Dataset[[#This Row],[2027/28 From - Spending review Topic 4]]+Dataset[[#This Row],[2027/28 From - Other reallocations]] -> 0 | CD75: =Dataset[[#This Row],[2028/29 From - Spending review Topic 1]]+Dataset[[#This Row],[2028/29 From - Spending review Topic 2]]+Dataset[[#This Row],[2028/29 From - Spending review Topic 3]]+Dataset[[#This Row],[2028/29 From - Spending review Topic 4]]+Dataset[[#This Row],[2028/29 From - Other reallocations]] -> 0 | CE75: =Dataset[[#This Row],[2026/27 To - Spending review Topic 1]]+Dataset[[#This Row],[2026/27 To - Spending review Topic 2]]+Dataset[[#This Row],[2026/27 To - Spending review Topic 3]]+Dataset[[#This Row],[2026/27 To - Spending review Topic 4]]+Dataset[[#This Row],[2026/27 To - Other reallocations]] -> 0 | CF75: =Dataset[[#This Row],[2027/28 To - Spending review Topic 1]]+Dataset[[#This Row],[2027/28 To - Spending review Topic 2]]+Dataset[[#This Row],[2027/28 To - Spending review Topic 3]]+Dataset[[#This Row],[2027/28 To - Spending review Topic 4]]+Dataset[[#This Row],[2027/28 To - Other reallocations]] -> 0 | CG75: =Dataset[[#This Row],[2028/29 To - Spending review Topic 1]]+Dataset[[#This Row],[2028/29 To - Spending review Topic 2]]+Dataset[[#This Row],[2028/29 To - Spending review Topic 3]]+Dataset[[#This Row],[2028/29 To - Spending review Topic 4]]+Dataset[[#This Row],[2028/29 To - Other reallocations]] -> 0 | CH75: =Dataset[[#This Row],[2026/27 Targeted savings]]+Dataset[[#This Row],[2026/27 From - Total]] -> 0 | CI75: =Dataset[[#This Row],[2027/28 Targeted savings]]+Dataset[[#This Row],[2027/28 From - Total]] -> 0 | CJ75: =Dataset[[#This Row],[2028/29 Targeted savings]]+Dataset[[#This Row],[2028/29 From - Total]] -> 0 | CK75: =Dataset[[#This Row],[2025/26 Targeted savings]] -> 0 | CL75: =SUM(Dataset[[#This Row],[2026/27 Targeted savings]],Dataset[[#This Row],[2026/27 From - Total]],Dataset[[#This Row],[2026/27 To - Total]]) -> 0 | CM75: =SUM(Dataset[[#This Row],[2027/28 Targeted savings]],Dataset[[#This Row],[2027/28 From - Total]],Dataset[[#This Row],[2027/28 To - Total]]) -> 0 | CN75: =SUM(Dataset[[#This Row],[2028/29 Targeted savings]],Dataset[[#This Row],[2028/29 From - Total]],Dataset[[#This Row],[2028/29 To - Total]]) -> 0 | CO75: =Dataset[[#This Row],[2025/26 Baseline]]+Dataset[[#This Row],[2025/26 Total change]] -> 933 | CP75: =Dataset[[#This Row],[2026/27 Baseline]]+Dataset[[#This Row],[2026/27 Total change]] -> 576 | CQ75: =Dataset[[#This Row],[2027/28 Baseline]]+Dataset[[#This Row],[2027/28 Total change]] -> 602 | CR75: =Dataset[[#This Row],[2028/29 Baseline]]+Dataset[[#This Row],[2028/29 Total change]] -> 629
A76: NAT|Non-transfer item | B76: 37|Bursaries: Employees | C76: 2026_27 | D76: MTEC2026 | E76: 37 | F76: 1 | G76: 2 | H76: 44957 | I76: 58 | J76: 37 | K76: 01 | L76: 02 | M76: 044957 | N76: 000058 | O76: 37|01|02|000058 | P76: 01 | Q76: 01 | R76: 02 | S76: 07 | T76: 07 | U76: 01|01|02|07|07 | V76: National | W76: Sport, Arts and Culture | X76: Administration | Y76: Management | Z76: Non-transfer item | AA76: Current | AB76: Current payments | AC76: Goods and services | AD76: Bursaries: Employees | AE76: Bursaries: Employees | AF76: Learning and culture | AG76: Arts, culture, sport and recreation | AH76: NAT | AI76: 0 | AJ76: 0 | AK76: 0 | AL76: 0 | AM76: 0 | AN76: 0 | AO76: 0 | AP76: 0 | AQ76: 0 | AR76: 0 | AS76: 0 | CB76: =Dataset[[#This Row],[2026/27 From - Spending review Topic 1]]+Dataset[[#This Row],[2026/27 From - Spending review Topic 2]]+Dataset[[#This Row],[2026/27 From - Spending review Topic 3]]+Dataset[[#This Row],[2026/27 From - Spending review Topic 4]]+Dataset[[#This Row],[2026/27 From - Other reallocations]] -> 0 | CC76: =Dataset[[#This Row],[2027/28 From - Spending review Topic 1]]+Dataset[[#This Row],[2027/28 From - Spending review Topic 2]]+Dataset[[#This Row],[2027/28 From - Spending review Topic 3]]+Dataset[[#This Row],[2027/28 From - Spending review Topic 4]]+Dataset[[#This Row],[2027/28 From - Other reallocations]] -> 0 | CD76: =Dataset[[#This Row],[2028/29 From - Spending review Topic 1]]+Dataset[[#This Row],[2028/29 From - Spending review Topic 2]]+Dataset[[#This Row],[2028/29 From - Spending review Topic 3]]+Dataset[[#This Row],[2028/29 From - Spending review Topic 4]]+Dataset[[#This Row],[2028/29 From - Other reallocations]] -> 0 | CE76: =Dataset[[#This Row],[2026/27 To - Spending review Topic 1]]+Dataset[[#This Row],[2026/27 To - Spending review Topic 2]]+Dataset[[#This Row],[2026/27 To - Spending review Topic 3]]+Dataset[[#This Row],[2026/27 To - Spending review Topic 4]]+Dataset[[#This Row],[2026/27 To - Other reallocations]] -> 0 | CF76: =Dataset[[#This Row],[2027/28 To - Spending review Topic 1]]+Dataset[[#This Row],[2027/28 To - Spending review Topic 2]]+Dataset[[#This Row],[2027/28 To - Spending review Topic 3]]+Dataset[[#This Row],[2027/28 To - Spending review Topic 4]]+Dataset[[#This Row],[2027/28 To - Other reallocations]] -> 0 | CG76: =Dataset[[#This Row],[2028/29 To - Spending review Topic 1]]+Dataset[[#This Row],[2028/29 To - Spending review Topic 2]]+Dataset[[#This Row],[2028/29 To - Spending review Topic 3]]+Dataset[[#This Row],[2028/29 To - Spending review Topic 4]]+Dataset[[#This Row],[2028/29 To - Other reallocations]] -> 0 | CH76: =Dataset[[#This Row],[2026/27 Targeted savings]]+Dataset[[#This Row],[2026/27 From - Total]] -> 0 | CI76: =Dataset[[#This Row],[2027/28 Targeted savings]]+Dataset[[#This Row],[2027/28 From - Total]] -> 0 | CJ76: =Dataset[[#This Row],[2028/29 Targeted savings]]+Dataset[[#This Row],[2028/29 From - Total]] -> 0 | CK76: =Dataset[[#This Row],[2025/26 Targeted savings]] -> 0 | CL76: =SUM(Dataset[[#This Row],[2026/27 Targeted savings]],Dataset[[#This Row],[2026/27 From - Total]],Dataset[[#This Row],[2026/27 To - Total]]) -> 0 | CM76: =SUM(Dataset[[#This Row],[2027/28 Targeted savings]],Dataset[[#This Row],[2027/28 From - Total]],Dataset[[#This Row],[2027/28 To - Total]]) -> 0 | CN76: =SUM(Dataset[[#This Row],[2028/29 Targeted savings]],Dataset[[#This Row],[2028/29 From - Total]],Dataset[[#This Row],[2028/29 To - Total]]) -> 0 | CO76: =Dataset[[#This Row],[2025/26 Baseline]]+Dataset[[#This Row],[2025/26 Total change]] -> 0 | CP76: =Dataset[[#This Row],[2026/27 Baseline]]+Dataset[[#This Row],[2026/27 Total change]] -> 0 | CQ76: =Dataset[[#This Row],[2027/28 Baseline]]+Dataset[[#This Row],[2027/28 Total change]] -> 0 | CR76: =Dataset[[#This Row],[2028/29 Baseline]]+Dataset[[#This Row],[2028/29 Total change]] -> 0
A77: NAT|Non-transfer item | B77: 37|Catering: Departmental activities | C77: 2026_27 | D77: MTEC2026 | E77: 37 | F77: 1 | G77: 2 | H77: 44958 | I77: 59 | J77: 37 | K77: 01 | L77: 02 | M77: 044958 | N77: 000059 | O77: 37|01|02|000059 | P77: 01 | Q77: 01 | R77: 02 | S77: 08 | T77: 08 | U77: 01|01|02|08|08 | V77: National | W77: Sport, Arts and Culture | X77: Administration | Y77: Management | Z77: Non-transfer item | AA77: Current | AB77: Current payments | AC77: Goods and services | AD77: Catering: Departmental activities | AE77: Catering: Departmental activities | AF77: Learning and culture | AG77: Arts, culture, sport and recreation | AH77: NAT | AI77: 82 | AJ77: 129 | AK77: 36 | AL77: 456 | AM77: 456 | AN77: 456 | AO77: 17 | AP77: 485 | AQ77: 516 | AR77: 539 | AS77: 563 | CB77: =Dataset[[#This Row],[2026/27 From - Spending review Topic 1]]+Dataset[[#This Row],[2026/27 From - Spending review Topic 2]]+Dataset[[#This Row],[2026/27 From - Spending review Topic 3]]+Dataset[[#This Row],[2026/27 From - Spending review Topic 4]]+Dataset[[#This Row],[2026/27 From - Other reallocations]] -> 0 | CC77: =Dataset[[#This Row],[2027/28 From - Spending review Topic 1]]+Dataset[[#This Row],[2027/28 From - Spending review Topic 2]]+Dataset[[#This Row],[2027/28 From - Spending review Topic 3]]+Dataset[[#This Row],[2027/28 From - Spending review Topic 4]]+Dataset[[#This Row],[2027/28 From - Other reallocations]] -> 0 | CD77: =Dataset[[#This Row],[2028/29 From - Spending review Topic 1]]+Dataset[[#This Row],[2028/29 From - Spending review Topic 2]]+Dataset[[#This Row],[2028/29 From - Spending review Topic 3]]+Dataset[[#This Row],[2028/29 From - Spending review Topic 4]]+Dataset[[#This Row],[2028/29 From - Other reallocations]] -> 0 | CE77: =Dataset[[#This Row],[2026/27 To - Spending review Topic 1]]+Dataset[[#This Row],[2026/27 To - Spending review Topic 2]]+Dataset[[#This Row],[2026/27 To - Spending review Topic 3]]+Dataset[[#This Row],[2026/27 To - Spending review Topic 4]]+Dataset[[#This Row],[2026/27 To - Other reallocations]] -> 0 | CF77: =Dataset[[#This Row],[2027/28 To - Spending review Topic 1]]+Dataset[[#This Row],[2027/28 To - Spending review Topic 2]]+Dataset[[#This Row],[2027/28 To - Spending review Topic 3]]+Dataset[[#This Row],[2027/28 To - Spending review Topic 4]]+Dataset[[#This Row],[2027/28 To - Other reallocations]] -> 0 | CG77: =Dataset[[#This Row],[2028/29 To - Spending review Topic 1]]+Dataset[[#This Row],[2028/29 To - Spending review Topic 2]]+Dataset[[#This Row],[2028/29 To - Spending review Topic 3]]+Dataset[[#This Row],[2028/29 To - Spending review Topic 4]]+Dataset[[#This Row],[2028/29 To - Other reallocations]] -> 0 | CH77: =Dataset[[#This Row],[2026/27 Targeted savings]]+Dataset[[#This Row],[2026/27 From - Total]] -> 0 | CI77: =Dataset[[#This Row],[2027/28 Targeted savings]]+Dataset[[#This Row],[2027/28 From - Total]] -> 0 | CJ77: =Dataset[[#This Row],[2028/29 Targeted savings]]+Dataset[[#This Row],[2028/29 From - Total]] -> 0 | CK77: =Dataset[[#This Row],[2025/26 Targeted savings]] -> 0 | CL77: =SUM(Dataset[[#This Row],[2026/27 Targeted savings]],Dataset[[#This Row],[2026/27 From - Total]],Dataset[[#This Row],[2026/27 To - Total]]) -> 0 | CM77: =SUM(Dataset[[#This Row],[2027/28 Targeted savings]],Dataset[[#This Row],[2027/28 From - Total]],Dataset[[#This Row],[2027/28 To - Total]]) -> 0 | CN77: =SUM(Dataset[[#This Row],[2028/29 Targeted savings]],Dataset[[#This Row],[2028/29 From - Total]],Dataset[[#This Row],[2028/29 To - Total]]) -> 0 | CO77: =Dataset[[#This Row],[2025/26 Baseline]]+Dataset[[#This Row],[2025/26 Total change]] -> 485 | CP77: =Dataset[[#This Row],[2026/27 Baseline]]+Dataset[[#This Row],[2026/27 Total change]] -> 516 | CQ77: =Dataset[[#This Row],[2027/28 Baseline]]+Dataset[[#This Row],[2027/28 Total change]] -> 539 | CR77: =Dataset[[#This Row],[2028/29 Baseline]]+Dataset[[#This Row],[2028/29 Total change]] -> 563
A78: NAT|Non-transfer item | B78: 37|Communication (G&S) | C78: 2026_27 | D78: MTEC2026 | E78: 37 | F78: 1 | G78: 2 | H78: 44959 | I78: 60 | J78: 37 | K78: 01 | L78: 02 | M78: 044959 | N78: 000060 | O78: 37|01|02|000060 | P78: 01 | Q78: 01 | R78: 02 | S78: 09 | T78: 09 | U78: 01|01|02|09|09 | V78: National | W78: Sport, Arts and Culture | X78: Administration | Y78: Management | Z78: Non-transfer item | AA78: Current | AB78: Current payments | AC78: Goods and services | AD78: Communication (G&S) | AE78: Communication (G&S) | AF78: Learning and culture | AG78: Arts, culture, sport and recreation | AH78: NAT | AI78: 3332 | AJ78: 2214 | AK78: 1401 | AL78: 1818 | AM78: 1818 | AN78: 1818 | AO78: 2145 | AP78: 1973 | AQ78: 2148 | AR78: 2245 | AS78: 2346 | CB78: =Dataset[[#This Row],[2026/27 From - Spending review Topic 1]]+Dataset[[#This Row],[2026/27 From - Spending review Topic 2]]+Dataset[[#This Row],[2026/27 From - Spending review Topic 3]]+Dataset[[#This Row],[2026/27 From - Spending review Topic 4]]+Dataset[[#This Row],[2026/27 From - Other reallocations]] -> 0 | CC78: =Dataset[[#This Row],[2027/28 From - Spending review Topic 1]]+Dataset[[#This Row],[2027/28 From - Spending review Topic 2]]+Dataset[[#This Row],[2027/28 From - Spending review Topic 3]]+Dataset[[#This Row],[2027/28 From - Spending review Topic 4]]+Dataset[[#This Row],[2027/28 From - Other reallocations]] -> 0 | CD78: =Dataset[[#This Row],[2028/29 From - Spending review Topic 1]]+Dataset[[#This Row],[2028/29 From - Spending review Topic 2]]+Dataset[[#This Row],[2028/29 From - Spending review Topic 3]]+Dataset[[#This Row],[2028/29 From - Spending review Topic 4]]+Dataset[[#This Row],[2028/29 From - Other reallocations]] -> 0 | CE78: =Dataset[[#This Row],[2026/27 To - Spending review Topic 1]]+Dataset[[#This Row],[2026/27 To - Spending review Topic 2]]+Dataset[[#This Row],[2026/27 To - Spending review Topic 3]]+Dataset[[#This Row],[2026/27 To - Spending review Topic 4]]+Dataset[[#This Row],[2026/27 To - Other reallocations]] -> 0 | CF78: =Dataset[[#This Row],[2027/28 To - Spending review Topic 1]]+Dataset[[#This Row],[2027/28 To - Spending review Topic 2]]+Dataset[[#This Row],[2027/28 To - Spending review Topic 3]]+Dataset[[#This Row],[2027/28 To - Spending review Topic 4]]+Dataset[[#This Row],[2027/28 To - Other reallocations]] -> 0 | CG78: =Dataset[[#This Row],[2028/29 To - Spending review Topic 1]]+Dataset[[#This Row],[2028/29 To - Spending review Topic 2]]+Dataset[[#This Row],[2028/29 To - Spending review Topic 3]]+Dataset[[#This Row],[2028/29 To - Spending review Topic 4]]+Dataset[[#This Row],[2028/29 To - Other reallocations]] -> 0 | CH78: =Dataset[[#This Row],[2026/27 Targeted savings]]+Dataset[[#This Row],[2026/27 From - Total]] -> 0 | CI78: =Dataset[[#This Row],[2027/28 Targeted savings]]+Dataset[[#This Row],[2027/28 From - Total]] -> 0 | CJ78: =Dataset[[#This Row],[2028/29 Targeted savings]]+Dataset[[#This Row],[2028/29 From - Total]] -> 0 | CK78: =Dataset[[#This Row],[2025/26 Targeted savings]] -> 0 | CL78: =SUM(Dataset[[#This Row],[2026/27 Targeted savings]],Dataset[[#This Row],[2026/27 From - Total]],Dataset[[#This Row],[2026/27 To - Total]]) -> 0 | CM78: =SUM(Dataset[[#This Row],[2027/28 Targeted savings]],Dataset[[#This Row],[2027/28 From - Total]],Dataset[[#This Row],[2027/28 To - Total]]) -> 0 | CN78: =SUM(Dataset[[#This Row],[2028/29 Targeted savings]],Dataset[[#This Row],[2028/29 From - Total]],Dataset[[#This Row],[2028/29 To - Total]]) -> 0 | CO78: =Dataset[[#This Row],[2025/26 Baseline]]+Dataset[[#This Row],[2025/26 Total change]] -> 1973 | CP78: =Dataset[[#This Row],[2026/27 Baseline]]+Dataset[[#This Row],[2026/27 Total change]] -> 2148 | CQ78: =Dataset[[#This Row],[2027/28 Baseline]]+Dataset[[#This Row],[2027/28 Total change]] -> 2245 | CR78: =Dataset[[#This Row],[2028/29 Baseline]]+Dataset[[#This Row],[2028/29 Total change]] -> 2346
A79: NAT|Non-transfer item | B79: 37|Computer services | C79: 2026_27 | D79: MTEC2026 | E79: 37 | F79: 1 | G79: 2 | H79: 44960 | I79: 61 | J79: 37 | K79: 01 | L79: 02 | M79: 044960 | N79: 000061 | O79: 37|01|02|000061 | P79: 01 | Q79: 01 | R79: 02 | S79: 10 | T79: 10 | U79: 01|01|02|10|10 | V79: National | W79: Sport, Arts and Culture | X79: Administration | Y79: Management | Z79: Non-transfer item | AA79: Current | AB79: Current payments | AC79: Goods and services | AD79: Computer services | AE79: Computer services | AF79: Learning and culture | AG79: Arts, culture, sport and recreation | AH79: NAT | AI79: 186 | AJ79: 120 | AK79: 219 | AL79: 226 | AM79: 226 | AN79: 226 | AO79: 237 | AP79: 236 | AQ79: 247 | AR79: 258 | AS79: 270 | CB79: =Dataset[[#This Row],[2026/27 From - Spending review Topic 1]]+Dataset[[#This Row],[2026/27 From - Spending review Topic 2]]+Dataset[[#This Row],[2026/27 From - Spending review Topic 3]]+Dataset[[#This Row],[2026/27 From - Spending review Topic 4]]+Dataset[[#This Row],[2026/27 From - Other reallocations]] -> 0 | CC79: =Dataset[[#This Row],[2027/28 From - Spending review Topic 1]]+Dataset[[#This Row],[2027/28 From - Spending review Topic 2]]+Dataset[[#This Row],[2027/28 From - Spending review Topic 3]]+Dataset[[#This Row],[2027/28 From - Spending review Topic 4]]+Dataset[[#This Row],[2027/28 From - Other reallocations]] -> 0 | CD79: =Dataset[[#This Row],[2028/29 From - Spending review Topic 1]]+Dataset[[#This Row],[2028/29 From - Spending review Topic 2]]+Dataset[[#This Row],[2028/29 From - Spending review Topic 3]]+Dataset[[#This Row],[2028/29 From - Spending review Topic 4]]+Dataset[[#This Row],[2028/29 From - Other reallocations]] -> 0 | CE79: =Dataset[[#This Row],[2026/27 To - Spending review Topic 1]]+Dataset[[#This Row],[2026/27 To - Spending review Topic 2]]+Dataset[[#This Row],[2026/27 To - Spending review Topic 3]]+Dataset[[#This Row],[2026/27 To - Spending review Topic 4]]+Dataset[[#This Row],[2026/27 To - Other reallocations]] -> 0 | CF79: =Dataset[[#This Row],[2027/28 To - Spending review Topic 1]]+Dataset[[#This Row],[2027/28 To - Spending review Topic 2]]+Dataset[[#This Row],[2027/28 To - Spending review Topic 3]]+Dataset[[#This Row],[2027/28 To - Spending review Topic 4]]+Dataset[[#This Row],[2027/28 To - Other reallocations]] -> 0 | CG79: =Dataset[[#This Row],[2028/29 To - Spending review Topic 1]]+Dataset[[#This Row],[2028/29 To - Spending review Topic 2]]+Dataset[[#This Row],[2028/29 To - Spending review Topic 3]]+Dataset[[#This Row],[2028/29 To - Spending review Topic 4]]+Dataset[[#This Row],[2028/29 To - Other reallocations]] -> 0 | CH79: =Dataset[[#This Row],[2026/27 Targeted savings]]+Dataset[[#This Row],[2026/27 From - Total]] -> 0 | CI79: =Dataset[[#This Row],[2027/28 Targeted savings]]+Dataset[[#This Row],[2027/28 From - Total]] -> 0 | CJ79: =Dataset[[#This Row],[2028/29 Targeted savings]]+Dataset[[#This Row],[2028/29 From - Total]] -> 0 | CK79: =Dataset[[#This Row],[2025/26 Targeted savings]] -> 0 | CL79: =SUM(Dataset[[#This Row],[2026/27 Targeted savings]],Dataset[[#This Row],[2026/27 From - Total]],Dataset[[#This Row],[2026/27 To - Total]]) -> 0 | CM79: =SUM(Dataset[[#This Row],[2027/28 Targeted savings]],Dataset[[#This Row],[2027/28 From - Total]],Dataset[[#This Row],[2027/28 To - Total]]) -> 0 | CN79: =SUM(Dataset[[#This Row],[2028/29 Targeted savings]],Dataset[[#This Row],[2028/29 From - Total]],Dataset[[#This Row],[2028/29 To - Total]]) -> 0 | CO79: =Dataset[[#This Row],[2025/26 Baseline]]+Dataset[[#This Row],[2025/26 Total change]] -> 236 | CP79: =Dataset[[#This Row],[2026/27 Baseline]]+Dataset[[#This Row],[2026/27 Total change]] -> 247 | CQ79: =Dataset[[#This Row],[2027/28 Baseline]]+Dataset[[#This Row],[2027/28 Total change]] -> 258 | CR79: =Dataset[[#This Row],[2028/29 Baseline]]+Dataset[[#This Row],[2028/29 Total change]] -> 270
A80: NAT|Non-transfer item | B80: 37|Consultants: Business and advisory services | C80: 2026_27 | D80: MTEC2026 | E80: 37 | F80: 1 | G80: 2 | H80: 44961 | I80: 62 | J80: 37 | K80: 01 | L80: 02 | M80: 044961 | N80: 000062 | O80: 37|01|02|000062 | P80: 01 | Q80: 01 | R80: 02 | S80: 11 | T80: 11 | U80: 01|01|02|11|11 | V80: National | W80: Sport, Arts and Culture | X80: Administration | Y80: Management | Z80: Non-transfer item | AA80: Current | AB80: Current payments | AC80: Goods and services | AD80: Consultants: Business and advisory services | AE80: Consultants: Business and advisory services | AF80: Learning and culture | AG80: Arts, culture, sport and recreation | AH80: NAT | AI80: 1741 | AJ80: 3149 | AK80: 2511 | AL80: 895 | AM80: 895 | AN80: 895 | AO80: 3814 | AP80: 935 | AQ80: 978 | AR80: 1022 | AS80: 1068 | CB80: =Dataset[[#This Row],[2026/27 From - Spending review Topic 1]]+Dataset[[#This Row],[2026/27 From - Spending review Topic 2]]+Dataset[[#This Row],[2026/27 From - Spending review Topic 3]]+Dataset[[#This Row],[2026/27 From - Spending review Topic 4]]+Dataset[[#This Row],[2026/27 From - Other reallocations]] -> 0 | CC80: =Dataset[[#This Row],[2027/28 From - Spending review Topic 1]]+Dataset[[#This Row],[2027/28 From - Spending review Topic 2]]+Dataset[[#This Row],[2027/28 From - Spending review Topic 3]]+Dataset[[#This Row],[2027/28 From - Spending review Topic 4]]+Dataset[[#This Row],[2027/28 From - Other reallocations]] -> 0 | CD80: =Dataset[[#This Row],[2028/29 From - Spending review Topic 1]]+Dataset[[#This Row],[2028/29 From - Spending review Topic 2]]+Dataset[[#This Row],[2028/29 From - Spending review Topic 3]]+Dataset[[#This Row],[2028/29 From - Spending review Topic 4]]+Dataset[[#This Row],[2028/29 From - Other reallocations]] -> 0 | CE80: =Dataset[[#This Row],[2026/27 To - Spending review Topic 1]]+Dataset[[#This Row],[2026/27 To - Spending review Topic 2]]+Dataset[[#This Row],[2026/27 To - Spending review Topic 3]]+Dataset[[#This Row],[2026/27 To - Spending review Topic 4]]+Dataset[[#This Row],[2026/27 To - Other reallocations]] -> 0 | CF80: =Dataset[[#This Row],[2027/28 To - Spending review Topic 1]]+Dataset[[#This Row],[2027/28 To - Spending review Topic 2]]+Dataset[[#This Row],[2027/28 To - Spending review Topic 3]]+Dataset[[#This Row],[2027/28 To - Spending review Topic 4]]+Dataset[[#This Row],[2027/28 To - Other reallocations]] -> 0 | CG80: =Dataset[[#This Row],[2028/29 To - Spending review Topic 1]]+Dataset[[#This Row],[2028/29 To - Spending review Topic 2]]+Dataset[[#This Row],[2028/29 To - Spending review Topic 3]]+Dataset[[#This Row],[2028/29 To - Spending review Topic 4]]+Dataset[[#This Row],[2028/29 To - Other reallocations]] -> 0 | CH80: =Dataset[[#This Row],[2026/27 Targeted savings]]+Dataset[[#This Row],[2026/27 From - Total]] -> 0 | CI80: =Dataset[[#This Row],[2027/28 Targeted savings]]+Dataset[[#This Row],[2027/28 From - Total]] -> 0 | CJ80: =Dataset[[#This Row],[2028/29 Targeted savings]]+Dataset[[#This Row],[2028/29 From - Total]] -> 0 | CK80: =Dataset[[#This Row],[2025/26 Targeted savings]] -> 0 | CL80: =SUM(Dataset[[#This Row],[2026/27 Targeted savings]],Dataset[[#This Row],[2026/27 From - Total]],Dataset[[#This Row],[2026/27 To - Total]]) -> 0 | CM80: =SUM(Dataset[[#This Row],[2027/28 Targeted savings]],Dataset[[#This Row],[2027/28 From - Total]],Dataset[[#This Row],[2027/28 To - Total]]) -> 0 | CN80: =SUM(Dataset[[#This Row],[2028/29 Targeted savings]],Dataset[[#This Row],[2028/29 From - Total]],Dataset[[#This Row],[2028/29 To - Total]]) -> 0 | CO80: =Dataset[[#This Row],[2025/26 Baseline]]+Dataset[[#This Row],[2025/26 Total change]] -> 935 | CP80: =Dataset[[#This Row],[2026/27 Baseline]]+Dataset[[#This Row],[2026/27 Total change]] -> 978 | CQ80: =Dataset[[#This Row],[2027/28 Baseline]]+Dataset[[#This Row],[2027/28 Total change]] -> 1022 | CR80: =Dataset[[#This Row],[2028/29 Baseline]]+Dataset[[#This Row],[2028/29 Total change]] -> 1068
A81: NAT|Non-transfer item | B81: 37|Infrastructure and planning services | C81: 2026_27 | D81: MTEC2026 | E81: 37 | F81: 1 | G81: 2 | H81: 44962 | I81: 63 | J81: 37 | K81: 01 | L81: 02 | M81: 044962 | N81: 000063 | O81: 37|01|02|000063 | P81: 01 | Q81: 01 | R81: 02 | S81: 12 | T81: 12 | U81: 01|01|02|12|12 | V81: National | W81: Sport, Arts and Culture | X81: Administration | Y81: Management | Z81: Non-transfer item | AA81: Current | AB81: Current payments | AC81: Goods and services | AD81: Infrastructure and planning services | AE81: Infrastructure and planning services | AF81: Learning and culture | AG81: Arts, culture, sport and recreation | AH81: NAT | AI81: 0 | AJ81: 0 | AK81: 0 | AL81: 0 | AM81: 0 | AN81: 0 | AO81: 0 | AP81: 0 | AQ81: 0 | AR81: 0 | AS81: 0 | CB81: =Dataset[[#This Row],[2026/27 From - Spending review Topic 1]]+Dataset[[#This Row],[2026/27 From - Spending review Topic 2]]+Dataset[[#This Row],[2026/27 From - Spending review Topic 3]]+Dataset[[#This Row],[2026/27 From - Spending review Topic 4]]+Dataset[[#This Row],[2026/27 From - Other reallocations]] -> 0 | CC81: =Dataset[[#This Row],[2027/28 From - Spending review Topic 1]]+Dataset[[#This Row],[2027/28 From - Spending review Topic 2]]+Dataset[[#This Row],[2027/28 From - Spending review Topic 3]]+Dataset[[#This Row],[2027/28 From - Spending review Topic 4]]+Dataset[[#This Row],[2027/28 From - Other reallocations]] -> 0 | CD81: =Dataset[[#This Row],[2028/29 From - Spending review Topic 1]]+Dataset[[#This Row],[2028/29 From - Spending review Topic 2]]+Dataset[[#This Row],[2028/29 From - Spending review Topic 3]]+Dataset[[#This Row],[2028/29 From - Spending review Topic 4]]+Dataset[[#This Row],[2028/29 From - Other reallocations]] -> 0 | CE81: =Dataset[[#This Row],[2026/27 To - Spending review Topic 1]]+Dataset[[#This Row],[2026/27 To - Spending review Topic 2]]+Dataset[[#This Row],[2026/27 To - Spending review Topic 3]]+Dataset[[#This Row],[2026/27 To - Spending review Topic 4]]+Dataset[[#This Row],[2026/27 To - Other reallocations]] -> 0 | CF81: =Dataset[[#This Row],[2027/28 To - Spending review Topic 1]]+Dataset[[#This Row],[2027/28 To - Spending review Topic 2]]+Dataset[[#This Row],[2027/28 To - Spending review Topic 3]]+Dataset[[#This Row],[2027/28 To - Spending review Topic 4]]+Dataset[[#This Row],[2027/28 To - Other reallocations]] -> 0 | CG81: =Dataset[[#This Row],[2028/29 To - Spending review Topic 1]]+Dataset[[#This Row],[2028/29 To - Spending review Topic 2]]+Dataset[[#This Row],[2028/29 To - Spending review Topic 3]]+Dataset[[#This Row],[2028/29 To - Spending review Topic 4]]+Dataset[[#This Row],[2028/29 To - Other reallocations]] -> 0 | CH81: =Dataset[[#This Row],[2026/27 Targeted savings]]+Dataset[[#This Row],[2026/27 From - Total]] -> 0 | CI81: =Dataset[[#This Row],[2027/28 Targeted savings]]+Dataset[[#This Row],[2027/28 From - Total]] -> 0 | CJ81: =Dataset[[#This Row],[2028/29 Targeted savings]]+Dataset[[#This Row],[2028/29 From - Total]] -> 0 | CK81: =Dataset[[#This Row],[2025/26 Targeted savings]] -> 0 | CL81: =SUM(Dataset[[#This Row],[2026/27 Targeted savings]],Dataset[[#This Row],[2026/27 From - Total]],Dataset[[#This Row],[2026/27 To - Total]]) -> 0 | CM81: =SUM(Dataset[[#This Row],[2027/28 Targeted savings]],Dataset[[#This Row],[2027/28 From - Total]],Dataset[[#This Row],[2027/28 To - Total]]) -> 0 | CN81: =SUM(Dataset[[#This Row],[2028/29 Targeted savings]],Dataset[[#This Row],[2028/29 From - Total]],Dataset[[#This Row],[2028/29 To - Total]]) -> 0 | CO81: =Dataset[[#This Row],[2025/26 Baseline]]+Dataset[[#This Row],[2025/26 Total change]] -> 0 | CP81: =Dataset[[#This Row],[2026/27 Baseline]]+Dataset[[#This Row],[2026/27 Total change]] -> 0 | CQ81: =Dataset[[#This Row],[2027/28 Baseline]]+Dataset[[#This Row],[2027/28 Total change]] -> 0 | CR81: =Dataset[[#This Row],[2028/29 Baseline]]+Dataset[[#This Row],[2028/29 Total change]] -> 0
A82: NAT|Non-transfer item | B82: 37|Laboratory services | C82: 2026_27 | D82: MTEC2026 | E82: 37 | F82: 1 | G82: 2 | H82: 44963 | I82: 64 | J82: 37 | K82: 01 | L82: 02 | M82: 044963 | N82: 000064 | O82: 37|01|02|000064 | P82: 01 | Q82: 01 | R82: 02 | S82: 13 | T82: 13 | U82: 01|01|02|13|13 | V82: National | W82: Sport, Arts and Culture | X82: Administration | Y82: Management | Z82: Non-transfer item | AA82: Current | AB82: Current payments | AC82: Goods and services | AD82: Laboratory services | AE82: Laboratory services | AF82: Learning and culture | AG82: Arts, culture, sport and recreation | AH82: NAT | AI82: 10 | AJ82: 1 | AK82: 0 | AL82: 0 | AM82: 0 | AN82: 0 | AO82: 0 | AP82: 0 | AQ82: 0 | AR82: 0 | AS82: 0 | CB82: =Dataset[[#This Row],[2026/27 From - Spending review Topic 1]]+Dataset[[#This Row],[2026/27 From - Spending review Topic 2]]+Dataset[[#This Row],[2026/27 From - Spending review Topic 3]]+Dataset[[#This Row],[2026/27 From - Spending review Topic 4]]+Dataset[[#This Row],[2026/27 From - Other reallocations]] -> 0 | CC82: =Dataset[[#This Row],[2027/28 From - Spending review Topic 1]]+Dataset[[#This Row],[2027/28 From - Spending review Topic 2]]+Dataset[[#This Row],[2027/28 From - Spending review Topic 3]]+Dataset[[#This Row],[2027/28 From - Spending review Topic 4]]+Dataset[[#This Row],[2027/28 From - Other reallocations]] -> 0 | CD82: =Dataset[[#This Row],[2028/29 From - Spending review Topic 1]]+Dataset[[#This Row],[2028/29 From - Spending review Topic 2]]+Dataset[[#This Row],[2028/29 From - Spending review Topic 3]]+Dataset[[#This Row],[2028/29 From - Spending review Topic 4]]+Dataset[[#This Row],[2028/29 From - Other reallocations]] -> 0 | CE82: =Dataset[[#This Row],[2026/27 To - Spending review Topic 1]]+Dataset[[#This Row],[2026/27 To - Spending review Topic 2]]+Dataset[[#This Row],[2026/27 To - Spending review Topic 3]]+Dataset[[#This Row],[2026/27 To - Spending review Topic 4]]+Dataset[[#This Row],[2026/27 To - Other reallocations]] -> 0 | CF82: =Dataset[[#This Row],[2027/28 To - Spending review Topic 1]]+Dataset[[#This Row],[2027/28 To - Spending review Topic 2]]+Dataset[[#This Row],[2027/28 To - Spending review Topic 3]]+Dataset[[#This Row],[2027/28 To - Spending review Topic 4]]+Dataset[[#This Row],[2027/28 To - Other reallocations]] -> 0 | CG82: =Dataset[[#This Row],[2028/29 To - Spending review Topic 1]]+Dataset[[#This Row],[2028/29 To - Spending review Topic 2]]+Dataset[[#This Row],[2028/29 To - Spending review Topic 3]]+Dataset[[#This Row],[2028/29 To - Spending review Topic 4]]+Dataset[[#This Row],[2028/29 To - Other reallocations]] -> 0 | CH82: =Dataset[[#This Row],[2026/27 Targeted savings]]+Dataset[[#This Row],[2026/27 From - Total]] -> 0 | CI82: =Dataset[[#This Row],[2027/28 Targeted savings]]+Dataset[[#This Row],[2027/28 From - Total]] -> 0 | CJ82: =Dataset[[#This Row],[2028/29 Targeted savings]]+Dataset[[#This Row],[2028/29 From - Total]] -> 0 | CK82: =Dataset[[#This Row],[2025/26 Targeted savings]] -> 0 | CL82: =SUM(Dataset[[#This Row],[2026/27 Targeted savings]],Dataset[[#This Row],[2026/27 From - Total]],Dataset[[#This Row],[2026/27 To - Total]]) -> 0 | CM82: =SUM(Dataset[[#This Row],[2027/28 Targeted savings]],Dataset[[#This Row],[2027/28 From - Total]],Dataset[[#This Row],[2027/28 To - Total]]) -> 0 | CN82: =SUM(Dataset[[#This Row],[2028/29 Targeted savings]],Dataset[[#This Row],[2028/29 From - Total]],Dataset[[#This Row],[2028/29 To - Total]]) -> 0 | CO82: =Dataset[[#This Row],[2025/26 Baseline]]+Dataset[[#This Row],[2025/26 Total change]] -> 0 | CP82: =Dataset[[#This Row],[2026/27 Baseline]]+Dataset[[#This Row],[2026/27 Total change]] -> 0 | CQ82: =Dataset[[#This Row],[2027/28 Baseline]]+Dataset[[#This Row],[2027/28 Total change]] -> 0 | CR82: =Dataset[[#This Row],[2028/29 Baseline]]+Dataset[[#This Row],[2028/29 Total change]] -> 0
